﻿Body Name,Supplier ID,Supplier Name,Transaction Number,Their Ref,Date,Gross Value ,VAT Amount,Service Label,Service Code,Expenditure Code,Expenditure Category,Service Division Label
Blackpool Council,1107930,H Kennedy T/A Video Interaction Guidance Hk,460643,742,24/07/2018,4000,0,HS0003,Headstart Commissioning,0911,Training Expenses,Children'S Services
Blackpool Council,1107930,H Kennedy T/A Video Interaction Guidance Hk,482792,808,24/07/2018,7000,0,HS0003,Headstart Commissioning,0911,Training Expenses,Children'S Services
Blackpool Council,1080563,Bay Media,483522,14360,04/07/2018,6925.2,1154.2,PRL,Marketing,3401,General Services,Places
Blackpool Council,1031983,Olympic Lock & Safeguards Ltd,484583,6866,24/07/2018,660.72,110.12,ALLEY,Alley Gates,3041,Other Materials,Community & Env Services
Blackpool Council,1014999,Machine Mart,484634,1012347,04/07/2018,444,74,PRKOP1,Parks Operational Manager  1,3020,Furniture - Purchase,Community & Env Services
Blackpool Council,1068734,British Gas Business,485671,963332361,30/07/2018,1379.67,229.94,CEMCRE,Cems Crems Etc,1202,Electricity,Governance & Partnerships
Blackpool Council,1115449,The Brazelton Centre Uk,485683,TK20039,16/07/2018,8295,0,BSTPRJ,Better Start Projects,3401,General Services,Better Start Projects
Blackpool Council,1115449,The Brazelton Centre Uk,485683,TK20039,16/07/2018,740,0,BSTPRJ,Better Start Projects,3801,Other Expenses,Better Start Projects
Blackpool Council,1115449,The Brazelton Centre Uk,485684,TK20040,16/07/2018,2700,0,BSTPRJ,Better Start Projects,3401,General Services,Better Start Projects
Blackpool Council,1115449,The Brazelton Centre Uk,485684,TK20040,16/07/2018,740,0,BSTPRJ,Better Start Projects,3801,Other Expenses,Better Start Projects
Blackpool Council,1008135,Marshalls,485707,Y000002467,06/07/2018,823.04,0,ZM0018,Highways & Engineering,9511A,Stocks Efin,Blackpool Services
Blackpool Council,1053453,Brenntag Uk Ltd,485806,32SI 3266895,12/07/2018,345.12,57.52,LEISUR,Leisure Management,3060,Chemicals,Community & Env Services
Blackpool Council,1017261,De Vere Village Trading No1 Limited,485911,VBL01/HA5019/2,06/07/2018,1022,170.33,PU0001,Public Health Team,4501,Private Contractors,Public Health
Blackpool Council,1006385,University Of Central Lancashire,486489,TUI221300007,05/07/2018,350,0,JA0506,Ayse Training,0911,Training Expenses,Children'S Services
Blackpool Council,1006385,University Of Central Lancashire,486490,TUI221300008,05/07/2018,350,0,JA0506,Ayse Training,0911,Training Expenses,Children'S Services
Blackpool Council,1006385,University Of Central Lancashire,486491,TUI221300009,05/07/2018,350,0,JA0506,Ayse Training,0911,Training Expenses,Children'S Services
Blackpool Council,1006385,University Of Central Lancashire,486492,TUI221300010,05/07/2018,350,0,JA0506,Ayse Training,0911,Training Expenses,Children'S Services
Blackpool Council,1006385,University Of Central Lancashire,486493,TUI221300011,05/07/2018,350,0,JA0506,Ayse Training,0911,Training Expenses,Children'S Services
Blackpool Council,1006385,University Of Central Lancashire,486494,TUI221300012,05/07/2018,350,0,JA0506,Ayse Training,0911,Training Expenses,Children'S Services
Blackpool Council,1006385,University Of Central Lancashire,486538,TUI221300006,05/07/2018,350,0,JA0506,Ayse Training,0911,Training Expenses,Children'S Services
Blackpool Council,1074697,The Aim Project,486599,3180,03/07/2018,1887.36,0,JA0505,Children'S Training,0911,Training Expenses,Children'S Services
Blackpool Council,1107930,H Kennedy T/A Video Interaction Guidance Hk,486738,87,24/07/2018,278.42,0,HS0003,Headstart Commissioning,3401,General Services,Children'S Services
Blackpool Council,1031983,Olympic Lock & Safeguards Ltd,486954,6893,24/07/2018,1522.68,253.78,ALLEY,Alley Gates,3041,Other Materials,Community & Env Services
Blackpool Council,1076264,Alliance Disposables Ltd,487224,I6790312,10/07/2018,683.09,113.85,SCLEAN,Street Cleaning,1601,Consumable Supplies,Community & Env Services
Blackpool Council,1115252,Ncctc Limited,487287,NCCTC2017-B122,03/07/2018,792,132,COMONE,Commissioning Team One,0915,Conferences,Adult & Families
Blackpool Council,1076264,Alliance Disposables Ltd,487354,I6798809,10/07/2018,656.3,109.38,SCLEAN,Street Cleaning,1601,Consumable Supplies,Community & Env Services
Blackpool Council,1031983,Olympic Lock & Safeguards Ltd,487415,6931,24/07/2018,530.88,88.48,ALLEY,Alley Gates,3041,Other Materials,Community & Env Services
Blackpool Council,1006143,Yorkshire Purchasing Organisation,487486,231154165,16/07/2018,382.61,63.77,EDDIV,Education Diversity,3302,Stationery,Children'S Services
Blackpool Council,1017261,De Vere Village Trading No1 Limited,487660,VBL01/HA5004/2,06/07/2018,900,150,PPA,Head Of Tourism Services,3401,General Services,Places
Blackpool Council,1053453,Brenntag Uk Ltd,487856,32SI 3268497,09/07/2018,880.5,146.75,LEISUR,Leisure Management,3060,Chemicals,Community & Env Services
Blackpool Council,1079488,Recycling Lives Ltd,488018,208085,03/07/2018,481.92,80.32,CWASTE,Commercial Waste,4514,Contract 'E',Community & Env Services
Blackpool Council,1007562,Pennine Telecom Limited,488127,OP/I044334,05/07/2018,2498.4,416.4,CWASTE,Commercial Waste,3041,Other Materials,Community & Env Services
Blackpool Council,1043974,Plastic Omnium Urban Systems Limited,488139,46207,02/07/2018,5042.4,840.4,DOMPFI,Domestic Waste & Waste Pfi,3041,Other Materials,Community & Env Services
Blackpool Council,1114522,The Oyster Partnership Ltd,488219,1033102,03/07/2018,806.76,134.46,AEE,Estates,0781,Contracted,Resources
Blackpool Council,1009811,Child Poverty Action Group,488274,SI177590,02/07/2018,256,0,FCACA,Benefits - Admin,3304,Books And Periodicals,Resources
Blackpool Council,1100367,Curve Learning And Development Ltd,488385,8399,19/07/2018,439.2,73.2,LM0420,Adults Training,0911,Training Expenses,Adult & Families
Blackpool Council,1011730,Metric Group Limited,488400,156790,27/07/2018,34416,5736,PARADM,Parking Administration,3527,Communication Lines,Budgets Outside Cash Limits
Blackpool Council,1006196,Prism Medical Uk,488516,5258883,02/07/2018,746.21,124.37,MVB,65-74,5401,Aids To Daily Living,Adult & Families
Blackpool Council,1088034,Mrhmc,488519,304,04/07/2018,750,0,ALEARN,Adult Learning,7310,Training Courses - No Orders,Places
Blackpool Council,1088034,Mrhmc,488520,303,04/07/2018,750,0,ALEARN,Adult Learning,7310,Training Courses - No Orders,Places
Blackpool Council,1010184,Builders Supplies (Westcoast)Ltd,488526,0001/00176217,12/07/2018,316.8,52.8,PJAA,"Erection, Operation & Dismantl",3041,Other Materials,Community & Env Services
Blackpool Council,1010184,Builders Supplies (Westcoast)Ltd,488527,0001/00176216,12/07/2018,403.2,67.2,PJAA,"Erection, Operation & Dismantl",3041,Other Materials,Community & Env Services
Blackpool Council,1018213,G-Map Services Ltd,488568,8644,03/07/2018,2904,484,JAB,Locality,5507,Personal,Children'S Services
Blackpool Council,1018213,G-Map Services Ltd,488569,8674,03/07/2018,2904,484,JAB,Locality,5507,Personal,Children'S Services
Blackpool Council,1018213,G-Map Services Ltd,488570,8593,03/07/2018,3630,605,JAB,Locality,5507,Personal,Children'S Services
Blackpool Council,1006586,H Jenkinson & Co Ltd,488583,SINV00807358,05/07/2018,3421.69,570.29,COBAAA,Town Hall & Municl Buildings,6515,Bldg Regs / Planning Fees,Capital - Resources
Blackpool Council,1006586,H Jenkinson & Co Ltd,488584,SINV00807357,05/07/2018,2242.37,373.73,AEB,Buildings,3020,Furniture - Purchase,Resources
Blackpool Council,1114522,The Oyster Partnership Ltd,488668,1033522,03/07/2018,998.46,166.41,AEE,Estates,0781,Contracted,Resources
Blackpool Council,1061798,Babcock 4s Ltd,488678,SI128744,06/07/2018,379.2,63.2,EM1002,Education Finance,3605,Confs & Short Courses,Children'S Services
Blackpool Council,1067536,Rlss Uk Enterprises Ltd ( Lifesavers Direct),488691,SI530301-1,19/07/2018,415,69.16,BEACHP,Beach Patrol,3010,Safety Equipment,Places
Blackpool Council,1114832,Able 2 Occupational Therapy Services Ltd,488754,17818,05/07/2018,444.64,0,FC1404,Blue Badge Reform,3401,General Services,Resources
Blackpool Council,1049304,Insight Direct (Uk) Ltd,488758,3913677,05/07/2018,1872.65,312.11,CS0739,Ict Refresh,6525,I.T. Hardware Purchase,Capital - Resources
Blackpool Council,1007206,Road Safety Services Ltd,488759,83606,04/07/2018,432,72,TRB,Maintenance & Works,4501,Private Contractors,Community & Env Services
Blackpool Council,1114036,Odlings Ltd T/A The Columbaria Co,488787,INV0060791,04/07/2018,522,87,CEMCRE,Cems Crems Etc,3454,Remove And Refix Memorials,Governance & Partnerships
Blackpool Council,1102627,Fresh Pastures Processing Ltd,488875,29204030618,03/07/2018,381.15,0,APDBBB,Arc,3107,Milk For Drinking,Adult & Families
Blackpool Council,1102823,Wilde Consultants Limited,488878,WPCON16188,06/07/2018,7100.1,1183.35,CGOAAA,Quality Corridor,6501,Contract Payments,Capital - Places
Blackpool Council,1009009,Hermolle Associates Ltd,488879,9470,04/07/2018,1434,239,AED,Capital Projects,1012,Premises Maint-Priv.Contractor,Resources
Blackpool Council,1076264,Alliance Disposables Ltd,488927,I6847945,06/07/2018,822.3,137.05,SCLEAN,Street Cleaning,1601,Consumable Supplies,Community & Env Services
Blackpool Council,1076264,Alliance Disposables Ltd,488928,I6848176,06/07/2018,398.4,0,ZM0018,Highways & Engineering,9773,Orders Received Not Invoiced,Blackpool Services
Blackpool Council,1076264,Alliance Disposables Ltd,488928,I6848176,06/07/2018,478.08,79.68,ZM0018,Highways & Engineering,9511A,Stocks Efin,Blackpool Services
Blackpool Council,1049304,Insight Direct (Uk) Ltd,488936,3921259,09/07/2018,393.36,65.56,CS0739,Ict Refresh,6525,I.T. Hardware Purchase,Capital - Resources
Blackpool Council,1090587,M E S Marine Ltd,488946,469,05/07/2018,361.85,60.3,BEACHP,Beach Patrol,2002,Repairs And Maintenance,Places
Blackpool Council,1007491,Posturite (Uk) Ltd,488947,INV0557922,13/07/2018,800.22,133.37,SSDA,Social Services Direct,5403,Disabled Adaptations,Adult & Families
Blackpool Council,1076264,Alliance Disposables Ltd,488950,I6854245,06/07/2018,315,0,ZM0018,Highways & Engineering,9773,Orders Received Not Invoiced,Blackpool Services
Blackpool Council,1076264,Alliance Disposables Ltd,488950,I6854245,06/07/2018,378,63,ZM0018,Highways & Engineering,9511A,Stocks Efin,Blackpool Services
Blackpool Council,1011702,J & J Decorating Services,488953,7707,06/07/2018,1800,300,PRKOP1,Parks Operational Manager  1,1012,Premises Maint-Priv.Contractor,Community & Env Services
Blackpool Council,1101443,Flm Training Ltd,488957,421,30/07/2018,1650,0,LEISUR,Leisure Management,3801,Other Expenses,Community & Env Services
Blackpool Council,1114036,Odlings Ltd T/A The Columbaria Co,488985,INV0060880,06/07/2018,522,87,CEMCRE,Cems Crems Etc,3454,Remove And Refix Memorials,Governance & Partnerships
Blackpool Council,1094424,The Networking People,488996,SI105164,06/07/2018,10463.82,1743.97,TRB,Maintenance & Works,4501,Private Contractors,Community & Env Services
Blackpool Council,1011970,A1 Streamline Road Markings Ltd,489001,2878,04/07/2018,834.06,139.02,ENGINE,Engineering,1012,Premises Maint-Priv.Contractor,Community & Env Services
Blackpool Council,1064012,Trueform Engineering Ltd,489046,INV02414,06/07/2018,11307,1884.5,TRB,Maintenance & Works,4501,Private Contractors,Community & Env Services
Blackpool Council,1114957,Rajapack Ltd T/A Welco,489052,WPSI0005148,06/07/2018,417.6,69.6,APDBBB,Arc,3020,Furniture - Purchase,Adult & Families
Blackpool Council,1091138,Lebus International Engineers Ltd,489060,18737/LWI/F-526,06/07/2018,2376,396,PJNA,New Features / Schemes - C & E,3041,Other Materials,Community & Env Services
Blackpool Council,1094424,The Networking People,489074,SI105165,06/07/2018,702.89,117.15,EDDIV,Education Diversity,3532,Comp-Running & License Costs,Children'S Services
Blackpool Council,1058631,Tara Signs Ltd (Fac008),489083,INV9726,03/07/2018,1226.95,204.49,BEACHP,Beach Patrol,3010,Safety Equipment,Places
Blackpool Council,1058631,Tara Signs Ltd (Fac008),489084,INV9727,03/07/2018,934.73,155.79,BEACHP,Beach Patrol,3010,Safety Equipment,Places
Blackpool Council,1102823,Wilde Consultants Limited,489092,WPCON16208,11/07/2018,5077.72,846.29,TRB,Maintenance & Works,4501,Private Contractors,Community & Env Services
Blackpool Council,1102823,Wilde Consultants Limited,489093,WPCON 16190,11/07/2018,6763.97,1127.33,CTBRAA,Bridges (Growth Fund),6501,Contract Payments,Capital - Comm & Environ
Blackpool Council,1102823,Wilde Consultants Limited,489094,WPCON 16189,11/07/2018,8225.1,1370.85,CGOAAA,Quality Corridor,6501,Contract Payments,Capital - Places
Blackpool Council,1025240,Key Engineering Supplies Ltd,489139,5601,12/07/2018,300.28,50.05,HOMECA,Homecare,3201,Clothing & Uniforms,Adult & Families
Blackpool Council,1102823,Wilde Consultants Limited,489170,WPCON16258,12/07/2018,36127.2,6021.2,CTBRAA,Bridges (Growth Fund),6501,Contract Payments,Capital - Comm & Environ
Blackpool Council,1007228,Rigby Taylor Ltd,489174,RSIN0263515,12/07/2018,460,0,ZM0018,Highways & Engineering,9773,Orders Received Not Invoiced,Blackpool Services
Blackpool Council,1007228,Rigby Taylor Ltd,489174,RSIN0263515,12/07/2018,552,92,ZM0018,Highways & Engineering,9511A,Stocks Efin,Blackpool Services
Blackpool Council,1114128,Paul Foster & Co Ltd,489175,18/06/0011,13/07/2018,1800,0,AER,Dual Use Properties,3801,Other Expenses,Resources
Blackpool Council,1091470,REDACTED PERSONAL DATA,489179,23548,06/07/2018,433.2,72.2,PRA,Conferences,3801,Other Expenses,Places
Blackpool Council,1033140,P J Combustion Solutions,489180,3750,13/07/2018,342,57,CEMCRE,Cems Crems Etc,1111,Cremators,Governance & Partnerships
Blackpool Council,1086772,Taylor Transformers Ltd,489184,45031,13/07/2018,1656,276,PJOA,Commercial & Marketing,3041,Other Materials,Community & Env Services
Blackpool Council,1064153,Press2talk Limited,489186,3063151,06/07/2018,601.92,100.32,LEISUR,Leisure Management,3030,Domestic Equipment - Purchase,Community & Env Services
Blackpool Council,1115226,Baker Lomax & Shackley Ltd,489193,B1271,13/07/2018,1440,240,BCA,Corp And Member Services,0911,Training Expenses,Governance & Partnerships
Blackpool Council,1014518,Tricel Composites (Gb) Ltd,489195,83674,05/07/2018,576,96,PJNA,New Features / Schemes - C & E,3041,Other Materials,Community & Env Services
Blackpool Council,1013705,Stadia Sports/ Broxap Limited,489233,INV229775,12/07/2018,529,0,ZM0018,Highways & Engineering,9773,Orders Received Not Invoiced,Blackpool Services
Blackpool Council,1013705,Stadia Sports/ Broxap Limited,489233,INV229775,12/07/2018,634.8,105.8,ZM0018,Highways & Engineering,9511A,Stocks Efin,Blackpool Services
Blackpool Council,1114522,The Oyster Partnership Ltd,489234,1033953,03/07/2018,619.5,103.25,AEE,Estates,0781,Contracted,Resources
Blackpool Council,1096460,Mwuk Limited T/A Alexandra,489251,OLSINV/05010208,13/07/2018,432.9,72.15,HOMECA,Homecare,3201,Clothing & Uniforms,Adult & Families
Blackpool Council,1012705,Construction Software Services Partnership,489253,INV-16460,13/07/2018,1524,254,AED,Capital Projects,3532,Comp-Running & License Costs,Resources
Blackpool Council,1057663,Wilde Recruitment Ltd,489260,33105,06/07/2018,517.86,86.31,CTAHHA,Tramway Emergency Works,6501,Contract Payments,Capital - Comm & Environ
Blackpool Council,1114712,REDACTED PERSONAL DATA,489350,3,13/07/2018,1342.1,0,JA0505,Children'S Training,0911,Training Expenses,Children'S Services
Blackpool Council,1102823,Wilde Consultants Limited,489364,WPCON 16265,13/07/2018,397.57,66.26,CTBRAA,Bridges (Growth Fund),6501,Contract Payments,Capital - Comm & Environ
Blackpool Council,1007385,R S Components Ltd,489385,290309915,05/07/2018,276.96,46.16,PJLA,Maintenance,3041,Other Materials,Community & Env Services
Blackpool Council,1008026,Metal Express (Fac083),489388,6390,05/07/2018,266.98,44.5,PJNA,New Features / Schemes - C & E,3041,Other Materials,Community & Env Services
Blackpool Council,1114782,REDACTED PERSONAL DATA,489390,AHJ52,13/07/2018,700,0,AHM,Arts Miscellaneous,3456,Payment To Artists,Places
Blackpool Council,1114782,REDACTED PERSONAL DATA,489392,AHJ51,13/07/2018,2400,0,AHM,Arts Miscellaneous,3456,Payment To Artists,Places
Blackpool Council,1095600,J G Paxtons & Sons Ltd,489420,477488,12/07/2018,2400,400,BEACHP,Beach Patrol,2001,Purchases,Places
Blackpool Council,1007206,Road Safety Services Ltd,489428,83528,04/07/2018,1717.31,286.22,CTAHHI,Tramway Extention,6511,Service Connections / Altera,Capital - Comm & Environ
Blackpool Council,1008105,Mercer & Sons Ltd,489500,829253,13/07/2018,326.4,54.4,SCHEME,Highways Schemes,3041,Other Materials,Community & Env Services
Blackpool Council,1007228,Rigby Taylor Ltd,489501,RSIN0263521,12/07/2018,1665,277.5,PRKOP1,Parks Operational Manager  1,4570,Football Turf Maintenance,Community & Env Services
Blackpool Council,1067286,Qa Ltd,489509,ISL148548,13/07/2018,10382.4,1730.4,SYSDEV,Systems Development,3533,Computer S/W Purchases,Resources
Blackpool Council,1006586,H Jenkinson & Co Ltd,489513,SINV00808381,13/07/2018,480,80,AEB,Buildings,3302,Stationery,Resources
Blackpool Council,1022845,Preservation Equipment Ltd,489515,0000377150,13/07/2018,367.49,61.25,AHH,Heritage,3020,Furniture - Purchase,Places
Blackpool Council,1024365,Aspli Safety Ltd,489526,38174,11/07/2018,543.36,90.56,BEACHP,Beach Patrol,3010,Safety Equipment,Places
Blackpool Council,1049304,Insight Direct (Uk) Ltd,489529,3918207,06/07/2018,1497.18,249.52,FGAA,Ict Corporate Services,3532,Comp-Running & License Costs,Resources
Blackpool Council,1038011,Arb Matters,489614,AM1289,13/07/2018,360,60,PRKOP1,Parks Operational Manager  1,3003,Equipt-Mtce Repairs,Community & Env Services
Blackpool Council,1076264,Alliance Disposables Ltd,489616,I6866523,13/07/2018,262.8,43.8,ZM0018,Highways & Engineering,9511A,Stocks Efin,Blackpool Services
Blackpool Council,1103650,Westec,489620,16706,16/07/2018,2108.83,351.47,PJOA,Commercial & Marketing,3041,Other Materials,Community & Env Services
Blackpool Council,1071928,Civica Uk Limited,489630,C/CM166048,10/07/2018,360,60,FV6707,Macadams,1131,Electrical Equipment - Repairs,Budgets Outside Cash Limits
Blackpool Council,1072081,Investec Asset Finance,489655,MI/1431663,18/07/2018,1500,250,FCADA,Customer Services,3801,Other Expenses,Resources
Blackpool Council,1098854,Nhs Supply Chain,489656,1019040378,11/07/2018,370.4,61.73,PUBH24,Miscellaneous,4501,Private Contractors,Public Health
Blackpool Council,1013064,Tarmac Lafarge Trading Limited,489659,9038247725,06/07/2018,391.14,65.19,ENGINE,Engineering,3041,Other Materials,Community & Env Services
Blackpool Council,1013064,Tarmac Lafarge Trading Limited,489661,9038238599,04/07/2018,265.27,44.21,ENGINE,Engineering,3041,Other Materials,Community & Env Services
Blackpool Council,1013297,Blackpool Terrazzo Co Ltd,489668,22328,17/07/2018,459.46,76.58,CEMCRE,Cems Crems Etc,3454,Remove And Refix Memorials,Governance & Partnerships
Blackpool Council,1091138,Lebus International Engineers Ltd,489670,18747/LWI/F-527,19/07/2018,4116,686,PJNA,New Features / Schemes - C & E,3041,Other Materials,Community & Env Services
Blackpool Council,1091138,Lebus International Engineers Ltd,489673,18746/LWI/F-527,19/07/2018,792,132,PJNA,New Features / Schemes - C & E,3041,Other Materials,Community & Env Services
Blackpool Council,1079128,Leaving Care Training & Consultancy Service,489674,T-05,13/07/2018,1795.2,299.2,JA0505,Children'S Training,0911,Training Expenses,Children'S Services
Blackpool Council,1113301,Swarco Traffic Ltd,489677,90011475,19/07/2018,7632,1272,CTABVA,Ltp Scheme 16/17,6501,Contract Payments,Capital - Places
Blackpool Council,1008512,Killgerm Chemicals Ltd,489681,SI02-0188861,19/07/2018,284.76,47.46,PEST,Pest Control,3041,Other Materials,Community & Env Services
Blackpool Council,1025240,Key Engineering Supplies Ltd,489689,5776,19/07/2018,303.24,50.54,HOMECA,Homecare,3201,Clothing & Uniforms,Adult & Families
Blackpool Council,1006586,H Jenkinson & Co Ltd,489735,SINV00808915,18/07/2018,860.02,143.34,AEB,Buildings,3020,Furniture - Purchase,Resources
Blackpool Council,1006576,The Helping Hand Company Ltd,489736,320967,19/07/2018,2775.6,462.6,CWAN,Children With Additional Needs,3008,Educational Equipment,Children'S Services
Blackpool Council,1053453,Brenntag Uk Ltd,489739,32SI 3269897,12/07/2018,345.12,57.52,LEISUR,Leisure Management,3060,Chemicals,Community & Env Services
Blackpool Council,1106094,Casson Mann Ltd,489741,2310,04/07/2018,20458.8,3409.8,EC7011,Museum - Professional Fees,0981,Professional Fees,Places
Blackpool Council,1009058,Haymarket Media Group Ltd,489745,50139413,11/07/2018,2040,340,PLBAAA,Development Control,3711,Subscriptions,Places
Blackpool Council,1082067,Squire Patton Boggs (Uk) Llp,489756,2627902,12/07/2018,3066,511,CTAHHA,Tramway Emergency Works,6506,Consultants Fees,Capital - Comm & Environ
Blackpool Council,1018184,Blackpool Skip Hire,489764,006665,05/07/2018,1188.24,198.04,ENGINE,Engineering,1012,Premises Maint-Priv.Contractor,Community & Env Services
Blackpool Council,1096460,Mwuk Limited T/A Alexandra,489772,OLSINV/05015850,13/07/2018,450.9,75.15,HOMECA,Homecare,3201,Clothing & Uniforms,Adult & Families
Blackpool Council,1025240,Key Engineering Supplies Ltd,489822,5812,20/07/2018,250.54,41.76,HOMECA,Homecare,3101,Provisions,Adult & Families
Blackpool Council,1008175,Manns Music,489826,109541,04/07/2018,4240.9,706.82,MUSIC,Music & Cultural Education,3008,Educational Equipment,Children'S Services
Blackpool Council,1008175,Manns Music,489827,109559,04/07/2018,522.73,87.13,MUSIC,Music & Cultural Education,3008,Educational Equipment,Children'S Services
Blackpool Council,1087224,Star Editions Ltd,489830,29605,06/07/2018,650.3,108.38,AHG,Art Gallery Summary,3041,Other Materials,Places
Blackpool Council,1011121,Fylde Coast Gate Ltd,489832,27839,24/07/2018,1597.2,266.2,ALLEY,Alley Gates,3041,Other Materials,Community & Env Services
Blackpool Council,1035030,Wicksteed Leisure Ltd,489837,0000801665,18/07/2018,3895.2,649.2,PRKTEC,Parks Terchnician Manager,3041,Other Materials,Community & Env Services
Blackpool Council,1017752,Aqa Education Ltd,489848,21146373,13/07/2018,513.8,0,EDDIV,Education Diversity,3404,Exam Fees & Exps (Sch),Children'S Services
Blackpool Council,1022781,Moore Readymix Ltd,489850,90203,18/07/2018,508.92,84.82,ENGINE,Engineering,3041,Other Materials,Community & Env Services
Blackpool Council,1049842,Campbell Associates Limited,489946,20932,18/07/2018,1359.6,226.6,PYEP,Environmental Protection,3003,Equipt-Mtce Repairs,Community & Env Services
Blackpool Council,1049842,Campbell Associates Limited,489946,20932,18/07/2018,1602,267,PYEP,Environmental Protection,3001,Office Equipment Purchase,Community & Env Services
Blackpool Council,1023161,Suez Recycling And Recovery Uk Ltd,489964,80107574,12/07/2018,4051.8,675.3,CWASTE,Commercial Waste,4514,Contract 'E',Community & Env Services
Blackpool Council,1049152,Marwood Group Ltd,489968,1053628,20/07/2018,2990.64,498.44,SCHEME,Highways Schemes,3041,Other Materials,Community & Env Services
Blackpool Council,1093815,Raydar Safety Ltd,489969,SI-334,20/07/2018,399.6,66.6,CGOAAA,Quality Corridor,6501,Contract Payments,Capital - Places
Blackpool Council,1094355,Les Mills Fitness Uk Ltd,489971,SIV254398,06/07/2018,318.28,53.05,LEISUR,Leisure Management,2008,Running Costs-Licences,Community & Env Services
Blackpool Council,1101639,Aardvark Art Services Limited,489972,INV-2086,02/07/2018,269.88,44.98,AHG,Art Gallery Summary,3456,Payment To Artists,Places
Blackpool Council,1105990,Fylde Environmental Services Ltd,489979,BC/205/2018,02/07/2018,2785,0,SCLEAN,Street Cleaning,4501,Private Contractors,Community & Env Services
Blackpool Council,1116043,Pro-Active Management Associates Ltd,489982,197,13/07/2018,1890,315,VA0010,Vah Management & Admin,3413,Consultants,Children'S Services
Blackpool Council,1093815,Raydar Safety Ltd,489987,SI-335,20/07/2018,270,45,CTBRAA,Bridges (Growth Fund),6501,Contract Payments,Capital - Comm & Environ
Blackpool Council,1112714,Seatable Uk Ltd,490001,11722,20/07/2018,3967.56,661.26,APCBCA,Langdale,3020,Furniture - Purchase,Adult & Families
Blackpool Council,1064012,Trueform Engineering Ltd,490007,INV02457,30/07/2018,8208.6,1368.1,TRC,Travel & Safety,4501,Private Contractors,Community & Env Services
Blackpool Council,1103650,Westec,490009,16720,25/07/2018,787.82,131.3,PJOA,Commercial & Marketing,3041,Other Materials,Community & Env Services
Blackpool Council,1075577,Hags-Smp Ltd,490015,058872,19/07/2018,1159.92,193.32,PRKTEC,Parks Terchnician Manager,3041,Other Materials,Community & Env Services
Blackpool Council,1006292,Vodafone Corporate Ltd,490016,LE01516,13/07/2018,276,46,APCBBE,Extra Support,3531,Computer-H'Ware Purchase,Adult & Families
Blackpool Council,1096714,Computer Futures,490017,01008000777945,03/07/2018,11340,1890,FGAA,Ict Corporate Services,0791,Temp/Relief (Bureau Staff),Resources
Blackpool Council,1006944,Siemens Financial Services Ltd,490018,244/18/0212231,12/07/2018,2903.16,483.86,APFBAB,Vitaline,4501,Private Contractors,Adult & Families
Blackpool Council,1033190,Apse,490021,1819/598,20/07/2018,1334.4,222.4,LEISUR,Leisure Management,3313,General Expenses,Community & Env Services
Blackpool Council,1023406,Roy Sadurskis Limited,490022,0044,04/07/2018,2170,0,PRKOP1,Parks Operational Manager  1,1012,Premises Maint-Priv.Contractor,Community & Env Services
Blackpool Council,1067689,Due North Limited,490023,DNO_TSI2301000,05/07/2018,2568,428,FB0001,Business Services Team,3711,Subscriptions,Resources
Blackpool Council,1008454,Police & Crime Commissioner For Lancashire,490025,7500009823,11/07/2018,1100,0,TRA,Traffic Management,7301,General Fees & Charges,Community & Env Services
Blackpool Council,1006586,H Jenkinson & Co Ltd,490030,SINV00809395,20/07/2018,480,80,AEB,Buildings,3302,Stationery,Resources
Blackpool Council,1023362,Jewson Limited,490036,0181/0182401,03/07/2018,267.12,44.52,ZM0018,Highways & Engineering,9511A,Stocks Efin,Blackpool Services
Blackpool Council,1006292,Vodafone Corporate Ltd,490039,LE09452,13/07/2018,276,46,FGAA,Ict Corporate Services,3531,Computer-H'Ware Purchase,Resources
Blackpool Council,1006292,Vodafone Corporate Ltd,490041,LE09451,13/07/2018,276,46,FGAA,Ict Corporate Services,3531,Computer-H'Ware Purchase,Resources
Blackpool Council,1006292,Vodafone Corporate Ltd,490042,LE18389,13/07/2018,276,46,FGAA,Ict Corporate Services,3531,Computer-H'Ware Purchase,Resources
Blackpool Council,1006292,Vodafone Corporate Ltd,490043,LE18388,13/07/2018,546,91,FGAA,Ict Corporate Services,3531,Computer-H'Ware Purchase,Resources
Blackpool Council,1008459,The Lancashire Wildlife Trust,490044,11063,03/07/2018,536.17,0,CPAABK,Sand Dunes Env Wrk Ph105,6506,Consultants Fees,Capital - Comm & Environ
Blackpool Council,1008459,The Lancashire Wildlife Trust,490045,11064,03/07/2018,15140.89,0,CPAABK,Sand Dunes Env Wrk Ph105,6506,Consultants Fees,Capital - Comm & Environ
Blackpool Council,1114118,Medequip Assistive Technology Limited,490057,42262,19/07/2018,281.54,46.92,MTE,Undefined Age Group,5401,Aids To Daily Living,Adult & Families
Blackpool Council,1084907,Ken Williams T/A Akwa Irrigation Services,490147,1652,10/07/2018,498,83,PRKOP1,Parks Operational Manager  1,2002,Repairs And Maintenance,Community & Env Services
Blackpool Council,1076636,Chicken Joes Ltd,490150,486260,13/07/2018,255.73,0,CATERG,Catering Services,3101,Provisions,Community & Env Services
Blackpool Council,1049304,Insight Direct (Uk) Ltd,490156,3935463,19/07/2018,2509.79,418.3,FGAA,Ict Corporate Services,3532,Comp-Running & License Costs,Resources
Blackpool Council,1087034,Cool Milk Limited,490157,CML00023722,09/07/2018,21229.8,0,SCHBRK,Free School Breakfasts,3107,Milk For Drinking,Community & Env Services
Blackpool Council,1008135,Marshalls,490160,Z000083326,06/07/2018,1809.6,0,ZM0018,Highways & Engineering,9773,Orders Received Not Invoiced,Blackpool Services
Blackpool Council,1008135,Marshalls,490160,Z000083326,06/07/2018,3490.27,581.71,ZM0018,Highways & Engineering,9511A,Stocks Efin,Blackpool Services
Blackpool Council,1094424,The Networking People,490164,SI105192,25/07/2018,1896,316,FGAA,Ict Corporate Services,3531,Computer-H'Ware Purchase,Resources
Blackpool Council,1094424,The Networking People,490165,SI105191,25/07/2018,18779.59,3129.93,FGAA,Ict Corporate Services,3532,Comp-Running & License Costs,Resources
Blackpool Council,1013064,Tarmac Lafarge Trading Limited,490170,9038255030,06/07/2018,400.82,66.8,ENGINE,Engineering,3041,Other Materials,Community & Env Services
Blackpool Council,1013064,Tarmac Lafarge Trading Limited,490173,9038301662,13/07/2018,304,50.66,ENGINE,Engineering,3041,Other Materials,Community & Env Services
Blackpool Council,1013064,Tarmac Lafarge Trading Limited,490175,9038293243,13/07/2018,379.77,63.29,ENGINE,Engineering,3041,Other Materials,Community & Env Services
Blackpool Council,1013064,Tarmac Lafarge Trading Limited,490176,9038309227,13/07/2018,1196.31,199.38,ENGINE,Engineering,3041,Other Materials,Community & Env Services
Blackpool Council,1028641,New Mind Internet Consultancy Ltd,490197,NM32193,17/07/2018,2983.5,497.25,PRJAAA,Website Team,3535,Website Costs,Places
Blackpool Council,1104562,Accudata Limited,490199,20037,26/07/2018,294,49,TRB,Maintenance & Works,3041,Other Materials,Community & Env Services
Blackpool Council,1100195,Banking Automation Limited,490201,S1-081575,26/07/2018,2316,386,FH0001,Treasury Management,3532,Comp-Running & License Costs,Budgets Outside Cash Limits
Blackpool Council,1099572,Yasuda 3d-Art,490202,001,11/07/2018,920,0,PJNA,New Features / Schemes - C & E,3041,Other Materials,Community & Env Services
Blackpool Council,1006460,Total Hygiene Ltd,490238,OP/I142042,11/07/2018,354,59,MVB,65-74,5401,Aids To Daily Living,Adult & Families
Blackpool Council,1113460,Sureline Installations,490250,68,02/07/2018,975,0,CXAAA,Local Authority Dwellings,6502,Grants & Advances,Capital - Places
Blackpool Council,1100070,Carebase (Fac001),490260,73258,13/07/2018,9048,1508,MTE,Undefined Age Group,5401,Aids To Daily Living,Adult & Families
Blackpool Council,1019678,G & S Smirthwaite Ltd,490261,159324,13/07/2018,444,74,MTE,Undefined Age Group,5401,Aids To Daily Living,Adult & Families
Blackpool Council,1009714,Dcm Projects Ltd T/A Dcm Surfaces,490271,15346,20/07/2018,5316.3,886.05,PRKOP1,Parks Operational Manager  1,1012,Premises Maint-Priv.Contractor,Community & Env Services
Blackpool Council,1009714,Dcm Projects Ltd T/A Dcm Surfaces,490272,15345,20/07/2018,20620.8,3436.8,PRKOP1,Parks Operational Manager  1,1012,Premises Maint-Priv.Contractor,Community & Env Services
Blackpool Council,1091138,Lebus International Engineers Ltd,490273,18752/LWI/F5280,26/07/2018,2520,420,PJNA,New Features / Schemes - C & E,3041,Other Materials,Community & Env Services
Blackpool Council,1090236,C & J Inspection Services Limited,490279,860,04/07/2018,600,100,FMAK,Acquisitions 9/10,3801,Other Expenses,Places
Blackpool Council,1049304,Insight Direct (Uk) Ltd,490280,3942741,25/07/2018,455.46,75.91,CS0739,Ict Refresh,6525,I.T. Hardware Purchase,Capital - Resources
Blackpool Council,1006586,H Jenkinson & Co Ltd,490284,SINV00809674,25/07/2018,1003.34,167.22,AEB,Buildings,3020,Furniture - Purchase,Resources
Blackpool Council,1086156,Water Saving Techniques Limited,490285,3882,13/07/2018,5085.6,847.6,PARADE,Parades & Sea Wall,1012,Premises Maint-Priv.Contractor,Community & Env Services
Blackpool Council,1058505,Beaucare Medical Ltd,490287,0000638493,13/07/2018,293.47,48.91,APDBBB,Arc,3020,Furniture - Purchase,Adult & Families
Blackpool Council,1022781,Moore Readymix Ltd,490294,90314,20/07/2018,623.7,103.95,ENGINE,Engineering,3041,Other Materials,Community & Env Services
Blackpool Council,1022781,Moore Readymix Ltd,490295,90336,20/07/2018,297.47,49.58,ENGINE,Engineering,3041,Other Materials,Community & Env Services
Blackpool Council,1022781,Moore Readymix Ltd,490296,90365,20/07/2018,392.4,65.4,PRKOP1,Parks Operational Manager  1,3012,Other Equipment,Community & Env Services
Blackpool Council,1009166,Glasdon Uk Ltd,490303,753743,06/07/2018,1472.04,245.34,SCLEAN,Street Cleaning,3041,Other Materials,Community & Env Services
Blackpool Council,1115470,REDACTED PERSONAL DATA,490304,18/19-05,04/07/2018,1345.49,0,AHG,Art Gallery Summary,3456,Payment To Artists,Places
Blackpool Council,1088636,Tarmac Building Products Ltd,490305,SI01378033,06/07/2018,475.28,0,ZM0018,Highways & Engineering,9773,Orders Received Not Invoiced,Blackpool Services
Blackpool Council,1088636,Tarmac Building Products Ltd,490305,SI01378033,06/07/2018,570.33,95.05,ZM0018,Highways & Engineering,9511A,Stocks Efin,Blackpool Services
Blackpool Council,1103650,Westec,490307,16732,27/07/2018,499.2,83.2,PJOA,Commercial & Marketing,3041,Other Materials,Community & Env Services
Blackpool Council,1058510,Lifeline Language Services Ltd,490308,0918109,27/07/2018,336,56,JAH,Duty And Assessment,3419,Interpreters Fees,Children'S Services
Blackpool Council,1088636,Tarmac Building Products Ltd,490311,SI01374868,05/07/2018,1997.32,0,ZM0018,Highways & Engineering,9773,Orders Received Not Invoiced,Blackpool Services
Blackpool Council,1088636,Tarmac Building Products Ltd,490311,SI01374868,05/07/2018,2396.78,399.46,ZM0018,Highways & Engineering,9511A,Stocks Efin,Blackpool Services
Blackpool Council,1114522,The Oyster Partnership Ltd,490317,1034325,03/07/2018,721.68,120.28,AEE,Estates,0781,Contracted,Resources
Blackpool Council,1049304,Insight Direct (Uk) Ltd,490319,3944510,26/07/2018,4079.52,679.92,CS0739,Ict Refresh,6525,I.T. Hardware Purchase,Capital - Resources
Blackpool Council,1010667,Argos Business Solutions Ltd,490327,01664667,06/07/2018,423.32,70.47,FC1802,Social Fund - Client,5210,Community Care Support,Resources
Blackpool Council,1049304,Insight Direct (Uk) Ltd,490328,3944341,26/07/2018,40601.4,6766.9,CS0739,Ict Refresh,6525,I.T. Hardware Purchase,Capital - Resources
Blackpool Council,1060253,John Ball,490329,311,06/07/2018,2046,341,CEMCRE,Cems Crems Etc,3454,Remove And Refix Memorials,Governance & Partnerships
Blackpool Council,1008026,Metal Express (Fac083),490331,6405,19/07/2018,1164.72,194.12,PJNA,New Features / Schemes - C & E,3041,Other Materials,Community & Env Services
Blackpool Council,1005071,Blackpool Transport Services Limited,490334,I0000578,19/07/2018,14376,0,INTRAD,Integrated Transport Admin,6445,Transport,Community & Env Services
Blackpool Council,1093815,Raydar Safety Ltd,490336,SI-343,27/07/2018,1800,300,CTBRAA,Bridges (Growth Fund),6501,Contract Payments,Capital - Comm & Environ
Blackpool Council,1011730,Metric Group Limited,490341,157420,25/07/2018,387.6,64.6,PARADM,Parking Administration,3012,Other Equipment,Budgets Outside Cash Limits
Blackpool Council,1114704,Morson Human Resources Ltd,490351,HS182001,04/07/2018,2376,396,CTAHHA,Tramway Emergency Works,6506,Consultants Fees,Capital - Comm & Environ
Blackpool Council,1007776,Nu Pax Limited,490421,124861,20/07/2018,658.37,109.73,PJOA,Commercial & Marketing,3041,Other Materials,Community & Env Services
Blackpool Council,1112938,Dr Michael Clarke,490423,1674,02/07/2018,12996.66,2166.11,CTAHHA,Tramway Emergency Works,6506,Consultants Fees,Capital - Comm & Environ
Blackpool Council,1113243,Mclaughlin & Harvey Ltd,490424,21851,10/07/2018,157625.88,26270.98,CGTBBB,Conference Centre,6501,Contract Payments,Capital - Places
Blackpool Council,1113243,Mclaughlin & Harvey Ltd,490424,21851,10/07/2018,4062.52,0,ZF0001,"Insurance,Dso,Banking",97B6,Retention Monies - Cap Trsfr,Total Reconciliations
Blackpool Council,1067733,West Lancs Roofing,490531,0658,03/07/2018,1344,224,PLCAAA,Building Control,3401,General Services,Places
Blackpool Council,1007206,Road Safety Services Ltd,490545,83520,06/07/2018,7449.24,1241.54,CTAHHI,Tramway Extention,6511,Service Connections / Altera,Capital - Comm & Environ
Blackpool Council,1007206,Road Safety Services Ltd,490546,83529,05/07/2018,550.03,91.67,CTAHHI,Tramway Extention,6511,Service Connections / Altera,Capital - Comm & Environ
Blackpool Council,1006944,Siemens Financial Services Ltd,490570,212/18/0169330,12/07/2018,909.36,151.56,FCADA,Customer Services,3801,Other Expenses,Resources
Blackpool Council,1013064,Tarmac Lafarge Trading Limited,490573,9038317031,18/07/2018,482.14,80.35,ENGINE,Engineering,3041,Other Materials,Community & Env Services
Blackpool Council,1018184,Blackpool Skip Hire,490575,007240,04/07/2018,300,50,ENGINE,Engineering,1012,Premises Maint-Priv.Contractor,Community & Env Services
Blackpool Council,1094424,The Networking People,490578,SI105203,27/07/2018,3248.65,541.44,TSICT,Transforming Schools Ict,3531,Computer-H'Ware Purchase,Resources
Blackpool Council,1094424,The Networking People,490579,SI105204,27/07/2018,20896.8,3482.8,FGAA,Ict Corporate Services,3531,Computer-H'Ware Purchase,Resources
Blackpool Council,1057147,Disabled Go,490588,INV-1517189,31/07/2018,5704.8,950.8,PPA,Head Of Tourism Services,3401,General Services,Places
Blackpool Council,1012990,Gladstone Mrm Limited,490589,04008011,26/07/2018,6288,1048,FGAA,Ict Corporate Services,3532,Comp-Running & License Costs,Resources
Blackpool Council,1084141,Gillett Environmental Ltd,490600,OUT-11879,19/07/2018,2421.72,403.62,CWASTE,Commercial Waste,4514,Contract 'E',Community & Env Services
Blackpool Council,1110202,Preston Bus Ltd,490601,103605,04/07/2018,1776,296,TRCHIL,Integrated Transport Childrens,4501,Private Contractors,Community & Env Services
Blackpool Council,1110202,Preston Bus Ltd,490602,103604,04/07/2018,1848,308,TRCHIL,Integrated Transport Childrens,4501,Private Contractors,Community & Env Services
Blackpool Council,1113794,Premier Advisory Group Limited,490604,BLA002,04/07/2018,12060,2010,OPAREA,Opportunity Areas,4515,Contract Services,Places
Blackpool Council,1007491,Posturite (Uk) Ltd,490605,INV0563155,25/07/2018,795.96,132.66,HS0004,Resilience Coaches,3801,Other Expenses,Children'S Services
Blackpool Council,1006944,Siemens Financial Services Ltd,490607,244/18/0215917,17/07/2018,2081.16,346.85,APFBAB,Vitaline,4501,Private Contractors,Adult & Families
Blackpool Council,1061548,Cadent Gas Limited,490612,1035/81007790,05/07/2018,1694.35,0,SCHEME,Highways Schemes,1012,Premises Maint-Priv.Contractor,Community & Env Services
Blackpool Council,1083256,Community Lighting Partnership (Bpool) Ltd,490615,102,27/07/2018,497955.49,82992.58,FL1259,Pfi Management Costs,4501,Private Contractors,Community & Env Services
Blackpool Council,1103450,Blackpool Entertainment Company Limited,490616,INV003685,11/07/2018,36000,6000,PRA,Conferences,3701,Grants,Places
Blackpool Council,1009009,Hermolle Associates Ltd,490625,9448,05/07/2018,3432,572,MPB,Edc - Economic Dev Company,3413,Consultants,Places
Blackpool Council,1112198,Kkc Engineering Consultants Limited,490626,834/18,30/07/2018,5904,984,CTAHHA,Tramway Emergency Works,6506,Consultants Fees,Capital - Comm & Environ
Blackpool Council,1076264,Alliance Disposables Ltd,490628,I6897196,27/07/2018,749,0,ZM0018,Highways & Engineering,9773,Orders Received Not Invoiced,Blackpool Services
Blackpool Council,1076264,Alliance Disposables Ltd,490628,I6897196,27/07/2018,898.8,149.8,ZM0018,Highways & Engineering,9511A,Stocks Efin,Blackpool Services
Blackpool Council,1116196,K2 Screen Ltd,490664,10223,27/07/2018,1086,181,AHG,Art Gallery Summary,3301,Printing,Places
Blackpool Council,1009009,Hermolle Associates Ltd,490666,9450,12/07/2018,5706,951,CN2016,Carleton Crem Works 2018-20,6503,Capital Salaries (Pro Advance),Capital - Governance & Partner
Blackpool Council,1112303,Access-Able (Uk) Limited,490667,2736,06/07/2018,3065,0,CX4002,Disabled Facilities Grants,6501,Contract Payments,Capital - Adult Social Care
Blackpool Council,1112303,Access-Able (Uk) Limited,490668,2811,06/07/2018,3396,0,CX4002,Disabled Facilities Grants,6501,Contract Payments,Capital - Adult Social Care
Blackpool Council,1006196,Prism Medical Uk,490669,5267443,13/07/2018,2439.5,0,CX4002,Disabled Facilities Grants,6501,Contract Payments,Capital - Adult Social Care
Blackpool Council,1006196,Prism Medical Uk,490670,5267040,11/07/2018,1440,0,CX4002,Disabled Facilities Grants,6501,Contract Payments,Capital - Adult Social Care
Blackpool Council,1006460,Total Hygiene Ltd,490672,OP/I142340,13/07/2018,3055,0,CXAAA,Local Authority Dwellings,6501,Contract Payments,Capital - Places
Blackpool Council,1108975,Ups Building & Maintenance Ltd,490673,8824,06/07/2018,4094.55,0,CX4002,Disabled Facilities Grants,6501,Contract Payments,Capital - Adult Social Care
Blackpool Council,1108975,Ups Building & Maintenance Ltd,490674,8826,06/07/2018,2584.55,0,CX4002,Disabled Facilities Grants,6501,Contract Payments,Capital - Adult Social Care
Blackpool Council,1108975,Ups Building & Maintenance Ltd,490676,8825,06/07/2018,4079.55,0,CX4002,Disabled Facilities Grants,6501,Contract Payments,Capital - Adult Social Care
Blackpool Council,1011675,Bambers Remedial Contractors Limited,490677,15107,06/07/2018,4130.85,0,CX4002,Disabled Facilities Grants,6501,Contract Payments,Capital - Adult Social Care
Blackpool Council,1011675,Bambers Remedial Contractors Limited,490678,15106,06/07/2018,4225.85,0,CX4002,Disabled Facilities Grants,6501,Contract Payments,Capital - Adult Social Care
Blackpool Council,1007228,Rigby Taylor Ltd,490684,RSIN0265520,27/07/2018,4641,0,ZM0018,Highways & Engineering,9773,Orders Received Not Invoiced,Blackpool Services
Blackpool Council,1007228,Rigby Taylor Ltd,490684,RSIN0265520,27/07/2018,5569.2,928.2,ZM0018,Highways & Engineering,9511A,Stocks Efin,Blackpool Services
Blackpool Council,1088658,D-Tech International Ltd,490688,6513,27/07/2018,594,99,LBC,Branch Libraries,3532,Comp-Running & License Costs,Places
Blackpool Council,1011675,Bambers Remedial Contractors Limited,490690,14997,06/07/2018,6000.45,0,CX4002,Disabled Facilities Grants,6501,Contract Payments,Capital - Adult Social Care
Blackpool Council,1051299,Leisure Travel,490691,BC/72/002MAY18,05/07/2018,1980,0,TRCHIL,Integrated Transport Childrens,2201,Contract Hire,Community & Env Services
Blackpool Council,1108975,Ups Building & Maintenance Ltd,490693,9171,06/07/2018,720,0,CX4002,Disabled Facilities Grants,6501,Contract Payments,Capital - Adult Social Care
Blackpool Council,1006196,Prism Medical Uk,490698,5267102,11/07/2018,1558.4,0,CX4002,Disabled Facilities Grants,6501,Contract Payments,Capital - Adult Social Care
Blackpool Council,1011675,Bambers Remedial Contractors Limited,490699,15103,06/07/2018,5286.77,0,CX4002,Disabled Facilities Grants,6501,Contract Payments,Capital - Adult Social Care
Blackpool Council,1011675,Bambers Remedial Contractors Limited,490700,15110,06/07/2018,4534.61,0,CX4002,Disabled Facilities Grants,6501,Contract Payments,Capital - Adult Social Care
Blackpool Council,1011675,Bambers Remedial Contractors Limited,490701,15102,06/07/2018,4588.39,0,CX4002,Disabled Facilities Grants,6501,Contract Payments,Capital - Adult Social Care
Blackpool Council,1024186,Solon Security,490702,SI18004770,27/07/2018,422.47,70.41,COMSAF,Community Safety,3401,General Services,Public Health
Blackpool Council,1006196,Prism Medical Uk,490704,5268455,19/07/2018,3757,0,CX4002,Disabled Facilities Grants,6501,Contract Payments,Capital - Adult Social Care
Blackpool Council,1006196,Prism Medical Uk,490705,5268788,20/07/2018,1415,0,CX4002,Disabled Facilities Grants,6501,Contract Payments,Capital - Adult Social Care
Blackpool Council,1098105,Brightprint Ltd(Non Factor Payments Only),490707,26271,09/07/2018,270,45,TRC,Travel & Safety,4501,Private Contractors,Community & Env Services
Blackpool Council,1087316,Lovell Partnership Ltd,490708,INTERIM 31,10/07/2018,419091.41,0,CXB01,Hra Capital Programme 2011/12,6501,Contract Payments,Capital - Places
Blackpool Council,1087316,Lovell Partnership Ltd,490708,INTERIM 31,10/07/2018,12961.59,0,ZH0001,Housing Revenue Account,97B6,Retention Monies - Cap Trsfr,Housing Revenue Account
Blackpool Council,1109631,Blackpool Oriental Food Ltd,490714,RS180618,06/07/2018,482.1,80.35,AHH,Heritage,3041,Other Materials,Places
Blackpool Council,1007385,R S Components Ltd,490717,290497398,20/07/2018,354.77,59.13,FMAK,Acquisitions 9/10,1131,Electrical Equipment - Repairs,Places
Blackpool Council,1011730,Metric Group Limited,490722,157466,27/07/2018,828,138,PARADM,Parking Administration,3527,Communication Lines,Budgets Outside Cash Limits
Blackpool Council,1109607,Anomic Multimedia Theatre,490724,LW-J-C-18_01,06/07/2018,1800,300,PJNA,New Features / Schemes - C & E,3041,Other Materials,Community & Env Services
Blackpool Council,1050319,Perspex Distribution Ltd,490725,960162907,27/07/2018,657.79,109.63,PJNA,New Features / Schemes - C & E,3041,Other Materials,Community & Env Services
Blackpool Council,1044964,Marketing Lancashire,490760,LMKT505539,06/07/2018,330,55,LEISUR,Leisure Management,3801,Other Expenses,Community & Env Services
Blackpool Council,1011121,Fylde Coast Gate Ltd,490773,27855,09/07/2018,10344,1724,CWASTE,Commercial Waste,4514,Contract 'E',Community & Env Services
Blackpool Council,1011730,Metric Group Limited,490775,157465,27/07/2018,477.07,79.51,PARADM,Parking Administration,4501,Private Contractors,Budgets Outside Cash Limits
Blackpool Council,1079804,Royal Haskoning (Finance Department),490780,1065153,27/07/2018,2460,410,AED,Capital Projects,3413,Consultants,Resources
Blackpool Council,1090902,Anderson & Sons Contracting & Turf Care,490781,205,26/07/2018,1900,0,PRKOP1,Parks Operational Manager  1,1012,Premises Maint-Priv.Contractor,Community & Env Services
Blackpool Council,1094424,The Networking People,490784,SI105212,06/07/2018,10816.09,1802.68,FGAA,Ict Corporate Services,3527,Communication Lines,Resources
Blackpool Council,1094424,The Networking People,490785,SI105209,27/07/2018,369.32,61.55,TSICT,Transforming Schools Ict,3531,Computer-H'Ware Purchase,Resources
Blackpool Council,1094424,The Networking People,490789,SI105213,27/07/2018,2641.99,440.33,FGAA,Ict Corporate Services,3531,Computer-H'Ware Purchase,Resources
Blackpool Council,1013054,Jkn Digital Limited,490796,68530,13/07/2018,2236.8,372.8,PRL,Marketing,3401,General Services,Places
Blackpool Council,1116084,David Newham Associates,490799,637,30/07/2018,600,100,EC7011,Museum - Professional Fees,0981,Professional Fees,Places
Blackpool Council,1109682,Entertainment Concepts Ltd,490803,133,12/07/2018,799.99,133.33,FMAK,Acquisitions 9/10,1012,Premises Maint-Priv.Contractor,Places
Blackpool Council,1053453,Brenntag Uk Ltd,490805,32SI 3270741,16/07/2018,880.5,146.75,LEISUR,Leisure Management,3060,Chemicals,Community & Env Services
Blackpool Council,1008540,Konica Minolta Business (Uk) Ltd,490806,1138410351,27/07/2018,2139.36,356.56,FGBA,Specific (Directorate)-Service,3305,Photocopying Charges,Resources
Blackpool Council,1107790,Taylek Ltd,490809,INV-08806,19/07/2018,588,98,PJLA,Maintenance,3041,Other Materials,Community & Env Services
Blackpool Council,1107790,Taylek Ltd,490811,INV-08842,18/07/2018,604.8,100.8,PJOA,Commercial & Marketing,3041,Other Materials,Community & Env Services
Blackpool Council,1107790,Taylek Ltd,490812,INV-08843,18/07/2018,264,44,PJLA,Maintenance,3041,Other Materials,Community & Env Services
Blackpool Council,1107790,Taylek Ltd,490815,INV-08852,19/07/2018,264,44,PJLA,Maintenance,3041,Other Materials,Community & Env Services
Blackpool Council,1044156,Pell Frischmann,490820,W180261,10/07/2018,1433.22,238.87,CTAHHA,Tramway Emergency Works,6506,Consultants Fees,Capital - Comm & Environ
Blackpool Council,1102933,Bolinda Uk Ltd,490823,15178,27/07/2018,2400,400,LBB,Central Library,3304,Books And Periodicals,Places
Blackpool Council,1059387,Mediaprint Solutions Ltd,490824,10571,09/07/2018,1152,192,AHM,Arts Miscellaneous,3301,Printing,Places
Blackpool Council,1009364,Farnell Element 14,490827,2565209,18/07/2018,316.08,52.68,PJLA,Maintenance,3041,Other Materials,Community & Env Services
Blackpool Council,1052850,Charter Oaks Ltd,490828,061801,06/07/2018,1560,260,TRB,Maintenance & Works,4501,Private Contractors,Community & Env Services
Blackpool Council,1025664,Alison Handling Services Ltd,490831,187099,26/07/2018,360,60,PJHA,"Depot, Management & Admin",3041,Other Materials,Community & Env Services
Blackpool Council,1006449,Tmp (Uk) Ltd,490832,100001179932,10/07/2018,354.96,59.16,TRA,Traffic Management,4501,Private Contractors,Community & Env Services
Blackpool Council,1007385,R S Components Ltd,490833,290530690,24/07/2018,276.96,46.16,PJLA,Maintenance,3041,Other Materials,Community & Env Services
Blackpool Council,1089205,REDACTED PERSONAL DATA,490836,00000019,11/07/2018,300,0,AHG,Art Gallery Summary,3456,Payment To Artists,Places
Blackpool Council,1049304,Insight Direct (Uk) Ltd,490840,3951311,27/07/2018,1605.6,267.6,CS0739,Ict Refresh,6525,I.T. Hardware Purchase,Capital - Resources
Blackpool Council,1114736,Geminus Training Limited,490842,INV-00161,10/07/2018,4320,720,PTA,Economic Development,3315,Marketing,Places
Blackpool Council,1049304,Insight Direct (Uk) Ltd,490843,3950581,27/07/2018,39432,6572,CS0739,Ict Refresh,6525,I.T. Hardware Purchase,Capital - Resources
Blackpool Council,1044756,Northgate Public Services (Uk) Ltd,490845,91408935,30/07/2018,1446.24,241.04,FC1404,Blue Badge Reform,3401,General Services,Resources
Blackpool Council,1079070,Story Contracting Ltd,490846,CSI001/SR20190,27/07/2018,217179.29,36196.55,CTBRAA,Bridges (Growth Fund),6501,Contract Payments,Capital - Comm & Environ
Blackpool Council,1105889,3d Environmental Limited,490848,BBC-0043,12/07/2018,390,65,PYEP,Environmental Protection,4501,Private Contractors,Community & Env Services
Blackpool Council,1046723,Brightprint (Fac008 Payment Only),490851,26275,09/07/2018,478.8,79.8,EYT,Early Years Team,3301,Printing,Children'S Services
Blackpool Council,1044156,Pell Frischmann,490861,W18 0263,06/07/2018,482.68,80.45,TRA,Traffic Management,4501,Private Contractors,Community & Env Services
Blackpool Council,1044156,Pell Frischmann,490862,W18 0264,06/07/2018,1169.84,194.97,CGOAAA,Quality Corridor,6501,Contract Payments,Capital - Places
Blackpool Council,1044156,Pell Frischmann,490863,W18 0262,06/07/2018,1383.66,230.61,TRA,Traffic Management,4501,Private Contractors,Community & Env Services
Blackpool Council,1044156,Pell Frischmann,490864,W18 0260,06/07/2018,2203.39,367.23,TRA,Traffic Management,4501,Private Contractors,Community & Env Services
Blackpool Council,1006586,H Jenkinson & Co Ltd,490877,SINV00810234,27/07/2018,480,80,AEB,Buildings,3302,Stationery,Resources
Blackpool Council,1066729,Equis Associates Limited,490878,12-38-PG-BC,13/07/2018,16200,2700,CTAHHA,Tramway Emergency Works,6506,Consultants Fees,Capital - Comm & Environ
Blackpool Council,1011970,A1 Streamline Road Markings Ltd,490879,2955,13/07/2018,623.09,103.85,ENGINE,Engineering,1012,Premises Maint-Priv.Contractor,Community & Env Services
Blackpool Council,1011970,A1 Streamline Road Markings Ltd,490880,2956,06/07/2018,255.55,42.59,ENGINE,Engineering,1012,Premises Maint-Priv.Contractor,Community & Env Services
Blackpool Council,1037659,Hellermanntyton,490881,G217861,27/07/2018,303.6,50.6,PJLA,Maintenance,3041,Other Materials,Community & Env Services
Blackpool Council,1053261,Ad Systems (Uk) Limited,490894,4451,10/07/2018,3744,624,CCTV,Cctv,4501,Private Contractors,Public Health
Blackpool Council,1090236,C & J Inspection Services Limited,490896,863,09/07/2018,1190.6,198.43,FMAK,Acquisitions 9/10,1131,Electrical Equipment - Repairs,Places
Blackpool Council,1090236,C & J Inspection Services Limited,490898,862,09/07/2018,1595.05,265.84,FMAK,Acquisitions 9/10,1131,Electrical Equipment - Repairs,Places
Blackpool Council,1102627,Fresh Pastures Processing Ltd,490899,29204010718,31/07/2018,291.06,0,APDBBB,Arc,3107,Milk For Drinking,Adult & Families
Blackpool Council,1006099,Blackpool Teaching Hospitals Nhs Ft,490904,1110039142,06/07/2018,4509.02,0,SBOARD,Springboard,3801,Other Expenses,Children'S Services
Blackpool Council,1059217,Blackpool Carers Centre Ltd,490905,796,06/07/2018,25000,0,HS0009,Digital Mentoring,3531,Computer-H'Ware Purchase,Children'S Services
Blackpool Council,1008871,Irrv Services,490912,3890,20/07/2018,300,0,FBBEA,"Income, Recovery & Debtors",0911,Training Expenses,Resources
Blackpool Council,1087118,Ps & P Limited,490913,101025,27/07/2018,1374.26,229.04,FC3001,Housing Benefits,3401,General Services,Budgets Outside Cash Limits
Blackpool Council,1010667,Argos Business Solutions Ltd,490917,01667001,13/07/2018,665.53,110.87,FC1802,Social Fund - Client,5210,Community Care Support,Resources
Blackpool Council,1010311,Boc Limited,490919,3047945451,20/07/2018,251.41,41.9,LEISUR,Leisure Management,3060,Chemicals,Community & Env Services
Blackpool Council,1060724,J A Dickens Property Developer,490987,BCH-1636,09/07/2018,362.8,0,MVB,65-74,5401,Aids To Daily Living,Adult & Families
Blackpool Council,1060724,J A Dickens Property Developer,490994,BCH-1635,09/07/2018,362.8,0,MVB,65-74,5401,Aids To Daily Living,Adult & Families
Blackpool Council,1060724,J A Dickens Property Developer,490995,BCH-1630,09/07/2018,301.11,0,MVB,65-74,5401,Aids To Daily Living,Adult & Families
Blackpool Council,1060724,J A Dickens Property Developer,490996,BCH-1640,09/07/2018,684.3,0,CXAAA,Local Authority Dwellings,6501,Contract Payments,Capital - Places
Blackpool Council,1060724,J A Dickens Property Developer,490997,BCH-1639,09/07/2018,673.4,0,MVB,65-74,5401,Aids To Daily Living,Adult & Families
Blackpool Council,1060724,J A Dickens Property Developer,490998,BCH-1634,09/07/2018,362.8,0,MVB,65-74,5401,Aids To Daily Living,Adult & Families
Blackpool Council,1006196,Prism Medical Uk,491001,5269627,25/07/2018,1140,190,MVA,18-64,5401,Aids To Daily Living,Adult & Families
Blackpool Council,1060724,J A Dickens Property Developer,491002,BCH-1631,09/07/2018,301.11,0,MVB,65-74,5401,Aids To Daily Living,Adult & Families
Blackpool Council,1060724,J A Dickens Property Developer,491004,BCH-1632,09/07/2018,301.11,0,MVB,65-74,5401,Aids To Daily Living,Adult & Families
Blackpool Council,1060724,J A Dickens Property Developer,491005,BCH-1637,09/07/2018,362.8,0,MVB,65-74,5401,Aids To Daily Living,Adult & Families
Blackpool Council,1060724,J A Dickens Property Developer,491006,BCH-1638,09/07/2018,544.2,0,MVB,65-74,5401,Aids To Daily Living,Adult & Families
Blackpool Council,1060724,J A Dickens Property Developer,491007,NR TEL 477985,09/07/2018,362.8,0,MVB,65-74,5401,Aids To Daily Living,Adult & Families
Blackpool Council,1060724,J A Dickens Property Developer,491008,BCH-1609,09/07/2018,755.68,0,MVB,65-74,5401,Aids To Daily Living,Adult & Families
Blackpool Council,1063638,Pristine Hygiene,491009,4595,09/07/2018,383.1,63.85,APCBAA,Coopers Way,3408,Services To Clients,Adult & Families
Blackpool Council,1006940,Smiths Equipment Hire Ltd,491010,V07-610890,09/07/2018,2256,376,SCHEME,Highways Schemes,3041,Other Materials,Community & Env Services
Blackpool Council,1011868,W H Tarmacadam Limited,491011,5570,11/07/2018,20088,3348,SCHEME,Highways Schemes,1012,Premises Maint-Priv.Contractor,Community & Env Services
Blackpool Council,1006940,Smiths Equipment Hire Ltd,491012,V01-630191,10/07/2018,290.72,48.45,ENGINE,Engineering,3041,Other Materials,Community & Env Services
Blackpool Council,1011970,A1 Streamline Road Markings Ltd,491013,2969,12/07/2018,4227.55,704.59,SCHEME,Highways Schemes,1012,Premises Maint-Priv.Contractor,Community & Env Services
Blackpool Council,1013064,Tarmac Lafarge Trading Limited,491014,9038361786,25/07/2018,331.11,55.18,ENGINE,Engineering,3041,Other Materials,Community & Env Services
Blackpool Council,1013064,Tarmac Lafarge Trading Limited,491018,9038333934,20/07/2018,826.65,137.77,ENGINE,Engineering,3041,Other Materials,Community & Env Services
Blackpool Council,1013064,Tarmac Lafarge Trading Limited,491019,9038344042,20/07/2018,970.03,161.67,ENGINE,Engineering,3041,Other Materials,Community & Env Services
Blackpool Council,1013064,Tarmac Lafarge Trading Limited,491020,9038344044,20/07/2018,1014.63,169.1,ENGINE,Engineering,3041,Other Materials,Community & Env Services
Blackpool Council,1011714,Michael Hope Haulage Limited,491021,001348,09/07/2018,1632,272,SCHEME,Highways Schemes,1012,Premises Maint-Priv.Contractor,Community & Env Services
Blackpool Council,1090002,Auto Extract Systems Ltd,491029,37402,30/07/2018,840,140,PJHA,"Depot, Management & Admin",1141,Filtration Systems,Community & Env Services
Blackpool Council,1006196,Prism Medical Uk,491037,5269546,25/07/2018,419.38,69.9,MVA,18-64,5401,Aids To Daily Living,Adult & Families
Blackpool Council,1060724,J A Dickens Property Developer,491047,BCH-1629,09/07/2018,271.84,0,MVA,18-64,5401,Aids To Daily Living,Adult & Families
Blackpool Council,1115226,Baker Lomax & Shackley Ltd,491049,B1285,27/07/2018,2502,417,BCA,Corp And Member Services,3413,Consultants,Governance & Partnerships
Blackpool Council,1076555,Uk Container Maintenance Limited,491081,33296,30/07/2018,6432,1072,CWASTE,Commercial Waste,3041,Other Materials,Community & Env Services
Blackpool Council,1112621,Lk2 Sport & Leisure Ltd,491082,1477,17/07/2018,3600,600,PRKDEV,Parks Development,1012,Premises Maint-Priv.Contractor,Community & Env Services
Blackpool Council,1079128,Leaving Care Training & Consultancy Service,491083,T-07,27/07/2018,1798.9,299.82,VA0010,Vah Management & Admin,3413,Consultants,Children'S Services
Blackpool Council,1071928,Civica Uk Limited,491084,M/CM052529,30/07/2018,291.6,48.6,PARADM,Parking Administration,4501,Private Contractors,Budgets Outside Cash Limits
Blackpool Council,1091532,Westcliff Primary (Academy),491093,4000000064,10/07/2018,2233,0,OPAREA,Opportunity Areas,4515,Contract Services,Places
Blackpool Council,1101124,South Shore Academy,491094,SSSI 253,10/07/2018,19737,0,OPAREA,Opportunity Areas,4515,Contract Services,Places
Blackpool Council,1027764,Colins Travel,491097,BC/01/016JUN18,10/07/2018,1575,0,TRCHIL,Integrated Transport Childrens,4501,Private Contractors,Community & Env Services
Blackpool Council,1027764,Colins Travel,491098,BC/01/013JUN18,10/07/2018,1533,0,TRCHIL,Integrated Transport Childrens,4501,Private Contractors,Community & Env Services
Blackpool Council,1027764,Colins Travel,491099,BC/01/014JUN18,10/07/2018,1564.5,0,TRCHIL,Integrated Transport Childrens,4501,Private Contractors,Community & Env Services
Blackpool Council,1106094,Casson Mann Ltd,491100,2319,25/07/2018,2400,400,EC7011,Museum - Professional Fees,0981,Professional Fees,Places
Blackpool Council,1072848,Peter Rhodes,491101,BC/01/001JUN18,10/07/2018,1460,0,TRCHIL,Integrated Transport Childrens,4501,Private Contractors,Community & Env Services
Blackpool Council,1072848,Peter Rhodes,491102,BC/01/008JUN18,10/07/2018,1460,0,TRCHIL,Integrated Transport Childrens,4501,Private Contractors,Community & Env Services
Blackpool Council,1009234,Gary Roy Kirkham,491103,BC/02/018JUN18,10/07/2018,456,0,TRCHIL,Integrated Transport Childrens,4501,Private Contractors,Community & Env Services
Blackpool Council,1009234,Gary Roy Kirkham,491104,BC/44/002JUN18,10/07/2018,452,0,TRADUL,Integrated Transport Adults,4501,Private Contractors,Community & Env Services
Blackpool Council,1051299,Leisure Travel,491105,BC/72/002JUN18,10/07/2018,1800,0,TRCHIL,Integrated Transport Childrens,2201,Contract Hire,Community & Env Services
Blackpool Council,1051299,Leisure Travel,491106,BC/01/002JUN18,10/07/2018,1600,0,TRCHIL,Integrated Transport Childrens,4501,Private Contractors,Community & Env Services
Blackpool Council,1051299,Leisure Travel,491107,BC/01/024JUN18,10/07/2018,1600,0,TRCHIL,Integrated Transport Childrens,4501,Private Contractors,Community & Env Services
Blackpool Council,1051299,Leisure Travel,491108,BC/42/003JUN18,10/07/2018,2160,0,TRADUL,Integrated Transport Adults,4501,Private Contractors,Community & Env Services
Blackpool Council,1051299,Leisure Travel,491109,BC/01/025JUN18,10/07/2018,1280,0,TRCHIL,Integrated Transport Childrens,4501,Private Contractors,Community & Env Services
Blackpool Council,1091050,Howard Palmer T/A Trojan Travel,491110,BC/02/002JUN18,10/07/2018,1805,0,TRCHIL,Integrated Transport Childrens,4501,Private Contractors,Community & Env Services
Blackpool Council,1114704,Morson Human Resources Ltd,491114,HS183330,11/07/2018,2376,396,CTAHHA,Tramway Emergency Works,6506,Consultants Fees,Capital - Comm & Environ
Blackpool Council,1112449,Castle Cases Ltd,491123,10129,13/07/2018,450,75,MUSIC,Music & Cultural Education,3008,Educational Equipment,Children'S Services
Blackpool Council,1006269,W.F. Howes Ltd,491124,2200,10/07/2018,1498,0,LBB,Central Library,3304,Books And Periodicals,Places
Blackpool Council,1006269,W.F. Howes Ltd,491125,2199,10/07/2018,1174.8,195.8,LBB,Central Library,3304,Books And Periodicals,Places
Blackpool Council,1096460,Mwuk Limited T/A Alexandra,491131,OLSINV/05042101,16/07/2018,519.3,86.55,HOMECA,Homecare,3201,Clothing & Uniforms,Adult & Families
Blackpool Council,1006944,Siemens Financial Services Ltd,491137,244/18/0216620,18/07/2018,2579.68,429.94,APFBAB,Vitaline,4501,Private Contractors,Adult & Families
Blackpool Council,1018184,Blackpool Skip Hire,491140,5639,25/07/2018,3091.5,515.25,DOMPFI,Domestic Waste & Waste Pfi,4514,Contract 'E',Community & Env Services
Blackpool Council,1018184,Blackpool Skip Hire,491141,5638,11/07/2018,16362,2727,CWASTE,Commercial Waste,4514,Contract 'E',Community & Env Services
Blackpool Council,1018184,Blackpool Skip Hire,491142,5637,11/07/2018,7061.5,1176.92,CWASTE,Commercial Waste,4514,Contract 'E',Community & Env Services
Blackpool Council,1051299,Leisure Travel,491143,BC/72/002JUN18,11/07/2018,280,0,TRCHIL,Integrated Transport Childrens,2201,Contract Hire,Community & Env Services
Blackpool Council,1106204,Uktram Ltd,491145,UKT2018/107,11/07/2018,3708,618,CTAHHI,Tramway Extention,6518,Miscellaneous - Capital,Capital - Comm & Environ
Blackpool Council,1116219,Art Skateparks Ltd,491146,0069-BC/01,11/07/2018,8500,0,PRKOP1,Parks Operational Manager  1,1012,Premises Maint-Priv.Contractor,Community & Env Services
Blackpool Council,1009166,Glasdon Uk Ltd,491150,754381,24/07/2018,1068.3,0,ZM0018,Highways & Engineering,9773,Orders Received Not Invoiced,Blackpool Services
Blackpool Council,1009166,Glasdon Uk Ltd,491150,754381,24/07/2018,1281.96,213.66,ZM0018,Highways & Engineering,9511A,Stocks Efin,Blackpool Services
Blackpool Council,1009751,Bt Business Direct Limited,491153,IN04145084,11/07/2018,720.04,120,CCTV,Cctv,3003,Equipt-Mtce Repairs,Public Health
Blackpool Council,1110996,Philip Holmes T/A Dragon Creative,491161,BC0010,11/07/2018,2365.12,0,PJW,Management - Places - Illumina,3413,Consultants,Places
Blackpool Council,1011806,A D J Doors Ltd T/A Keman,491166,6696,11/07/2018,1356,226,SCLEAN,Street Cleaning,4501,Private Contractors,Community & Env Services
Blackpool Council,1042794,Carlton Fuels Limited,491197,9983922,11/07/2018,17508.51,0,ZF0001,"Insurance,Dso,Banking",9773,Orders Received Not Invoiced,Total Reconciliations
Blackpool Council,1042794,Carlton Fuels Limited,491197,9983922,11/07/2018,21010.21,3501.7,ZF0001,"Insurance,Dso,Banking",9511A,Stocks Efin,Total Reconciliations
Blackpool Council,1086015,928 Multimedia,491201,20180423,11/07/2018,284,0,PRB,Events,3401,General Services,Places
Blackpool Council,1019622,Stephen  Floweth,491202,BC/02/011JUN18,11/07/2018,836,0,TRCHIL,Integrated Transport Childrens,4501,Private Contractors,Community & Env Services
Blackpool Council,1019622,Stephen  Floweth,491203,BC/02/004JUN18,11/07/2018,855,0,TRCHIL,Integrated Transport Childrens,4501,Private Contractors,Community & Env Services
Blackpool Council,1019622,Stephen  Floweth,491204,BC/01/010JUN18,11/07/2018,798,0,TRCHIL,Integrated Transport Childrens,4501,Private Contractors,Community & Env Services
Blackpool Council,1056554,Indigo Promotions Limited,491211,8143,26/07/2018,1674,279,EYT,Early Years Team,3806,Advertising-General,Children'S Services
Blackpool Council,1116163,The Frazer Company(Plastics) Ltd,491216,INV-15460-J7020,26/07/2018,847.2,141.2,AHG,Art Gallery Summary,3456,Payment To Artists,Places
Blackpool Council,1017722,Terrys Carpets,491217,TC180302,16/07/2018,349.2,58.2,FC1802,Social Fund - Client,5210,Community Care Support,Resources
Blackpool Council,1009906,Combined Precision Components Plc Cpc,491219,8280666,16/07/2018,551.54,91.92,FMAK,Acquisitions 9/10,1131,Electrical Equipment - Repairs,Places
Blackpool Council,1095165,Tower Learning Centre Ltd,491227,290-665,11/07/2018,1996.8,332.8,EDDIV,Education Diversity,4101,Other Local Authorities,Children'S Services
Blackpool Council,1000009,Blackpool & The Fylde College,491228,S0019586,11/07/2018,485,0,EDDIV,Education Diversity,4101,Other Local Authorities,Children'S Services
Blackpool Council,1107019,Axiell Alm Ltd,491229,806648,27/07/2018,2363.33,393.89,AHH,Heritage,3532,Comp-Running & License Costs,Places
Blackpool Council,1099546,Park Community Academy,491232,PCA081,11/07/2018,4931,0,OPAREA,Opportunity Areas,4515,Contract Services,Places
Blackpool Council,1008423,Lancaster University,491233,8679332,25/07/2018,640,0,PDBA,Private Sector Housing,3605,Confs & Short Courses,Community & Env Services
Blackpool Council,1085614,James Raffan T/A Lancashire Marquee Hire,491237,100547,11/07/2018,550,0,PRB,Events,3006,Hire Of Equipment,Places
Blackpool Council,1085614,James Raffan T/A Lancashire Marquee Hire,491238,100548,11/07/2018,1265,0,PRB,Events,3009,Equipment - Storm Damage,Places
Blackpool Council,1110398,Tfs Int Limited,491240,1001819,27/07/2018,3720,620,PRB,Events,3006,Hire Of Equipment,Places
Blackpool Council,1007864,Norbreck Castle Hotel,491242,722-206717,25/07/2018,768,128,PRB,Events,1704,Bed & Breakfast Accomm.,Places
Blackpool Council,1103450,Blackpool Entertainment Company Limited,491245,INV003701,13/07/2018,750,125,SBOARD,Springboard,1702,Hire Of Meeting Rooms,Children'S Services
Blackpool Council,1075164,G4s Secure Solutions (Uk) Ltd,491266,90290999,30/07/2018,21349.12,3558.19,FMAB,Commercial Propereties,3418,Security Services,Resources
Blackpool Council,1010090,Vodafone Limited,491267,UK10/0720183124,13/07/2018,4233.13,705.52,FGAA,Ict Corporate Services,3527,Communication Lines,Resources
Blackpool Council,1006986,Shorrock Trichem Limited,491268,1243117,26/07/2018,274.87,45.81,LEISUR,Leisure Management,1608,Other Cleaning Works,Community & Env Services
Blackpool Council,1106616,Boingboing Resilience Cic,491273,427,27/07/2018,15550,2591.67,HS0003,Headstart Commissioning,3401,General Services,Children'S Services
Blackpool Council,1114664,REDACTED PERSONAL DATA,491274,007,11/07/2018,2080,0,HS0005,Whole School Approach,0911,Training Expenses,Children'S Services
Blackpool Council,1053191,Veolia Es (Uk) Limited,491275,OP/I527140,13/07/2018,396556.84,66092.81,DOMPFI,Domestic Waste & Waste Pfi,4501,Private Contractors,Community & Env Services
Blackpool Council,1116156,Acorn Scaffolding (Yorkshire) Ltd,491279,136587,12/07/2018,17754,2959,PRB,Events,3401,General Services,Places
Blackpool Council,1113460,Sureline Installations,491281,70,13/07/2018,425,0,CX4005,Care & Repair Grants,6502,Grants & Advances,Capital - Adult Social Care
Blackpool Council,1023846,Dennis Eagle Ltd,491282,329790,17/07/2018,1494,249,CWASTE,Commercial Waste,4501,Private Contractors,Community & Env Services
Blackpool Council,1103112,Brethertons Goldline Tours Ltd,491283,INV-0052,13/07/2018,880,0,PRB,Events,3401,General Services,Places
Blackpool Council,1011970,A1 Streamline Road Markings Ltd,491288,2984,24/07/2018,840,140,TRB,Maintenance & Works,4501,Private Contractors,Community & Env Services
Blackpool Council,1006196,Prism Medical Uk,491289,5270480,27/07/2018,8352,1392,MTE,Undefined Age Group,3006,Hire Of Equipment,Adult & Families
Blackpool Council,1006944,Siemens Financial Services Ltd,491300,244/18/0218263,20/07/2018,3830.69,638.44,APFBAB,Vitaline,4501,Private Contractors,Adult & Families
Blackpool Council,1008525,Kingswood Office Supplies Limited,491301,324362,19/07/2018,402.53,67.09,APDBBB,Arc,3201,Clothing & Uniforms,Adult & Families
Blackpool Council,1011995,Technical & Electrical Services Ltd,491303,ES 17312,13/07/2018,548.46,91.41,MVB,65-74,5401,Aids To Daily Living,Adult & Families
Blackpool Council,1011779,Northern Security National Limited,491307,21718,12/07/2018,453.6,75.6,PRB,Events,3418,Security Services,Places
Blackpool Council,1011779,Northern Security National Limited,491309,21716,12/07/2018,680.4,113.4,PRB,Events,3418,Security Services,Places
Blackpool Council,1011779,Northern Security National Limited,491310,21717,12/07/2018,302.4,50.4,PRB,Events,3418,Security Services,Places
Blackpool Council,1017525,Lancashire Outdoor Activities Initiative,491311,INV-1953,12/07/2018,2888.63,0,HS0007,Young People & Comm'Y Engagemt,3601,Subsistence,Children'S Services
Blackpool Council,1010667,Argos Business Solutions Ltd,491355,01669570,20/07/2018,515.33,85.79,FC1802,Social Fund - Client,5210,Community Care Support,Resources
Blackpool Council,1035219,Imaginative Minds Ltd,491356,522756,18/07/2018,510,85,EDDIV,Education Diversity,3532,Comp-Running & License Costs,Children'S Services
Blackpool Council,1006196,Prism Medical Uk,491362,8885124,27/07/2018,5023.26,837.21,MTE,Undefined Age Group,5401,Aids To Daily Living,Adult & Families
Blackpool Council,1078418,Lisclare Limited,491364,SINV03081983,12/07/2018,2478.36,413.06,MTE,Undefined Age Group,5401,Aids To Daily Living,Adult & Families
Blackpool Council,1060135,Happy Creative Ltd,491366,H4606,12/07/2018,474,79,PU0001,Public Health Team,4501,Private Contractors,Public Health
Blackpool Council,1060135,Happy Creative Ltd,491367,H4602,25/07/2018,378,63,PU0001,Public Health Team,4501,Private Contractors,Public Health
Blackpool Council,1006683,Tameside Mbc,491369,61840830,12/07/2018,8520,1420,FGAA,Ict Corporate Services,3711,Subscriptions,Resources
Blackpool Council,1005071,Blackpool Transport Services Limited,491391,MARCH2018,12/07/2018,1660.64,0,OTHL,Other Learning,2201,Contract Hire,Children'S Services
Blackpool Council,1005071,Blackpool Transport Services Limited,491392,FEBRUARY2018,12/07/2018,1311.82,0,OTHL,Other Learning,2201,Contract Hire,Children'S Services
Blackpool Council,1060760,Hfma,491393,NATINV10660,12/07/2018,406.8,67.8,AEM,Property Services Managements,3605,Confs & Short Courses,Resources
Blackpool Council,1101771,Ati Environment Uk Ltd,491400,ATI130618,12/07/2018,4141.2,690.2,CEMCRE,Cems Crems Etc,1111,Cremators,Governance & Partnerships
Blackpool Council,1116270,Paul Barns T/A We Are Brave,491401,INV-01103,17/07/2018,12000,2000,BSTPRJ,Better Start Projects,3401,General Services,Better Start Projects
Blackpool Council,1098105,Brightprint Ltd(Non Factor Payments Only),491421,26291,20/07/2018,474,79,TRC,Travel & Safety,4501,Private Contractors,Community & Env Services
Blackpool Council,1115939,REDACTED PERSONAL DATA,491427,22,25/07/2018,2500,0,EC7011,Museum - Professional Fees,0981,Professional Fees,Places
Blackpool Council,1116370,Malcolm Fryer Architects Ltd,491428,BP054/005,17/07/2018,540,90,FMAK,Acquisitions 9/10,3801,Other Expenses,Places
Blackpool Council,1090236,C & J Inspection Services Limited,491429,864,17/07/2018,5976,996,FMAK,Acquisitions 9/10,1131,Electrical Equipment - Repairs,Places
Blackpool Council,1115478,Mickledore Ltd,491430,1649,26/07/2018,15000,2500,HJA,Growth,0981,Professional Fees,Places
Blackpool Council,1106993,Cypad Ltd,491431,67338,31/07/2018,10488,1748,CATERG,Catering Services,3532,Comp-Running & License Costs,Community & Env Services
Blackpool Council,1018184,Blackpool Skip Hire,491435,006737,16/07/2018,888.24,148.04,PJHA,"Depot, Management & Admin",3041,Other Materials,Community & Env Services
Blackpool Council,1102627,Fresh Pastures Processing Ltd,491437,BLACKPOOL300618,19/07/2018,553.26,0,CATERG,Catering Services,3101,Provisions,Community & Env Services
Blackpool Council,1112992,Key To Independence Ltd,491445,KT200618/HORSEB,16/07/2018,264.5,0,CXAAA,Local Authority Dwellings,6501,Contract Payments,Capital - Places
Blackpool Council,1026811,Stannah Lift Services Ltd,491446,S085090426,16/07/2018,12852,0,CX4002,Disabled Facilities Grants,6501,Contract Payments,Capital - Adult Social Care
Blackpool Council,1006196,Prism Medical Uk,491447,5269668,25/07/2018,1511,0,CX4002,Disabled Facilities Grants,6501,Contract Payments,Capital - Adult Social Care
Blackpool Council,1006196,Prism Medical Uk,491448,5267412,16/07/2018,2052,0,CX4002,Disabled Facilities Grants,6501,Contract Payments,Capital - Adult Social Care
Blackpool Council,1108975,Ups Building & Maintenance Ltd,491450,8822,16/07/2018,3489.55,0,CX4002,Disabled Facilities Grants,6501,Contract Payments,Capital - Adult Social Care
Blackpool Council,1108975,Ups Building & Maintenance Ltd,491451,9089,16/07/2018,570,0,CX4002,Disabled Facilities Grants,6501,Contract Payments,Capital - Adult Social Care
Blackpool Council,1108975,Ups Building & Maintenance Ltd,491452,8816,16/07/2018,3514.55,0,CX4002,Disabled Facilities Grants,6501,Contract Payments,Capital - Adult Social Care
Blackpool Council,1108975,Ups Building & Maintenance Ltd,491453,9169,16/07/2018,1025,0,CX4002,Disabled Facilities Grants,6501,Contract Payments,Capital - Adult Social Care
Blackpool Council,1092793,Rh Environmental Ltd T/A Rhe Global,491454,14756,16/07/2018,768.96,128.16,PDBA,Private Sector Housing,3605,Confs & Short Courses,Community & Env Services
Blackpool Council,1051299,Leisure Travel,491455,BC/01/002MAY18,12/07/2018,1440,0,TRCHIL,Integrated Transport Childrens,4501,Private Contractors,Community & Env Services
Blackpool Council,1008865,Intrak,491496,BBC/0107,16/07/2018,2760,460,PRB,Events,3006,Hire Of Equipment,Places
Blackpool Council,1096764,Webeye Limited,491499,2840,13/07/2018,334.8,55.8,CCTV,Cctv,3006,Hire Of Equipment,Public Health
Blackpool Council,1006143,Yorkshire Purchasing Organisation,491501,231265987,19/07/2018,316.8,52.8,EDDIV,Education Diversity,3008,Educational Equipment,Children'S Services
Blackpool Council,1092524,Dwf Llp,491503,1971229,13/07/2018,2534.4,422.4,FK1006,Head Of Workforce & Org Dev,0911,Training Expenses,Chief Executive
Blackpool Council,1098890,The Rabbit Patch Limited,491509,6268,17/07/2018,624,104,PJW,Management - Places - Illumina,3806,Advertising-General,Places
Blackpool Council,1109502,Llewelyn-Bowen Design Associates Ltd,491511,072018,17/07/2018,344.1,57.35,PJG,Schemes - Places,2302,Rail Fares,Places
Blackpool Council,1109814,Nickelodeon Uk Limited,491516,1800000343,18/07/2018,120000,20000,PRD,Switch On,3401,General Services,Places
Blackpool Council,1109814,Nickelodeon Uk Limited,491517,1800000342,18/07/2018,174720,29120,PRB,Events,3401,General Services,Places
Blackpool Council,1010830,Ace Radio Cabs Limited,491523,BC/63/008JUN18,16/07/2018,1184,0,TRCHIL,Integrated Transport Childrens,4501,Private Contractors,Community & Env Services
Blackpool Council,1010830,Ace Radio Cabs Limited,491524,BC/42/002JUN18,16/07/2018,992,0,TRADUL,Integrated Transport Adults,4501,Private Contractors,Community & Env Services
Blackpool Council,1010830,Ace Radio Cabs Limited,491525,BC/01/043JUN18,16/07/2018,1280,0,TRCHIL,Integrated Transport Childrens,4501,Private Contractors,Community & Env Services
Blackpool Council,1012071,Bethell Construction Limited,491532,15363,30/07/2018,24759.83,4126.64,SCHEME,Highways Schemes,1012,Premises Maint-Priv.Contractor,Community & Env Services
Blackpool Council,1109327,Clean Break Ltd,491533,8561,27/07/2018,2028,338,SCHEME,Highways Schemes,1012,Premises Maint-Priv.Contractor,Community & Env Services
Blackpool Council,1011714,Michael Hope Haulage Limited,491534,001349,16/07/2018,1536,256,SCHEME,Highways Schemes,1012,Premises Maint-Priv.Contractor,Community & Env Services
Blackpool Council,1113651,Vmr Training Ltd,491535,2153,18/07/2018,672,112,SCHEME,Highways Schemes,1012,Premises Maint-Priv.Contractor,Community & Env Services
Blackpool Council,1012071,Bethell Construction Limited,491536,15338,16/07/2018,3516.92,586.15,ENGINE,Engineering,1012,Premises Maint-Priv.Contractor,Community & Env Services
Blackpool Council,1012071,Bethell Construction Limited,491537,15341,16/07/2018,2302.73,383.79,ENGINE,Engineering,1012,Premises Maint-Priv.Contractor,Community & Env Services
Blackpool Council,1012071,Bethell Construction Limited,491538,15331,16/07/2018,1612.39,268.73,ENGINE,Engineering,1012,Premises Maint-Priv.Contractor,Community & Env Services
Blackpool Council,1012071,Bethell Construction Limited,491539,15330,16/07/2018,2518.22,419.7,ENGINE,Engineering,1012,Premises Maint-Priv.Contractor,Community & Env Services
Blackpool Council,1012071,Bethell Construction Limited,491540,15329,16/07/2018,1756.16,292.69,ENGINE,Engineering,1012,Premises Maint-Priv.Contractor,Community & Env Services
Blackpool Council,1012071,Bethell Construction Limited,491541,15332,16/07/2018,1687.19,281.2,ENGINE,Engineering,1012,Premises Maint-Priv.Contractor,Community & Env Services
Blackpool Council,1012071,Bethell Construction Limited,491542,15333,16/07/2018,1352.22,225.37,ENGINE,Engineering,1012,Premises Maint-Priv.Contractor,Community & Env Services
Blackpool Council,1012071,Bethell Construction Limited,491543,15334,16/07/2018,1109.68,184.95,ENGINE,Engineering,1012,Premises Maint-Priv.Contractor,Community & Env Services
Blackpool Council,1012071,Bethell Construction Limited,491544,15335,16/07/2018,422.54,70.42,ENGINE,Engineering,1012,Premises Maint-Priv.Contractor,Community & Env Services
Blackpool Council,1012071,Bethell Construction Limited,491545,15336,16/07/2018,492.1,82.02,ENGINE,Engineering,1012,Premises Maint-Priv.Contractor,Community & Env Services
Blackpool Council,1012071,Bethell Construction Limited,491546,15337,16/07/2018,363.85,60.64,ENGINE,Engineering,1012,Premises Maint-Priv.Contractor,Community & Env Services
Blackpool Council,1012071,Bethell Construction Limited,491547,15339,16/07/2018,2270.23,378.37,ENGINE,Engineering,1012,Premises Maint-Priv.Contractor,Community & Env Services
Blackpool Council,1012071,Bethell Construction Limited,491548,15340,16/07/2018,1262.17,210.36,ENGINE,Engineering,1012,Premises Maint-Priv.Contractor,Community & Env Services
Blackpool Council,1008817,Radio J  Cabs,491554,515334,16/07/2018,2444.1,0,INTRAD,Integrated Transport Admin,2201,Contract Hire,Community & Env Services
Blackpool Council,1008817,Radio J  Cabs,491555,515336,16/07/2018,3088.28,0,TRCHIL,Integrated Transport Childrens,2201,Contract Hire,Community & Env Services
Blackpool Council,1008817,Radio J  Cabs,491556,515333,16/07/2018,3044.47,0,INTRAD,Integrated Transport Admin,2201,Contract Hire,Community & Env Services
Blackpool Council,1013064,Tarmac Lafarge Trading Limited,491559,9038379555,27/07/2018,7427.72,1237.95,ENGINE,Engineering,3041,Other Materials,Community & Env Services
Blackpool Council,1040498,Savoy Timber Ltd,491560,132917,19/07/2018,454.5,75.75,CEMCRE,Cems Crems Etc,3408,Services To Clients,Governance & Partnerships
Blackpool Council,1044156,Pell Frischmann,491562,W18 0273,16/07/2018,4711.24,785.21,CTBRAA,Bridges (Growth Fund),6501,Contract Payments,Capital - Comm & Environ
Blackpool Council,1116132,REDACTED PERSONAL DATA,491570,2,19/07/2018,2500,0,AHHBA,Blackpool Museum,0981,Professional Fees,Places
Blackpool Council,1011369,Lancashire County Council,491573,5200166951,16/07/2018,59565,0,FR5001,Concessionary Fares,3401,General Services,Budgets Outside Cash Limits
Blackpool Council,1011369,Lancashire County Council,491574,5200166949,16/07/2018,262,0,FR5001,Concessionary Fares,3401,General Services,Budgets Outside Cash Limits
Blackpool Council,1011369,Lancashire County Council,491576,5200166823,16/07/2018,1629,0,FR5001,Concessionary Fares,3401,General Services,Budgets Outside Cash Limits
Blackpool Council,1011369,Lancashire County Council,491577,5200166827,16/07/2018,286743,0,FR5001,Concessionary Fares,3401,General Services,Budgets Outside Cash Limits
Blackpool Council,1006196,Prism Medical Uk,491645,5264135,16/07/2018,920.67,153.45,MVB,65-74,5401,Aids To Daily Living,Adult & Families
Blackpool Council,1049385,Fylde Coast Ymca,491647,9670,16/07/2018,1008,168,FK0071,Corporate Training,0911,Training Expenses,Chief Executive
Blackpool Council,1049385,Fylde Coast Ymca,491648,9668,16/07/2018,882,147,FK0071,Corporate Training,0911,Training Expenses,Chief Executive
Blackpool Council,1049385,Fylde Coast Ymca,491649,9674,16/07/2018,1296,216,FK0071,Corporate Training,0911,Training Expenses,Chief Executive
Blackpool Council,1009300,Fylde Coast Women'S Aid,491651,04,19/07/2018,300,0,JA0505,Children'S Training,0911,Training Expenses,Children'S Services
Blackpool Council,1053592,Tfs Training Consultants Ltd,491653,952,19/07/2018,660,110,FK0071,Corporate Training,0911,Training Expenses,Chief Executive
Blackpool Council,1006196,Prism Medical Uk,491654,5264139,16/07/2018,789.71,131.62,CXAAA,Local Authority Dwellings,6501,Contract Payments,Capital - Places
Blackpool Council,1101279,Greenpass Training,491658,270601,27/07/2018,395,0,LNOUCL,Learning Outside The Classroom,5555,Educational Support,Children'S Services
Blackpool Council,1012116,Commercial Kitchen Services Ltd,491664,86988,20/07/2018,265.92,44.32,APDBBB,Arc,3408,Services To Clients,Adult & Families
Blackpool Council,1011369,Lancashire County Council,491665,5200168065,16/07/2018,1476,0,FR5001,Concessionary Fares,3401,General Services,Budgets Outside Cash Limits
Blackpool Council,1010300,Blacktax Radio Taxis T/A Blackpool Courier,491666,BC/01/009JUN18,16/07/2018,1000,0,TRCHIL,Integrated Transport Childrens,4501,Private Contractors,Community & Env Services
Blackpool Council,1008817,Radio J  Cabs,491667,BC/04/002JUN18,16/07/2018,720,0,TRCHIL,Integrated Transport Childrens,4501,Private Contractors,Community & Env Services
Blackpool Council,1008817,Radio J  Cabs,491668,BC/27/004JUN18,16/07/2018,330,0,TRCHIL,Integrated Transport Childrens,4501,Private Contractors,Community & Env Services
Blackpool Council,1008817,Radio J  Cabs,491669,BC/58/001JUN18,16/07/2018,1160,0,TRCHIL,Integrated Transport Childrens,4501,Private Contractors,Community & Env Services
Blackpool Council,1009755,D Kirkham,491670,BC/25/001JUN18,16/07/2018,696,0,TRCHIL,Integrated Transport Childrens,2201,Contract Hire,Community & Env Services
Blackpool Council,1031983,Olympic Lock & Safeguards Ltd,491678,6956,17/07/2018,1181.28,196.88,SCLEAN,Street Cleaning,3041,Other Materials,Community & Env Services
Blackpool Council,1080418,Skv Communications Limited,491682,61722,31/07/2018,1980,330,CGTBBB,Conference Centre,6501,Contract Payments,Capital - Places
Blackpool Council,1008141,Martin Brown Paints Ltd,491683,HCO025135,20/07/2018,955.73,159.29,SCHEME,Highways Schemes,4501,Private Contractors,Community & Env Services
Blackpool Council,1018184,Blackpool Skip Hire,491699,007547,18/07/2018,340.56,56.76,ENGINE,Engineering,1012,Premises Maint-Priv.Contractor,Community & Env Services
Blackpool Council,1087953,Blackpool Local Education Partnership Ltd,491709,SI10020,17/07/2018,10825.98,1804.33,EM1028,St Marys,4515,Contract Services,Children'S Services
Blackpool Council,1008454,Police & Crime Commissioner For Lancashire,491710,7500009805,17/07/2018,11500,0,EDDIV,Education Diversity,3413,Consultants,Children'S Services
Blackpool Council,1009079,Pearson Education Ltd,491711,170367-Z1807,17/07/2018,471.2,0,EDDIV,Education Diversity,3404,Exam Fees & Exps (Sch),Children'S Services
Blackpool Council,1009079,Pearson Education Ltd,491712,ITG461_VOC,17/07/2018,527.1,0,EDDIV,Education Diversity,3404,Exam Fees & Exps (Sch),Children'S Services
Blackpool Council,1094424,The Networking People,491716,SI105257,30/07/2018,22840.94,3806.82,FGAA,Ict Corporate Services,3532,Comp-Running & License Costs,Resources
Blackpool Council,1114704,Morson Human Resources Ltd,491718,HS184390,18/07/2018,2376,396,CTAHHA,Tramway Emergency Works,6506,Consultants Fees,Capital - Comm & Environ
Blackpool Council,1094424,The Networking People,491720,SI105265,30/07/2018,12259.88,2043.31,FGAA,Ict Corporate Services,3527,Communication Lines,Resources
Blackpool Council,1096596,Highfield Pfi Spv Ltd,491721,SI10019,17/07/2018,384617.71,64102.95,EM1029,Highfield Pfi,4515,Contract Services,Children'S Services
Blackpool Council,1096596,Highfield Pfi Spv Ltd,491721,SI10019,17/07/2018,10131.06,1688.51,EM1029,Highfield Pfi,1202,Electricity,Children'S Services
Blackpool Council,1009009,Hermolle Associates Ltd,491723,9494,17/07/2018,348,58,CXB01,Hra Capital Programme 2011/12,6506,Consultants Fees,Capital - Places
Blackpool Council,1008817,Radio J  Cabs,491724,515354,17/07/2018,3333.79,0,EDDIV,Education Diversity,2201,Contract Hire,Children'S Services
Blackpool Council,1006292,Vodafone Corporate Ltd,491726,LE99270,27/07/2018,546,91,FGAA,Ict Corporate Services,3531,Computer-H'Ware Purchase,Resources
Blackpool Council,1006292,Vodafone Corporate Ltd,491727,LF16065,27/07/2018,276,46,FGAA,Ict Corporate Services,3531,Computer-H'Ware Purchase,Resources
Blackpool Council,1006292,Vodafone Corporate Ltd,491729,LE89326,26/07/2018,546,91,FGAA,Ict Corporate Services,3531,Computer-H'Ware Purchase,Resources
Blackpool Council,1013064,Tarmac Lafarge Trading Limited,491771,9038352863,20/07/2018,699.02,116.5,ENGINE,Engineering,3041,Other Materials,Community & Env Services
Blackpool Council,1116397,Target Training Associates Ltd,491774,1328,17/07/2018,834,139,FK0071,Corporate Training,0911,Training Expenses,Chief Executive
Blackpool Council,1049385,Fylde Coast Ymca,491775,9707,20/07/2018,840,140,FK0071,Corporate Training,0911,Training Expenses,Chief Executive
Blackpool Council,1085637,Safespaces (Cornholme) Ltd,491777,INV-7359,17/07/2018,3478.8,579.8,JEA,Senior Management,5507,Personal,Children'S Services
Blackpool Council,1090236,C & J Inspection Services Limited,491778,866,25/07/2018,3840,640,FMAK,Acquisitions 9/10,1131,Electrical Equipment - Repairs,Places
Blackpool Council,1011121,Fylde Coast Gate Ltd,491779,27883,23/07/2018,5182.8,863.8,CWASTE,Commercial Waste,4514,Contract 'E',Community & Env Services
Blackpool Council,1105990,Fylde Environmental Services Ltd,491780,BC/244/2018,20/07/2018,2407,0,SCLEAN,Street Cleaning,4501,Private Contractors,Community & Env Services
Blackpool Council,1011369,Lancashire County Council,491785,5200167980,17/07/2018,2220,0,EDDIV,Education Diversity,3303,Games/Visits,Children'S Services
Blackpool Council,1089812,Rider Levett Bucknall Uk Limited,491817,118657,18/07/2018,960,160,PV7010,Create Loan,3413,Consultants,Budgets Outside Cash Limits
Blackpool Council,1099469,Blackpool Gateway Academy,491822,5000000008,30/07/2018,4333,0,OPAREA,Opportunity Areas,4515,Contract Services,Places
Blackpool Council,1107405,Winterburn Media Limited,491830,00016232,18/07/2018,360,60,PBF,Communications,3806,Advertising-General,Chief Executive
Blackpool Council,1006940,Smiths Equipment Hire Ltd,491837,V11-634412,26/07/2018,444,74,CCTV,Cctv,3426,Course Fees,Public Health
Blackpool Council,1012096,St Mary'S Catholic Academy,491838,0000000093,18/07/2018,18129,0,OPAREA,Opportunity Areas,4515,Contract Services,Places
Blackpool Council,1114521,Therichworks.Co.Uk,491840,R1052,18/07/2018,329.15,0,TRB,Maintenance & Works,4501,Private Contractors,Community & Env Services
Blackpool Council,1011714,Michael Hope Haulage Limited,491845,001350,18/07/2018,1920,320,SCHEME,Highways Schemes,1012,Premises Maint-Priv.Contractor,Community & Env Services
Blackpool Council,1025748,Johnson Training,491846,1641,24/07/2018,2100,350,LEISUR,Leisure Management,3426,Course Fees,Community & Env Services
Blackpool Council,1106471,Mayne Special Needs,491888,MSN-BES325,19/07/2018,300,0,MTE,Undefined Age Group,5401,Aids To Daily Living,Adult & Families
Blackpool Council,1086714,Liveasy Ltd,491891,BK0433A,19/07/2018,22273.76,3712.29,MTE,Undefined Age Group,5401,Aids To Daily Living,Adult & Families
Blackpool Council,1086714,Liveasy Ltd,491892,BK0433B,19/07/2018,20152.24,3358.71,MTE,Undefined Age Group,5401,Aids To Daily Living,Adult & Families
Blackpool Council,1086714,Liveasy Ltd,491893,BK0433C,19/07/2018,10753.92,1792.32,MTE,Undefined Age Group,5401,Aids To Daily Living,Adult & Families
Blackpool Council,1078779,Tesco Stores Limited - Gift Card,491895,TFB138,19/07/2018,800,0,JEA,Senior Management,5507,Personal,Children'S Services
Blackpool Council,1110091,REDACTED PERSONAL DATA,491897,1606OR,19/07/2018,378,0,EDDIV,Education Diversity,3201,Clothing & Uniforms,Children'S Services
Blackpool Council,1097930,Bcs Learning & Developement Limited,491899,INV56541,31/07/2018,1102.5,183.75,ALEARN,Adult Learning,3711,Subscriptions,Places
Blackpool Council,1107238,Jigsaw Medical Services Ltd,491902,19431,24/07/2018,322.49,53.75,AHM,Arts Miscellaneous,3819,Events Support,Places
Blackpool Council,1090661,Genecon Limited,491904,GEN989H,30/07/2018,3690,615,MPB,Edc - Economic Dev Company,3413,Consultants,Places
Blackpool Council,1085660,Bisset Adams Ltd,491906,07285,30/07/2018,17282.28,2880.38,FMAK,Acquisitions 9/10,3801,Other Expenses,Places
Blackpool Council,1115803,Richard Barber & Company,491908,18-6063,30/07/2018,384,64,MPB,Edc - Economic Dev Company,3801,Other Expenses,Places
Blackpool Council,1019773,"Bradshaw Electric Vehs, John Bradshaw Ltd",491929,108307,24/07/2018,432,72,SCLEAN,Street Cleaning,4501,Private Contractors,Community & Env Services
Blackpool Council,1019773,"Bradshaw Electric Vehs, John Bradshaw Ltd",491930,108308,24/07/2018,542.83,90.47,SCLEAN,Street Cleaning,4501,Private Contractors,Community & Env Services
Blackpool Council,1059387,Mediaprint Solutions Ltd,491938,10630,19/07/2018,528,88,AHM,Arts Miscellaneous,3301,Printing,Places
Blackpool Council,1110600,REDACTED PERSONAL DATA,491939,069,19/07/2018,2400,0,AHM,Arts Miscellaneous,3819,Events Support,Places
Blackpool Council,1040364,Conlon Construction Ltd,491940,10384,19/07/2018,96369.53,16061.59,CGTABA,Spanish Hall & Cs Façade,6501,Contract Payments,Capital - Places
Blackpool Council,1040364,Conlon Construction Ltd,491940,10384,19/07/2018,2483.75,0,ZF0001,"Insurance,Dso,Banking",97B6,Retention Monies - Cap Trsfr,Total Reconciliations
Blackpool Council,1102330,Revoe Learning Academy Children'S Centre,491993,CC27,20/07/2018,853.2,0,ALEARN,Adult Learning,3801,Other Expenses,Places
Blackpool Council,1100372,Scheidt & Bachmann Uk Ltd,491999,S&B-GB210206,20/07/2018,756,126,PAROPE,Parking Operational,2002,Repairs And Maintenance,Budgets Outside Cash Limits
Blackpool Council,1008817,Radio J  Cabs,492021,515318,20/07/2018,2824.28,0,EDDIV,Education Diversity,2201,Contract Hire,Children'S Services
Blackpool Council,1009383,Sr8 Group Ltd,492023,24535,20/07/2018,300.58,50.09,BEACHP,Beach Patrol,3010,Safety Equipment,Places
Blackpool Council,1005071,Blackpool Transport Services Limited,492032,I0000636,27/07/2018,1130,0,PVA,Other External Funding,2301,Bus & Tram Fares,Places
Blackpool Council,1060135,Happy Creative Ltd,492034,H4617,20/07/2018,2028,338,PTA,Economic Development,3315,Marketing,Places
Blackpool Council,1106535,Buxton Press Ltd,492035,BP72812,24/07/2018,4414.68,0,PRA,Conferences,3301,Printing,Places
Blackpool Council,1014762,Evans Marquee Hire Ltd,492040,18423,23/07/2018,674.4,112.4,AHM,Arts Miscellaneous,3819,Events Support,Places
Blackpool Council,1115428,Goldray Limited,492043,102/18,20/07/2018,10369.8,1728.3,CEMCRE,Cems Crems Etc,1111,Cremators,Governance & Partnerships
Blackpool Council,1100491,Truecall Ltd,492045,TC-1806-1134,27/07/2018,2199.84,366.64,PYTA,Trading Standards,3001,Office Equipment Purchase,Community & Env Services
Blackpool Council,1088639,Browns Ctp Limited,492046,47950,24/07/2018,5736,956,PRG,Tourism General,3301,Printing,Places
Blackpool Council,1112583,The Electric Sunshine Project Cic,492050,TESPBL160718,26/07/2018,1500,0,AHM,Arts Miscellaneous,3819,Events Support,Places
Blackpool Council,1112583,The Electric Sunshine Project Cic,492051,TESPBL090718,26/07/2018,300,0,LBF,Library Management,3801,Other Expenses,Places
Blackpool Council,1104038,REDACTED PERSONAL DATA,492077,001/2018,27/07/2018,846,0,BEACHP,Beach Patrol,3605,Confs & Short Courses,Places
Blackpool Council,1010300,Blacktax Radio Taxis T/A Blackpool Courier,492099,BC/01/012JUN18,23/07/2018,1520,0,TRCHIL,Integrated Transport Childrens,4501,Private Contractors,Community & Env Services
Blackpool Council,1113794,Premier Advisory Group Limited,492100,BLA006,23/07/2018,16080,2680,OPAREA,Opportunity Areas,4515,Contract Services,Places
Blackpool Council,1030730,Springfield Methodist Church,492102,718,23/07/2018,666.66,0,FC1802,Social Fund - Client,5209,Crisis/Emergency Support,Resources
Blackpool Council,1103450,Blackpool Entertainment Company Limited,492106,INV003725,27/07/2018,900,150,JA0505,Children'S Training,0911,Training Expenses,Children'S Services
Blackpool Council,1084671,Autocross Euroshel Limited,492110,7800,31/07/2018,1128,188,TRC,Travel & Safety,4501,Private Contractors,Community & Env Services
Blackpool Council,1011369,Lancashire County Council,492115,5200169127,25/07/2018,3657.42,609.57,FK1006,Head Of Workforce & Org Dev,0911,Training Expenses,Chief Executive
Blackpool Council,1007917,Shared Lives Plus,492116,INV-17414,24/07/2018,270,0,APCBEA,Shared Lives,0911,Training Expenses,Adult & Families
Blackpool Council,1010314,Blackpool Grand Theatre,492118,AE365,24/07/2018,7680,1280,AHM,Arts Miscellaneous,3701,Grants,Places
Blackpool Council,1010300,Blacktax Radio Taxis T/A Blackpool Courier,492122,12456,23/07/2018,1300,0,TRCHIL,Integrated Transport Childrens,2201,Contract Hire,Community & Env Services
Blackpool Council,1010300,Blacktax Radio Taxis T/A Blackpool Courier,492124,12446,23/07/2018,1600,0,TRCHIL,Integrated Transport Childrens,2201,Contract Hire,Community & Env Services
Blackpool Council,1099469,Blackpool Gateway Academy,492126,5000000010,23/07/2018,2000,0,OPAREA,Opportunity Areas,4515,Contract Services,Places
Blackpool Council,1023478,Highfield Leadership Academy,492127,HLSI 253,24/07/2018,18350,0,OPAREA,Opportunity Areas,4515,Contract Services,Places
Blackpool Council,1102328,Revoe Learning Academy,492138,RLA050,23/07/2018,430,0,MNGMT,Central Management,5555,Educational Support,Children'S Services
Blackpool Council,1096486,Roseacre Primary Academy,492143,RPA/1116,23/07/2018,1020,0,MNGMT,Central Management,5555,Educational Support,Children'S Services
Blackpool Council,1096486,Roseacre Primary Academy,492144,RPA/1115,23/07/2018,360,0,MNGMT,Central Management,5555,Educational Support,Children'S Services
Blackpool Council,1110274,REDACTED PERSONAL DATA,492150,2,23/07/2018,2000,0,AHM,Arts Miscellaneous,3456,Payment To Artists,Places
Blackpool Council,1006586,H Jenkinson & Co Ltd,492151,SINV00805347,24/07/2018,250.84,41.81,AEB,Buildings,3020,Furniture - Purchase,Resources
Blackpool Council,1011970,A1 Streamline Road Markings Ltd,492155,3032,30/07/2018,976.63,162.77,PRKOP1,Parks Operational Manager  1,1012,Premises Maint-Priv.Contractor,Community & Env Services
Blackpool Council,1006586,H Jenkinson & Co Ltd,492211,SINV00812497,24/07/2018,2338.42,389.74,AEB,Buildings,3020,Furniture - Purchase,Resources
Blackpool Council,1099746,Unity Academy,492214,5100580,24/07/2018,430,0,MNGMT,Central Management,5555,Educational Support,Children'S Services
Blackpool Council,1090236,C & J Inspection Services Limited,492215,869,26/07/2018,544.81,90.8,FMAK,Acquisitions 9/10,1131,Electrical Equipment - Repairs,Places
Blackpool Council,1090236,C & J Inspection Services Limited,492216,868,25/07/2018,1391.57,231.93,FMAK,Acquisitions 9/10,1131,Electrical Equipment - Repairs,Places
Blackpool Council,1115907,Synergie Training Limited,492222,PI005031,24/07/2018,2634,439,FL1241,Travel & Safety Staff Costs,4501,Private Contractors,Community & Env Services
Blackpool Council,1115834,Eco-Event,492229,003-2018,24/07/2018,1250,0,AHM,Arts Miscellaneous,3006,Hire Of Equipment,Places
Blackpool Council,1110336,Gillian Fennel,492238,12,27/07/2018,3500,0,EDDIV,Education Diversity,3413,Consultants,Children'S Services
Blackpool Council,1089076,Preston It Ltd,492248,00127,27/07/2018,600,0,EDDIV,Education Diversity,3412,Therapeutic Work,Children'S Services
Blackpool Council,1006576,The Helping Hand Company Ltd,492286,318696,24/07/2018,572.4,0,ZM0018,Highways & Engineering,9773,Orders Received Not Invoiced,Blackpool Services
Blackpool Council,1006576,The Helping Hand Company Ltd,492286,318696,24/07/2018,686.88,114.48,ZM0018,Highways & Engineering,9511A,Stocks Efin,Blackpool Services
Blackpool Council,1110678,The Bouncy Ball Company,492287,MT00111,24/07/2018,9000,1500,PRB,Events,3401,General Services,Places
Blackpool Council,1008459,The Lancashire Wildlife Trust,492288,11202,25/07/2018,17480.96,0,CPAABK,Sand Dunes Env Wrk Ph105,6506,Consultants Fees,Capital - Comm & Environ
Blackpool Council,1064338,Ncvo,492295,INVN00007471,25/07/2018,3651.6,608.6,APCBEA,Shared Lives,0911,Training Expenses,Adult & Families
Blackpool Council,1071702,Links Signs & Graphics Ltd,492308,LSGI24639,30/07/2018,398.4,66.4,AHG,Art Gallery Summary,3301,Printing,Places
Blackpool Council,1066073,Blackpool Coastal Housing,492322,30001451,25/07/2018,646.21,107.7,FMAB,Commercial Propereties,1064,Delegated Maintenance,Resources
Blackpool Council,1114522,The Oyster Partnership Ltd,492323,1035419,25/07/2018,8040,1340,AEE,Estates,0981,Professional Fees,Resources
Blackpool Council,1099469,Blackpool Gateway Academy,492330,5000000011,25/07/2018,4567.71,0,OPAREA,Opportunity Areas,4515,Contract Services,Places
Blackpool Council,1012116,Commercial Kitchen Services Ltd,492331,86761,25/07/2018,696,116,APCBCA,Langdale,6215,Catering Services,Adult & Families
Blackpool Council,1114634,Waterscan Limited,492332,14339,25/07/2018,6000,1000,FB0004,Energy & Sustainability,1401,Water Charges-Metered,Resources
Blackpool Council,1012116,Commercial Kitchen Services Ltd,492333,86762,25/07/2018,803.51,133.92,APCBCA,Langdale,6215,Catering Services,Adult & Families
Blackpool Council,1091579,Nethans Limited,492340,1100,25/07/2018,294,49,PJII,Prom Collections,3041,Other Materials,Community & Env Services
Blackpool Council,1008419,Lcr Limited,492391,E000984,27/07/2018,338.4,56.4,FCADA,Customer Services,3003,Equipt-Mtce Repairs,Resources
Blackpool Council,1109820,Klein Imaging Limited,492442,14912,25/07/2018,3197.33,532.89,AHG,Art Gallery Summary,3301,Printing,Places
Blackpool Council,1109820,Klein Imaging Limited,492443,14932,25/07/2018,394.27,65.71,AHG,Art Gallery Summary,3301,Printing,Places
Blackpool Council,1027764,Colins Travel,492447,BC/01/014JUL18,25/07/2018,1043,0,TRCHIL,Integrated Transport Childrens,4501,Private Contractors,Community & Env Services
Blackpool Council,1027764,Colins Travel,492448,BC/01/016JUL18,25/07/2018,1050,0,TRCHIL,Integrated Transport Childrens,4501,Private Contractors,Community & Env Services
Blackpool Council,1027764,Colins Travel,492449,BC/01/013JUL18,25/07/2018,1022,0,TRCHIL,Integrated Transport Childrens,4501,Private Contractors,Community & Env Services
Blackpool Council,1009234,Gary Roy Kirkham,492450,BC/02/018JUL18,25/07/2018,360,0,TRCHIL,Integrated Transport Childrens,4501,Private Contractors,Community & Env Services
Blackpool Council,1009234,Gary Roy Kirkham,492451,BC/44/002JUL18,25/07/2018,340,0,TRADUL,Integrated Transport Adults,4501,Private Contractors,Community & Env Services
Blackpool Council,1010300,Blacktax Radio Taxis T/A Blackpool Courier,492452,12395,25/07/2018,1360,0,TRCHIL,Integrated Transport Childrens,2201,Contract Hire,Community & Env Services
Blackpool Council,1010300,Blacktax Radio Taxis T/A Blackpool Courier,492453,BC/01/009MAY18,25/07/2018,850,0,TRCHIL,Integrated Transport Childrens,4501,Private Contractors,Community & Env Services
Blackpool Council,1010300,Blacktax Radio Taxis T/A Blackpool Courier,492454,BC/01/009APR18,25/07/2018,800,0,TRCHIL,Integrated Transport Childrens,4501,Private Contractors,Community & Env Services
Blackpool Council,1010300,Blacktax Radio Taxis T/A Blackpool Courier,492455,BC/01/012MAY18,25/07/2018,1292,0,TRCHIL,Integrated Transport Childrens,4501,Private Contractors,Community & Env Services
Blackpool Council,1010138,C Cabs,492456,BC/02/008JUN18,25/07/2018,760,0,TRCHIL,Integrated Transport Childrens,2201,Contract Hire,Community & Env Services
Blackpool Council,1010138,C Cabs,492457,BC/76/001JUN18,25/07/2018,840,0,TRCHIL,Integrated Transport Childrens,4501,Private Contractors,Community & Env Services
Blackpool Council,1010138,C Cabs,492458,BC/75/001JUN18,25/07/2018,1000,0,TRCHIL,Integrated Transport Childrens,4501,Private Contractors,Community & Env Services
Blackpool Council,1010138,C Cabs,492459,BC/63/002JUN18,25/07/2018,2000,0,TRCHIL,Integrated Transport Childrens,4501,Private Contractors,Community & Env Services
Blackpool Council,1010138,C Cabs,492460,BC/44/003JUN18,25/07/2018,1026,0,TRADUL,Integrated Transport Adults,4501,Private Contractors,Community & Env Services
Blackpool Council,1010138,C Cabs,492461,BC/23/001JUN18,25/07/2018,648,0,TRCHIL,Integrated Transport Childrens,4501,Private Contractors,Community & Env Services
Blackpool Council,1010138,C Cabs,492462,BC/21/001JUN18,25/07/2018,800,0,TRCHIL,Integrated Transport Childrens,4501,Private Contractors,Community & Env Services
Blackpool Council,1010138,C Cabs,492465,BC/02/015JUN18,25/07/2018,1026,0,TRCHIL,Integrated Transport Childrens,4501,Private Contractors,Community & Env Services
Blackpool Council,1010138,C Cabs,492466,BC/02/014JUN18,25/07/2018,874,0,TRCHIL,Integrated Transport Childrens,4501,Private Contractors,Community & Env Services
Blackpool Council,1010138,C Cabs,492467,BC/02/009JUN18,25/07/2018,912,0,TRCHIL,Integrated Transport Childrens,4501,Private Contractors,Community & Env Services
Blackpool Council,1010138,C Cabs,492468,BC/02/022JUN18,25/07/2018,855,0,TRCHIL,Integrated Transport Childrens,4501,Private Contractors,Community & Env Services
Blackpool Council,1010138,C Cabs,492469,BC/02/010JUN18,25/07/2018,912,0,TRCHIL,Integrated Transport Childrens,4501,Private Contractors,Community & Env Services
Blackpool Council,1010138,C Cabs,492470,BC/01/003JUN18,25/07/2018,406,0,TRCHIL,Integrated Transport Childrens,4501,Private Contractors,Community & Env Services
Blackpool Council,1010138,C Cabs,492471,BC/01/018JUN18,25/07/2018,660,0,TRCHIL,Integrated Transport Childrens,4501,Private Contractors,Community & Env Services
Blackpool Council,1010138,C Cabs,492472,BC/01/019JUN18,25/07/2018,1000,0,TRCHIL,Integrated Transport Childrens,4501,Private Contractors,Community & Env Services
Blackpool Council,1010138,C Cabs,492473,BC/01/007JUN18,25/07/2018,880,0,TRCHIL,Integrated Transport Childrens,4501,Private Contractors,Community & Env Services
Blackpool Council,1095600,J G Paxtons & Sons Ltd,492487,477488,25/07/2018,9540,1590,BEACHP,Beach Patrol,2001,Purchases,Places
Blackpool Council,1090628,The Furniture Recycling Group,492489,INV15278,27/07/2018,253.44,42.24,CWASTE,Commercial Waste,4514,Contract 'E',Community & Env Services
Blackpool Council,1107930,H Kennedy T/A Video Interaction Guidance Hk,492490,99,26/07/2018,538.09,0,HS0003,Headstart Commissioning,3401,General Services,Children'S Services
Blackpool Council,1042794,Carlton Fuels Limited,492491,1021683,26/07/2018,18135.96,0,ZF0001,"Insurance,Dso,Banking",9773,Orders Received Not Invoiced,Total Reconciliations
Blackpool Council,1042794,Carlton Fuels Limited,492491,1021683,26/07/2018,21763.15,3627.19,ZF0001,"Insurance,Dso,Banking",9511A,Stocks Efin,Total Reconciliations
Blackpool Council,1066517,Wsp Uk  Ltd,492492,64354164,30/07/2018,11880,1980,PARADM,Parking Administration,4501,Private Contractors,Budgets Outside Cash Limits
Blackpool Council,1010138,C Cabs,492493,BC/01/023JUN18,26/07/2018,900,0,TRCHIL,Integrated Transport Childrens,4501,Private Contractors,Community & Env Services
Blackpool Council,1010138,C Cabs,492494,BC/01/022JUN18,26/07/2018,1160,0,TRCHIL,Integrated Transport Childrens,4501,Private Contractors,Community & Env Services
Blackpool Council,1010138,C Cabs,492495,BC/01/041JUN18,26/07/2018,760,0,TRCHIL,Integrated Transport Childrens,4501,Private Contractors,Community & Env Services
Blackpool Council,1010138,C Cabs,492496,BC/01/004JUN18,26/07/2018,900,0,TRCHIL,Integrated Transport Childrens,4501,Private Contractors,Community & Env Services
Blackpool Council,1010138,C Cabs,492497,BC/01/027JUN18,26/07/2018,1300,0,TRCHIL,Integrated Transport Childrens,4501,Private Contractors,Community & Env Services
Blackpool Council,1010138,C Cabs,492498,BC/71/003JUN18,26/07/2018,1110,0,TRCHIL,Integrated Transport Childrens,4501,Private Contractors,Community & Env Services
Blackpool Council,1010830,Ace Radio Cabs Limited,492500,BC/01/043MAY18,26/07/2018,1088,0,TRCHIL,Integrated Transport Childrens,4501,Private Contractors,Community & Env Services
Blackpool Council,1009260,G S Brown,492501,10149,26/07/2018,428,0,TRCHIL,Integrated Transport Childrens,2201,Contract Hire,Community & Env Services
Blackpool Council,1006196,Prism Medical Uk,492507,5269374,25/07/2018,1502.09,250.34,CXAAA,Local Authority Dwellings,6501,Contract Payments,Capital - Places
Blackpool Council,1006196,Prism Medical Uk,492509,5269089,25/07/2018,4016.8,669.47,MVB,65-74,5401,Aids To Daily Living,Adult & Families
Blackpool Council,1108220,Clarks Removals,492526,D1607,26/07/2018,800,0,AEB,Buildings,3020,Furniture - Purchase,Resources
Blackpool Council,1108220,Clarks Removals,492527,D1608,26/07/2018,800,0,AEB,Buildings,3020,Furniture - Purchase,Resources
Blackpool Council,1010138,C Cabs,492530,02758,26/07/2018,5956,0,TRCHIL,Integrated Transport Childrens,2201,Contract Hire,Community & Env Services
Blackpool Council,1010138,C Cabs,492531,02717,26/07/2018,307.2,0,TRCHIL,Integrated Transport Childrens,2201,Contract Hire,Community & Env Services
Blackpool Council,1040364,Conlon Construction Ltd,492534,10405,25/07/2018,65940.3,10990.05,CGTABA,Spanish Hall & Cs Façade,6501,Contract Payments,Capital - Places
Blackpool Council,1040364,Conlon Construction Ltd,492534,10405,25/07/2018,1120.25,0,ZF0001,"Insurance,Dso,Banking",97B6,Retention Monies - Cap Trsfr,Total Reconciliations
Blackpool Council,1006196,Prism Medical Uk,492535,5264136,25/07/2018,3330.96,555.16,MVB,65-74,5401,Aids To Daily Living,Adult & Families
Blackpool Council,1053283,Cryoservice Limited,492536,406961529,27/07/2018,420,70,LEISUR,Leisure Management,3060,Chemicals,Community & Env Services
Blackpool Council,1006196,Prism Medical Uk,492539,5269088,25/07/2018,1004.16,167.36,MVB,65-74,5401,Aids To Daily Living,Adult & Families
Blackpool Council,1006196,Prism Medical Uk,492540,5269400,25/07/2018,620.06,103.34,MVB,65-74,5401,Aids To Daily Living,Adult & Families
Blackpool Council,1107930,H Kennedy T/A Video Interaction Guidance Hk,492600,82,26/07/2018,721.7,0,HS0003,Headstart Commissioning,3101,Provisions,Children'S Services
Blackpool Council,1011675,Bambers Remedial Contractors Limited,492602,15098,27/07/2018,20895,0,CX4002,Disabled Facilities Grants,6501,Contract Payments,Capital - Adult Social Care
Blackpool Council,1011675,Bambers Remedial Contractors Limited,492603,15150,27/07/2018,4938.97,0,CX4002,Disabled Facilities Grants,6501,Contract Payments,Capital - Adult Social Care
Blackpool Council,1011675,Bambers Remedial Contractors Limited,492604,15149,27/07/2018,5950.31,0,CX4002,Disabled Facilities Grants,6501,Contract Payments,Capital - Adult Social Care
Blackpool Council,1011868,W H Tarmacadam Limited,492605,5569,27/07/2018,3060,0,CX4002,Disabled Facilities Grants,6501,Contract Payments,Capital - Adult Social Care
Blackpool Council,1011675,Bambers Remedial Contractors Limited,492606,15145,27/07/2018,1776.17,0,CX4002,Disabled Facilities Grants,6501,Contract Payments,Capital - Adult Social Care
Blackpool Council,1085637,Safespaces (Cornholme) Ltd,492607,INV-7373,27/07/2018,6700,0,CX4002,Disabled Facilities Grants,6501,Contract Payments,Capital - Adult Social Care
Blackpool Council,1011675,Bambers Remedial Contractors Limited,492616,15077,27/07/2018,3636,606,CXAAA,Local Authority Dwellings,6501,Contract Payments,Capital - Places
Blackpool Council,1011675,Bambers Remedial Contractors Limited,492617,15046,27/07/2018,5305.2,0,CX4002,Disabled Facilities Grants,6501,Contract Payments,Capital - Adult Social Care
Blackpool Council,1011675,Bambers Remedial Contractors Limited,492618,14985,27/07/2018,2270,0,CX4002,Disabled Facilities Grants,6501,Contract Payments,Capital - Adult Social Care
Blackpool Council,1011675,Bambers Remedial Contractors Limited,492619,15083,27/07/2018,4433.32,0,CX4002,Disabled Facilities Grants,6501,Contract Payments,Capital - Adult Social Care
Blackpool Council,1011675,Bambers Remedial Contractors Limited,492621,15172,27/07/2018,9308.77,0,CX4002,Disabled Facilities Grants,6501,Contract Payments,Capital - Adult Social Care
Blackpool Council,1112838,The China Uk Business Centre (North West),492662,801098,27/07/2018,1000,0,MPB,Edc - Economic Dev Company,3413,Consultants,Places
Blackpool Council,1103450,Blackpool Entertainment Company Limited,492672,INV003731,27/07/2018,600,100,TRB,Maintenance & Works,4501,Private Contractors,Community & Env Services
Blackpool Council,1103650,Westec,492680,16723,27/07/2018,525.22,87.54,PJOA,Commercial & Marketing,3041,Other Materials,Community & Env Services
Blackpool Council,1083256,Community Lighting Partnership (Bpool) Ltd,492683,103,27/07/2018,529601.56,88266.93,FL1259,Pfi Management Costs,4501,Private Contractors,Community & Env Services
Blackpool Council,1008141,Martin Brown Paints Ltd,492686,HA116868,30/07/2018,333.81,0,ZM0018,Highways & Engineering,9773,Orders Received Not Invoiced,Blackpool Services
Blackpool Council,1008141,Martin Brown Paints Ltd,492686,HA116868,30/07/2018,400.57,66.76,ZM0018,Highways & Engineering,9511A,Stocks Efin,Blackpool Services
Blackpool Council,1011369,Lancashire County Council,492691,5200168560,30/07/2018,24618,0,FR5001,Concessionary Fares,3401,General Services,Budgets Outside Cash Limits
Blackpool Council,1007008,Screwfix Direct Ltd,492778,0887300251,30/07/2018,770,0,ZM0018,Highways & Engineering,9773,Orders Received Not Invoiced,Blackpool Services
Blackpool Council,1007008,Screwfix Direct Ltd,492778,0887300251,30/07/2018,924,154,ZM0018,Highways & Engineering,9511A,Stocks Efin,Blackpool Services
Blackpool Council,1011714,Michael Hope Haulage Limited,492793,001351,30/07/2018,1920,320,SCHEME,Highways Schemes,1012,Premises Maint-Priv.Contractor,Community & Env Services
Blackpool Council,1016258,M J Teale Plant Hire Ltd,492797,B8014,30/07/2018,751.1,125.18,SCHEME,Highways Schemes,1012,Premises Maint-Priv.Contractor,Community & Env Services
Blackpool Council,1035017,Newauto Ltd T/A Mogo Uk,492799,T28388,30/07/2018,1149.96,191.66,PYLA,Licencing,3041,Other Materials,Community & Env Services
Blackpool Council,1011868,W H Tarmacadam Limited,492810,5587,31/07/2018,11880,1980,SCHEME,Highways Schemes,1012,Premises Maint-Priv.Contractor,Community & Env Services
Blackpool Council,1008459,The Lancashire Wildlife Trust,492828,11430,31/07/2018,1800,300,PRKDEV,Parks Development,1012,Premises Maint-Priv.Contractor,Community & Env Services
Blackpool Council,1006644,Telewest/Virgin Media Payments Ltd,492839,067437901003,30/07/2018,4642.86,773.81,FGAA,Ict Corporate Services,3521,Landline - Line Rental,Resources
Blackpool Council,1006644,Telewest/Virgin Media Payments Ltd,492841,067437901506,30/07/2018,2838.13,473.02,FGAA,Ict Corporate Services,3521,Landline - Line Rental,Resources
Blackpool Council,1006644,Telewest/Virgin Media Payments Ltd,492842,078850001547,30/07/2018,438,73,FGAA,Ict Corporate Services,3521,Landline - Line Rental,Resources
Blackpool Council,1006644,Telewest/Virgin Media Payments Ltd,492843,081127901504,30/07/2018,887.4,147.9,FGAA,Ict Corporate Services,3521,Landline - Line Rental,Resources
Blackpool Council,1006644,Telewest/Virgin Media Payments Ltd,492845,080868701864,30/07/2018,269.95,44.99,FGAA,Ict Corporate Services,3521,Landline - Line Rental,Resources
Blackpool Council,1074431,Leaguenotion Coral Island,492856,MFH18,31/07/2018,396.57,66.09,PRB,Events,3401,General Services,Places
Blackpool Council,1107029,Regal Amusement Machine Sales Ltd,492911,0000172128,31/07/2018,880.2,146.7,PRB,Events,3401,General Services,Places
Blackpool Council,1071702,Links Signs & Graphics Ltd,492914,LSGI24913,31/07/2018,374.4,62.4,AHG,Art Gallery Summary,3301,Printing,Places
Blackpool Council,1010661,Archway Travel Limited,492937,12928,31/07/2018,2795,0,PRB,Events,3401,General Services,Places
Blackpool Council,1011675,Bambers Remedial Contractors Limited,492939,15074,31/07/2018,4229.79,0,CX4002,Disabled Facilities Grants,6501,Contract Payments,Capital - Adult Social Care
Blackpool Council,1006099,Blackpool Teaching Hospitals Nhs Ft,3864764,1110037085,12/07/2018,2839.8,473.3,PUBH02,Sexual Health Services-Contrac,4501,Private Contractors,Public Health
Blackpool Council,1071918,St Cuthberts Catholic Academy,3877994,CCS APR-JUN18,20/07/2018,53466,0,JPA,Children Centres,4501,Private Contractors,Children'S Services
Blackpool Council,1007499,E-On  (Powergen Limited),3886495,H159C14B6C,17/07/2018,1558.49,259.75,AEZ,To Be Recharged,1202,Electricity,Resources
Blackpool Council,1007499,E-On  (Powergen Limited),3886607,H157B40AF3,11/07/2018,1265.23,210.87,AEZ,To Be Recharged,1202,Electricity,Resources
Blackpool Council,1007499,E-On  (Powergen Limited),3886608,H155FE88FE,11/07/2018,1062.74,177.12,AEZ,To Be Recharged,1202,Electricity,Resources
Blackpool Council,1108680,Greenwood Projects Ltd,3891558,20043978,06/07/2018,1860,310,CGTABA,Spanish Hall & Cs Façade,6501,Contract Payments,Capital - Places
Blackpool Council,1021840,Systemslink 2000 Ltd,3893044,18072,11/07/2018,2400,400,AEZ,To Be Recharged,1202,Electricity,Resources
Blackpool Council,1011952,Empowerment,3893059,367,02/07/2018,579.29,0,JDEAAA,Safeguarding Adults,4501,Private Contractors,Adult & Families
Blackpool Council,1087549,Merlin Entertainments (Blackpool) Ltd,3898063,BC-S05642,19/07/2018,1726.08,287.68,FMAK,Acquisitions 9/10,1012,Premises Maint-Priv.Contractor,Places
Blackpool Council,1094411,Fox Fire Security Limited,3899759,2416,03/07/2018,996,166,AEB,Buildings,1012,Premises Maint-Priv.Contractor,Resources
Blackpool Council,1094411,Fox Fire Security Limited,3899762,2420,03/07/2018,306.14,51.02,AEB,Buildings,1012,Premises Maint-Priv.Contractor,Resources
Blackpool Council,1094411,Fox Fire Security Limited,3899763,2421,03/07/2018,323.28,53.88,AEB,Buildings,1012,Premises Maint-Priv.Contractor,Resources
Blackpool Council,1096691,Parklands High School,3901213,IN160074,13/07/2018,432,72,CWAN,Children With Additional Needs,4101,Other Local Authorities,Children'S Services
Blackpool Council,1116126,Aah Pharmaceuticals Ltd,3901275,46711975Q,09/07/2018,2962.18,493.7,FK0013,Corporate Health,3065,Drugs & Medical Requisites,Chief Executive
Blackpool Council,1088102,Whistl Uk Limited,3903008,IN18US18004422,02/07/2018,2872.96,478.83,FCADA,Customer Services,3511,Postages,Resources
Blackpool Council,1011973,Automatic Alarms Ltd,3903126,316089,02/07/2018,258.55,43.09,PTA,Economic Development,1171,Alarms,Places
Blackpool Council,1011952,Empowerment,3903388,374,03/07/2018,287.57,0,JDEAAA,Safeguarding Adults,4501,Private Contractors,Adult & Families
Blackpool Council,1011702,J & J Decorating Services,3903523,7709,06/07/2018,2880,480,AEB,Buildings,1012,Premises Maint-Priv.Contractor,Resources
Blackpool Council,1011973,Automatic Alarms Ltd,3903529,316880,05/07/2018,365.63,60.94,PTA,Economic Development,1012,Premises Maint-Priv.Contractor,Places
Blackpool Council,1020179,The James Mercer Group Ltd,3903534,113100,06/07/2018,352.8,58.8,AEB,Buildings,1121,Heating & Ventilation,Resources
Blackpool Council,1111328,Hadley Fraser Ltd,3904409,BLA068,06/07/2018,5116.32,852.72,JDEAAA,Safeguarding Adults,4501,Private Contractors,Adult & Families
Blackpool Council,1088922,Triple Point Lease Partners,3904645,901353,06/07/2018,14400,2400,CVMU,Cvmu,2001,Purchases,Community & Env Services
Blackpool Council,1114828,Rts Muni,3904646,SI-216,06/07/2018,1080,180,CVMU,Cvmu,3041,Other Materials,Community & Env Services
Blackpool Council,1023161,Suez Recycling And Recovery Uk Ltd,3904649,80105909,09/07/2018,62074.52,10345.75,DOMPFI,Domestic Waste & Waste Pfi,4501,Private Contractors,Community & Env Services
Blackpool Council,1052929,Paul Whatley,3904653,307070,05/07/2018,1020,170,BAAA,Legal Services,3413,Consultants,Governance & Partnerships
Blackpool Council,1005067,Blackpool Pleasure Beach Ltd,3904672,17062,03/07/2018,1065.5,177.58,ZX0501,"Tourism,Promotions & Conferen.",9687,Tourism Sale Of Tickets,Place Directorate
Blackpool Council,1106537,Pj Fire Safety Risk Assessments Limited,3904721,2332,05/07/2018,420,70,CXB71,Hra Capital Programme 2018/19,6501,Contract Payments,Capital - Places
Blackpool Council,1114000,Dac Beachcroft Claims Limited,3904749,430021518,17/07/2018,1209.6,201.6,RK6002,Garwyn Pl,3807,Legal & Court Costs,Internal Insurance
Blackpool Council,1114000,Dac Beachcroft Claims Limited,3904750,430021524,17/07/2018,535.2,89.2,RK6002,Garwyn Pl,3807,Legal & Court Costs,Internal Insurance
Blackpool Council,1114000,Dac Beachcroft Claims Limited,3904751,430021522,17/07/2018,3708,618,RK6002,Garwyn Pl,3807,Legal & Court Costs,Internal Insurance
Blackpool Council,1114000,Dac Beachcroft Claims Limited,3904752,430021548,17/07/2018,2899.2,483.2,RK6002,Garwyn Pl,3807,Legal & Court Costs,Internal Insurance
Blackpool Council,1114000,Dac Beachcroft Claims Limited,3904753,430021549,17/07/2018,2114.4,352.4,RK6002,Garwyn Pl,3807,Legal & Court Costs,Internal Insurance
Blackpool Council,1007516,Phoenix Commercial Collections Ltd,3904755,100654,06/07/2018,878.82,146.47,FBBEA,"Income, Recovery & Debtors",3807,Legal & Court Costs,Resources
Blackpool Council,1063621,Littledale Hall Therapeutic Community Ltd,3905063,4317,05/07/2018,1488.68,0,MPA,18-64,4563,Priv-Stc Carers-Residential,Adult & Families
Blackpool Council,1063621,Littledale Hall Therapeutic Community Ltd,3905064,4316,05/07/2018,1597.4,0,MPA,18-64,4563,Priv-Stc Carers-Residential,Adult & Families
Blackpool Council,1063621,Littledale Hall Therapeutic Community Ltd,3905065,4315,05/07/2018,1597.4,0,MPA,18-64,4563,Priv-Stc Carers-Residential,Adult & Families
Blackpool Council,1007345,Mobile Mini Uk Limited,3905169,7000865903,11/07/2018,336.48,56.08,CEMCRE,Cems Crems Etc,1012,Premises Maint-Priv.Contractor,Governance & Partnerships
Blackpool Council,1112954,Pk Controls Ltd,3905223,8186,04/07/2018,255,42.5,AEB,Buildings,1012,Premises Maint-Priv.Contractor,Resources
Blackpool Council,1112954,Pk Controls Ltd,3905224,8187,04/07/2018,255,42.5,AEB,Buildings,1012,Premises Maint-Priv.Contractor,Resources
Blackpool Council,1112954,Pk Controls Ltd,3905488,8188,04/07/2018,1320.96,220.16,AEB,Buildings,1012,Premises Maint-Priv.Contractor,Resources
Blackpool Council,1110571,REDACTED PERSONAL DATA,3905516,TCPGKM0518RW,05/07/2018,1047.5,0,JBR,Lac - Placements,3801,Other Expenses,Children'S Services
Blackpool Council,1115612,Cats (Children Assessment Therapy Services),3905544,002,05/07/2018,1315,0,JBR,Lac - Placements,3801,Other Expenses,Children'S Services
Blackpool Council,1077392,Reed Specialist Recruitment Ltd,3905833,E020730689M,03/07/2018,1154.64,192.44,ALDA,Learning Disability Team,0791,Temp/Relief (Bureau Staff),Adult & Families
Blackpool Council,1077392,Reed Specialist Recruitment Ltd,3905833,E020730689M,03/07/2018,561.63,93.61,BLCLEA,Building Cleaning,0791,Temp/Relief (Bureau Staff),Community & Env Services
Blackpool Council,1077392,Reed Specialist Recruitment Ltd,3905833,E020730689M,03/07/2018,1204.01,200.67,JA1531,Independent Reviewing Officers,0791,Temp/Relief (Bureau Staff),Children'S Services
Blackpool Council,1077392,Reed Specialist Recruitment Ltd,3905833,E020730689M,03/07/2018,1231.95,205.33,JAB,Locality,0791,Temp/Relief (Bureau Staff),Children'S Services
Blackpool Council,1077392,Reed Specialist Recruitment Ltd,3905833,E020730689M,03/07/2018,1221.59,203.6,JBT,Looked After Children,0791,Temp/Relief (Bureau Staff),Children'S Services
Blackpool Council,1077392,Reed Specialist Recruitment Ltd,3905833,E020730689M,03/07/2018,917.33,152.89,SSDA,Social Services Direct,0791,Temp/Relief (Bureau Staff),Adult & Families
Blackpool Council,1077392,Reed Specialist Recruitment Ltd,3905833,E020730689M,03/07/2018,1107.22,184.53,VA0010,Vah Management & Admin,0791,Temp/Relief (Bureau Staff),Children'S Services
Blackpool Council,1011702,J & J Decorating Services,3905839,7710,06/07/2018,594,99,AEB,Buildings,1012,Premises Maint-Priv.Contractor,Resources
Blackpool Council,1011973,Automatic Alarms Ltd,3905841,316881,05/07/2018,565.7,94.28,AEB,Buildings,1012,Premises Maint-Priv.Contractor,Resources
Blackpool Council,1116184,REDACTED PERSONAL DATA,3905948,PR18C00226,03/07/2018,450,0,JEA,Senior Management,3807,Legal & Court Costs,Children'S Services
Blackpool Council,1010423,Child Action Northwest,3905962,YJ/2949,26/07/2018,1353.8,0,VA0010,Vah Management & Admin,3408,Services To Clients,Children'S Services
Blackpool Council,1006099,Blackpool Teaching Hospitals Nhs Ft,3905984,1110038200,13/07/2018,3000,0,FBBBB,"Insur, Scrutiny & Emerg Planin",4701,Other Contracted Services,Resources
Blackpool Council,1055367,Davies Casualty(Inc Garwyn & Argent),3906017,316424,20/07/2018,842.4,140.4,RK6002,Garwyn Pl,4702,Garwyn Fee,Internal Insurance
Blackpool Council,1089732,Beechkeys Limited,3906018,9060000063,09/07/2018,11344.67,0,CWAN,Children With Additional Needs,4501,Private Contractors,Children'S Services
Blackpool Council,1116046,Sand In Your Eye Ltd,3908158,1086,12/07/2018,2706,451,AEH,Built Heritage,3801,Other Expenses,Places
Blackpool Council,1116177,REDACTED PERSONAL DATA,3908182,061,04/07/2018,950,0,AEH,Built Heritage,3801,Other Expenses,Places
Blackpool Council,1110132,Health Assured Ltd,3908417,SF-019417,12/07/2018,1842.4,307.07,FK0013,Corporate Health,0992,Medical Fees (Employee),Chief Executive
Blackpool Council,1006202,I Care Gb Limited,3908418,BPLEX/0306,03/07/2018,6484.38,0,MVB,65-74,4512,Other Care Block Payments,Adult & Families
Blackpool Council,1006202,I Care Gb Limited,3908419,BPLEX/1006,03/07/2018,6015.78,0,MVB,65-74,4512,Other Care Block Payments,Adult & Families
Blackpool Council,1109814,Nickelodeon Uk Limited,3908421,1800000337,06/07/2018,120000,20000,PRD,Switch On,3401,General Services,Places
Blackpool Council,1084280,Alpha Biolabs (Fac088),3908429,22584,03/07/2018,427.2,71.2,JEA,Senior Management,3807,Legal & Court Costs,Children'S Services
Blackpool Council,1102497,REDACTED PERSONAL DATA,3908431,2018/029,10/07/2018,656.6,0,JEA,Senior Management,3807,Legal & Court Costs,Children'S Services
Blackpool Council,1103450,Blackpool Entertainment Company Limited,3908436,INV003686,19/07/2018,345.3,57.55,FMAK,Acquisitions 9/10,1301,Rent & Hire Of Premises,Places
Blackpool Council,1007516,Phoenix Commercial Collections Ltd,3908437,100772,13/07/2018,291.25,48.54,FBBEA,"Income, Recovery & Debtors",3807,Legal & Court Costs,Resources
Blackpool Council,1007516,Phoenix Commercial Collections Ltd,3908438,100771,13/07/2018,6986.55,1164.46,FBBEA,"Income, Recovery & Debtors",3807,Legal & Court Costs,Resources
Blackpool Council,1088102,Whistl Uk Limited,3908447,IN18US18004612,09/07/2018,3998.15,666.36,FCADA,Customer Services,3511,Postages,Resources
Blackpool Council,1102403,Bs Support Services Limited,3908463,APRO1,26/07/2018,3480,580,VA0010,Vah Management & Admin,3408,Services To Clients,Children'S Services
Blackpool Council,1102403,Bs Support Services Limited,3908464,MAYO1,26/07/2018,4200,700,VA0010,Vah Management & Admin,3408,Services To Clients,Children'S Services
Blackpool Council,1084280,Alpha Biolabs (Fac088),3908473,22550,03/07/2018,407.7,67.95,JEA,Senior Management,3807,Legal & Court Costs,Children'S Services
Blackpool Council,1010104,Canon (Uk ) Ltd,3908524,44096732,05/07/2018,255.6,42.6,PRINTS,Corporate Print Services,3344,Paper,Places
Blackpool Council,1114133,Rhd Construction And Developments Ltd,3908539,MR 402,04/07/2018,1560,260,AEH,Built Heritage,3801,Other Expenses,Places
Blackpool Council,1087549,Merlin Entertainments (Blackpool) Ltd,3908540,BC-S05713,03/07/2018,668.8,111.47,ZX0501,"Tourism,Promotions & Conferen.",9687,Tourism Sale Of Tickets,Place Directorate
Blackpool Council,1087549,Merlin Entertainments (Blackpool) Ltd,3908552,BC-S05694,03/07/2018,6367.04,1061.17,ZX0501,"Tourism,Promotions & Conferen.",9687,Tourism Sale Of Tickets,Place Directorate
Blackpool Council,1100221,Forensic Testing Service Ltd,3908554,27373,03/07/2018,1000.8,166.8,JEA,Senior Management,3807,Legal & Court Costs,Children'S Services
Blackpool Council,1020179,The James Mercer Group Ltd,3908576,113074,06/07/2018,367.2,61.2,AEB,Buildings,1121,Heating & Ventilation,Resources
Blackpool Council,1094960,REDACTED PERSONAL DATA,3908815,391594,13/07/2018,600,100,RK8003,Costs Plh,3807,Legal & Court Costs,Internal Insurance
Blackpool Council,1101766,Cjgriffiths Photography,3908852,PIERWATCH,04/07/2018,350,0,AEH,Built Heritage,3801,Other Expenses,Places
Blackpool Council,1116011,Coolbox Frozen Yogurt,3908861,180618,02/07/2018,300,0,NAB,Sure Start,3401,General Services,Children'S Services
Blackpool Council,1041157,5-Am Contact Contract Cleaning Ltd,3908894,1881,18/07/2018,1800,300,CXB71,Hra Capital Programme 2018/19,6501,Contract Payments,Capital - Places
Blackpool Council,1011995,Technical & Electrical Services Ltd,3908902,CAP17254,25/07/2018,321.36,53.56,CXB71,Hra Capital Programme 2018/19,6501,Contract Payments,Capital - Places
Blackpool Council,1041219,Abelglass Trade Supplies Ltd,3908905,INV-0854,05/07/2018,523.2,87.2,CXB71,Hra Capital Programme 2018/19,6501,Contract Payments,Capital - Places
Blackpool Council,1023868,Pontville School Limited,3908990,9013385,02/07/2018,45809.33,0,CWAN,Children With Additional Needs,4501,Private Contractors,Children'S Services
Blackpool Council,1023868,Pontville School Limited,3909005,9013384,02/07/2018,18082.63,0,CWAN,Children With Additional Needs,4501,Private Contractors,Children'S Services
Blackpool Council,1088102,Whistl Uk Limited,3909013,IN18US18004796,16/07/2018,4554.38,759.06,FCADA,Customer Services,3511,Postages,Resources
Blackpool Council,1100221,Forensic Testing Service Ltd,3909014,27833,03/07/2018,512.28,85.38,JEA,Senior Management,3807,Legal & Court Costs,Children'S Services
Blackpool Council,1033516,Travelling By Tuba,3909144,FF45,13/07/2018,550,0,MUSIC,Music & Cultural Education,3801,Other Expenses,Children'S Services
Blackpool Council,1077392,Reed Specialist Recruitment Ltd,3909183,E020732336M,03/07/2018,1262.77,210.46,ALDA,Learning Disability Team,0791,Temp/Relief (Bureau Staff),Adult & Families
Blackpool Council,1077392,Reed Specialist Recruitment Ltd,3909183,E020732336M,03/07/2018,264.3,44.05,BLCLEA,Building Cleaning,0791,Temp/Relief (Bureau Staff),Community & Env Services
Blackpool Council,1077392,Reed Specialist Recruitment Ltd,3909183,E020732336M,03/07/2018,1552.84,258.81,JA1531,Independent Reviewing Officers,0791,Temp/Relief (Bureau Staff),Children'S Services
Blackpool Council,1077392,Reed Specialist Recruitment Ltd,3909183,E020732336M,03/07/2018,2465.24,410.88,JAB,Locality,0791,Temp/Relief (Bureau Staff),Children'S Services
Blackpool Council,1077392,Reed Specialist Recruitment Ltd,3909183,E020732336M,03/07/2018,1532.16,255.36,JBT,Looked After Children,0791,Temp/Relief (Bureau Staff),Children'S Services
Blackpool Council,1077392,Reed Specialist Recruitment Ltd,3909183,E020732336M,03/07/2018,3013.56,502.26,SSDA,Social Services Direct,0791,Temp/Relief (Bureau Staff),Adult & Families
Blackpool Council,1077392,Reed Specialist Recruitment Ltd,3909183,E020732336M,03/07/2018,1310.95,218.49,VA0010,Vah Management & Admin,0791,Temp/Relief (Bureau Staff),Children'S Services
Blackpool Council,1011995,Technical & Electrical Services Ltd,3909191,M 17241,25/07/2018,321.36,53.56,CXB71,Hra Capital Programme 2018/19,6501,Contract Payments,Capital - Places
Blackpool Council,1096691,Parklands High School,3909473,IN160081,13/07/2018,1035,0,CWAN,Children With Additional Needs,4101,Other Local Authorities,Children'S Services
Blackpool Council,1011973,Automatic Alarms Ltd,3909491,317063,16/07/2018,282.19,47.03,AEB,Buildings,1012,Premises Maint-Priv.Contractor,Resources
Blackpool Council,1075175,Waterman Environmental Services Limited,3909556,8639,03/07/2018,651.6,108.6,AEB,Buildings,1012,Premises Maint-Priv.Contractor,Resources
Blackpool Council,1075175,Waterman Environmental Services Limited,3909556,8639,03/07/2018,434.4,72.4,CEMCRE,Cems Crems Etc,1012,Premises Maint-Priv.Contractor,Governance & Partnerships
Blackpool Council,1112954,Pk Controls Ltd,3909563,8201,13/07/2018,2138.4,356.4,LBB,Central Library,1012,Premises Maint-Priv.Contractor,Places
Blackpool Council,1113779,Tg Gas Services,3909565,288,20/07/2018,5890,0,LEISUR,Leisure Management,1121,Heating & Ventilation,Community & Env Services
Blackpool Council,1113779,Tg Gas Services,3909566,289,20/07/2018,6300,0,CEMCRE,Cems Crems Etc,1012,Premises Maint-Priv.Contractor,Governance & Partnerships
Blackpool Council,1009801,Coronation Candy Ltd (Fac009),3909588,1297,04/07/2018,1293.6,215.6,AEH,Built Heritage,3801,Other Expenses,Places
Blackpool Council,1010409,Birmingham City Council,3909591,9002497400,02/07/2018,305,0,SCORG,School Organisation,0915,Conferences,Children'S Services
Blackpool Council,1007753,Probrush T/A Northern Municipal Spares Ltd,3909603,18247,12/07/2018,1616.16,269.36,CVMU,Cvmu,3041,Other Materials,Community & Env Services
Blackpool Council,1029067,Johnston Sweepers Limited,3909644,61626632,05/07/2018,363.54,60.59,CVMU,Cvmu,3041,Other Materials,Community & Env Services
Blackpool Council,1101270,Ciceley Commercials Ltd,3909654,15473356,19/07/2018,1413.44,235.57,CVMU,Cvmu,3041,Other Materials,Community & Env Services
Blackpool Council,1096691,Parklands High School,3909664,CR160001,13/07/2018,324,54,CWAN,Children With Additional Needs,4101,Other Local Authorities,Children'S Services
Blackpool Council,1103233,REDACTED PERSONAL DATA,3910496,154,19/07/2018,1834.4,0,LM0420,Adults Training,7310,Training Courses - No Orders,Adult & Families
Blackpool Council,1006099,Blackpool Teaching Hospitals Nhs Ft,3910507,1110038875,06/07/2018,8181,0,BSTPRJ,Better Start Projects,4501,Private Contractors,Better Start Projects
Blackpool Council,1011952,Empowerment,3910508,368,11/07/2018,7639.78,0,HEAWEL,Health &Wellbeing Board,3701,Grants,Adult & Families
Blackpool Council,1007960,Mott Macdonald Ltd,3910511,IN00389055,10/07/2018,7024.8,1170.8,MPB,Edc - Economic Dev Company,3413,Consultants,Places
Blackpool Council,1007960,Mott Macdonald Ltd,3910512,IN00391118,10/07/2018,16800,2800,MPB,Edc - Economic Dev Company,3413,Consultants,Places
Blackpool Council,1007516,Phoenix Commercial Collections Ltd,3911694,100894,20/07/2018,825.03,137.51,FBBEA,"Income, Recovery & Debtors",3807,Legal & Court Costs,Resources
Blackpool Council,1007516,Phoenix Commercial Collections Ltd,3911697,100893,20/07/2018,7225.63,1204.25,FBBEA,"Income, Recovery & Debtors",3807,Legal & Court Costs,Resources
Blackpool Council,1108229,West Lancashire Community High School(08137),3911715,18-003,18/07/2018,1236.25,0,CWAN,Children With Additional Needs,4101,Other Local Authorities,Children'S Services
Blackpool Council,1089732,Beechkeys Limited,3911716,9060000064,19/07/2018,6239.89,0,CWAN,Children With Additional Needs,4501,Private Contractors,Children'S Services
Blackpool Council,1103450,Blackpool Entertainment Company Limited,3911889,INV003272,27/07/2018,60000,10000,FMAK,Acquisitions 9/10,3801,Other Expenses,Places
Blackpool Council,1112635,Cordant People Ltd,3911890,530413,10/07/2018,1006.55,167.76,PJNA,New Features / Schemes - C & E,2211,Casual Hire,Community & Env Services
Blackpool Council,1020179,The James Mercer Group Ltd,3912016,113173,06/07/2018,849.97,141.66,AEB,Buildings,1121,Heating & Ventilation,Resources
Blackpool Council,1037705,Walker Fire (Uk) Ltd,3912021,296937,10/07/2018,793.08,132.18,AEB,Buildings,1069,Fire Precautions,Resources
Blackpool Council,1037705,Walker Fire (Uk) Ltd,3912021,296937,10/07/2018,748.38,124.73,AER,Dual Use Properties,1069,Fire Precautions,Resources
Blackpool Council,1073045,Bradley Environmental Consultants Ltd (Fac042,3912043,23568,06/07/2018,420,70,AEB,Buildings,1012,Premises Maint-Priv.Contractor,Resources
Blackpool Council,1075175,Waterman Environmental Services Limited,3912044,8720,03/07/2018,672,112,AEB,Buildings,1012,Premises Maint-Priv.Contractor,Resources
Blackpool Council,1075175,Waterman Environmental Services Limited,3912044,8720,03/07/2018,461.29,76.88,LBC,Branch Libraries,1012,Premises Maint-Priv.Contractor,Places
Blackpool Council,1075175,Waterman Environmental Services Limited,3912044,8720,03/07/2018,450,75,LEISUR,Leisure Management,1012,Premises Maint-Priv.Contractor,Community & Env Services
Blackpool Council,1094411,Fox Fire Security Limited,3912057,2430,23/07/2018,282,47,AEB,Buildings,1012,Premises Maint-Priv.Contractor,Resources
Blackpool Council,1113964,Weldlag Limited,3912059,0240,18/07/2018,1813.7,302.28,PRKOP1,Parks Operational Manager  1,1012,Premises Maint-Priv.Contractor,Community & Env Services
Blackpool Council,1063606,Your Housing Limited,3912098,0006,05/07/2018,284.06,0,MFA,Adults Under 65 With Mh,4509,Other Care,Adult & Families
Blackpool Council,1063606,Your Housing Limited,3912099,0004,03/07/2018,397.71,0,MFA,Adults Under 65 With Mh,4509,Other Care,Adult & Families
Blackpool Council,1063606,Your Housing Limited,3912100,0001,03/07/2018,662.85,0,MFA,Adults Under 65 With Mh,4509,Other Care,Adult & Families
Blackpool Council,1063606,Your Housing Limited,3912102,0003,03/07/2018,397.71,0,MFA,Adults Under 65 With Mh,4509,Other Care,Adult & Families
Blackpool Council,1111681,REDACTED PERSONAL DATA,3912151,RENT UNI ACCOMM,02/07/2018,345,0,JEA,Senior Management,5551,Rent & Rent Bonds,Children'S Services
Blackpool Council,1071702,Links Signs & Graphics Ltd,3912163,LSGI24170,05/07/2018,300,50,TRC,Travel & Safety,4501,Private Contractors,Community & Env Services
Blackpool Council,1089937,Dalton Catering,3912164,276C,24/07/2018,475.5,0,LIFEVE,Life Events Reg & Care,3803,Hospitality,Governance & Partnerships
Blackpool Council,1111328,Hadley Fraser Ltd,3912166,BLA069,27/07/2018,4966.32,827.72,JDEAAA,Safeguarding Adults,4501,Private Contractors,Adult & Families
Blackpool Council,1089937,Dalton Catering,3912174,327B,02/07/2018,500,0,PYLA,Licencing,3803,Hospitality,Community & Env Services
Blackpool Council,1103069,Nicki Da Costa,3912176,50,02/07/2018,600,0,PU2051,Ph Pcc Funding,4501,Private Contractors,Public Health
Blackpool Council,1005067,Blackpool Pleasure Beach Ltd,3912177,17369,04/07/2018,9760.9,1626.8,ZX0501,"Tourism,Promotions & Conferen.",968B,Resort Pass,Place Directorate
Blackpool Council,1059217,Blackpool Carers Centre Ltd,3912179,798,09/07/2018,2147.5,0,JA2010,"Acute, Maternity & Palliative",7189,Other Misc Income - No Orders,Children'S Services
Blackpool Council,1079749,Total Gas & Power Ltd,3912180,170465399/18,25/07/2018,623.15,103.86,AEZ,To Be Recharged,1203,Gas,Resources
Blackpool Council,1098620,Edf Energy,3912191,1800073426,25/07/2018,283.56,47.26,PRKOP1,Parks Operational Manager  1,1202,Electricity,Community & Env Services
Blackpool Council,1011518,Tw Joinery & Fencing Contractors,3912192,2880,25/07/2018,6576,1096,CXB71,Hra Capital Programme 2018/19,6501,Contract Payments,Capital - Places
Blackpool Council,1071928,Civica Uk Limited,3912193,M/CM051736,05/07/2018,304.32,50.72,PARADM,Parking Administration,4501,Private Contractors,Budgets Outside Cash Limits
Blackpool Council,1022793,Scottish Hydro Electric,3912219,11727931/0006,25/07/2018,1709.82,284.97,AEZ,To Be Recharged,1202,Electricity,Resources
Blackpool Council,1107694,Bradley Demolition Ltd,3912220,3616,26/07/2018,2400,400,CXXXX,Hra Non Specific Contingency,6501,Contract Payments,Capital - Places
Blackpool Council,1011675,Bambers Remedial Contractors Limited,3912223,15112,25/07/2018,2520,420,CXB71,Hra Capital Programme 2018/19,6501,Contract Payments,Capital - Places
Blackpool Council,1115557,Tracey Carysforth,3912224,03,03/07/2018,3658.95,0,CX4002,Disabled Facilities Grants,6506,Consultants Fees,Capital - Adult Social Care
Blackpool Council,1109609,Westheads Extractions Uk Limited,3912225,000140,25/07/2018,1735,0,CXB71,Hra Capital Programme 2018/19,6501,Contract Payments,Capital - Places
Blackpool Council,1077392,Reed Specialist Recruitment Ltd,3912227,E020734521M,17/07/2018,1312.32,218.72,ALDA,Learning Disability Team,0791,Temp/Relief (Bureau Staff),Adult & Families
Blackpool Council,1077392,Reed Specialist Recruitment Ltd,3912227,E020734521M,17/07/2018,297.33,49.56,BLCLEA,Building Cleaning,0791,Temp/Relief (Bureau Staff),Community & Env Services
Blackpool Council,1077392,Reed Specialist Recruitment Ltd,3912227,E020734521M,17/07/2018,296.91,49.49,HS0008,Headstart Admin & Support,0791,Temp/Relief (Bureau Staff),Children'S Services
Blackpool Council,1077392,Reed Specialist Recruitment Ltd,3912227,E020734521M,17/07/2018,1451.57,241.93,JA1531,Independent Reviewing Officers,0791,Temp/Relief (Bureau Staff),Children'S Services
Blackpool Council,1077392,Reed Specialist Recruitment Ltd,3912227,E020734521M,17/07/2018,2934.11,489.02,JAB,Locality,0791,Temp/Relief (Bureau Staff),Children'S Services
Blackpool Council,1077392,Reed Specialist Recruitment Ltd,3912227,E020734521M,17/07/2018,2552.45,425.41,JBT,Looked After Children,0791,Temp/Relief (Bureau Staff),Children'S Services
Blackpool Council,1077392,Reed Specialist Recruitment Ltd,3912227,E020734521M,17/07/2018,1951.15,325.19,SSDA,Social Services Direct,0791,Temp/Relief (Bureau Staff),Adult & Families
Blackpool Council,1077392,Reed Specialist Recruitment Ltd,3912227,E020734521M,17/07/2018,1289.74,214.95,VA0010,Vah Management & Admin,0791,Temp/Relief (Bureau Staff),Children'S Services
Blackpool Council,1000009,Blackpool & The Fylde College,3912228,S0019375,03/07/2018,30885.71,0,CWAN,Children With Additional Needs,4501,Private Contractors,Children'S Services
Blackpool Council,1000009,Blackpool & The Fylde College,3912231,S0019376,03/07/2018,32128,0,CWAN,Children With Additional Needs,4501,Private Contractors,Children'S Services
Blackpool Council,1000009,Blackpool & The Fylde College,3912235,S0019373,03/07/2018,46328.57,0,CWAN,Children With Additional Needs,4501,Private Contractors,Children'S Services
Blackpool Council,1000009,Blackpool & The Fylde College,3912237,S0019374,03/07/2018,53614.29,0,CWAN,Children With Additional Needs,4501,Private Contractors,Children'S Services
Blackpool Council,1040140,Scottish Power,3912238,618001645939,25/07/2018,818.63,136.44,AEZ,To Be Recharged,1202,Electricity,Resources
Blackpool Council,1088102,Whistl Uk Limited,3912239,IN18US18005010,23/07/2018,3963.74,660.62,FCADA,Customer Services,3511,Postages,Resources
Blackpool Council,1090795,Aunty Social,3912241,2018-2BPD,04/07/2018,3400.61,0,AEH,Built Heritage,3801,Other Expenses,Places
Blackpool Council,1011702,J & J Decorating Services,3912244,7724,25/07/2018,252,42,AEB,Buildings,1012,Premises Maint-Priv.Contractor,Resources
Blackpool Council,1011702,J & J Decorating Services,3912245,7723,25/07/2018,780,130,AER,Dual Use Properties,1012,Premises Maint-Priv.Contractor,Resources
Blackpool Council,1011973,Automatic Alarms Ltd,3912250,316897,24/07/2018,1228.5,204.75,AER,Dual Use Properties,1171,Alarms,Resources
Blackpool Council,1020179,The James Mercer Group Ltd,3912251,113403,19/07/2018,274.8,45.8,AEB,Buildings,1012,Premises Maint-Priv.Contractor,Resources
Blackpool Council,1020179,The James Mercer Group Ltd,3912252,113402,19/07/2018,3131.18,521.86,AEB,Buildings,1121,Heating & Ventilation,Resources
Blackpool Council,1071214,Premier Of Lytham Ltd,3912265,15126,05/07/2018,303.66,50.61,AEB,Buildings,1012,Premises Maint-Priv.Contractor,Resources
Blackpool Council,1071214,Premier Of Lytham Ltd,3912266,15125,05/07/2018,290.21,48.37,AEB,Buildings,1012,Premises Maint-Priv.Contractor,Resources
Blackpool Council,1071214,Premier Of Lytham Ltd,3912267,15124,05/07/2018,250.73,41.79,AEB,Buildings,1012,Premises Maint-Priv.Contractor,Resources
Blackpool Council,1114862,Bancroft Amenities Ltd,3912281,20071,03/07/2018,672,112,AEB,Buildings,1012,Premises Maint-Priv.Contractor,Resources
Blackpool Council,1022613,Npower,3912319,79191203730,11/07/2018,601.03,100.17,AEZ,To Be Recharged,1202,Electricity,Resources
Blackpool Council,1114364,Bcc Eiffel Ltd,3912717,25268188 NNDR,02/07/2018,260.53,0,TAAAA,Business Improvement Districts,7151,Bid Income,Business Improvement Districts
Blackpool Council,1020179,The James Mercer Group Ltd,3913090,113122,06/07/2018,367.2,61.2,AEB,Buildings,1121,Heating & Ventilation,Resources
Blackpool Council,1071702,Links Signs & Graphics Ltd,3913096,LSGI24191,06/07/2018,253.2,42.2,AEB,Buildings,1012,Premises Maint-Priv.Contractor,Resources
Blackpool Council,1089971,Johnston Consulting Engineers Ltd,3913098,1940,04/07/2018,2100,350,DOMPFI,Domestic Waste & Waste Pfi,1012,Premises Maint-Priv.Contractor,Community & Env Services
Blackpool Council,1037417,Wurth Uk Limited,3913118,4033939288,11/07/2018,442.87,73.81,CVMU,Cvmu,3041,Other Materials,Community & Env Services
Blackpool Council,1059463,Trend International Group Ltd,3913315,0001/01356804,03/07/2018,373.68,62.28,PRINTS,Corporate Print Services,3408,Services To Clients,Places
Blackpool Council,1071702,Links Signs & Graphics Ltd,3913316,LSGI24608,02/07/2018,645.6,107.6,PRINTS,Corporate Print Services,3408,Services To Clients,Places
Blackpool Council,1115828,REDACTED PERSONAL DATA,3913338,MW010718-310718,02/07/2018,265,0,JEA,Senior Management,4809,Special Guardianship,Children'S Services
Blackpool Council,1114822,Irwin Mitchell Solicitors,3913342,L5M/05271534-1,03/07/2018,405,0,RK8002,Costs Pl,3807,Legal & Court Costs,Internal Insurance
Blackpool Council,1115232,Holdings Matrix Limited,3913343,103615.001,03/07/2018,4716.8,0,RK8002,Costs Pl,3807,Legal & Court Costs,Internal Insurance
Blackpool Council,1082058,Express Solicitors Ltd,3913344,49918/CL/SLB,03/07/2018,405,0,RK8002,Costs Pl,3807,Legal & Court Costs,Internal Insurance
Blackpool Council,1005266,REDACTED PERSONAL DATA,3913355,182037,02/07/2018,633.29,0,JEA,Senior Management,4809,Special Guardianship,Children'S Services
Blackpool Council,1005947,REDACTED PERSONAL DATA,3913356,182102,02/07/2018,726.29,0,JEA,Senior Management,4809,Special Guardianship,Children'S Services
Blackpool Council,1005947,REDACTED PERSONAL DATA,3913357,182101,02/07/2018,726.29,0,JEA,Senior Management,4809,Special Guardianship,Children'S Services
Blackpool Council,1005947,REDACTED PERSONAL DATA,3913358,181975,02/07/2018,726.29,0,JEA,Senior Management,4809,Special Guardianship,Children'S Services
Blackpool Council,1005947,REDACTED PERSONAL DATA,3913359,181976,02/07/2018,845.86,0,JEA,Senior Management,4809,Special Guardianship,Children'S Services
Blackpool Council,1005947,REDACTED PERSONAL DATA,3913360,181977,02/07/2018,633.29,0,JEA,Senior Management,4809,Special Guardianship,Children'S Services
Blackpool Council,1006685,REDACTED PERSONAL DATA,3913361,182107,02/07/2018,766.5,0,JEA,Senior Management,4809,Special Guardianship,Children'S Services
Blackpool Council,1006685,REDACTED PERSONAL DATA,3913362,181978,02/07/2018,766.5,0,JEA,Senior Management,4809,Special Guardianship,Children'S Services
Blackpool Council,1006685,REDACTED PERSONAL DATA,3913363,182106,02/07/2018,766.5,0,JEA,Senior Management,4809,Special Guardianship,Children'S Services
Blackpool Council,1007093,REDACTED PERSONAL DATA,3913364,181971,02/07/2018,1302,0,JEA,Senior Management,4809,Special Guardianship,Children'S Services
Blackpool Council,1007093,REDACTED PERSONAL DATA,3913365,181970,02/07/2018,1209,0,JEA,Senior Management,4809,Special Guardianship,Children'S Services
Blackpool Council,1007093,REDACTED PERSONAL DATA,3913366,182099,02/07/2018,1209,0,JEA,Senior Management,4809,Special Guardianship,Children'S Services
Blackpool Council,1007513,REDACTED PERSONAL DATA,3913367,181973,02/07/2018,715.92,0,JBR,Lac - Placements,4814,Adoption Allowances,Children'S Services
Blackpool Council,1010522,REDACTED PERSONAL DATA,3913368,181850,02/07/2018,726.29,0,JEA,Senior Management,4809,Special Guardianship,Children'S Services
Blackpool Council,1010522,REDACTED PERSONAL DATA,3913369,182039,02/07/2018,633.29,0,JEA,Senior Management,4809,Special Guardianship,Children'S Services
Blackpool Council,1018980,REDACTED PERSONAL DATA,3913370,182001,02/07/2018,1302,0,JBR,Lac - Placements,4814,Adoption Allowances,Children'S Services
Blackpool Council,1023504,REDACTED PERSONAL DATA,3913371,181915,02/07/2018,726.29,0,JEA,Senior Management,4809,Special Guardianship,Children'S Services
Blackpool Council,1025390,REDACTED PERSONAL DATA,3913372,182029,02/07/2018,726.29,0,JEA,Senior Management,4811,Residence Orders,Children'S Services
Blackpool Council,1032584,REDACTED PERSONAL DATA,3913373,181898,02/07/2018,726.29,0,JBR,Lac - Placements,4814,Adoption Allowances,Children'S Services
Blackpool Council,1038672,REDACTED PERSONAL DATA,3913374,182113,02/07/2018,562.43,0,JBR,Lac - Placements,4814,Adoption Allowances,Children'S Services
Blackpool Council,1038672,REDACTED PERSONAL DATA,3913375,181894,02/07/2018,562.43,0,JBR,Lac - Placements,4814,Adoption Allowances,Children'S Services
Blackpool Council,1041065,REDACTED PERSONAL DATA,3913376,181941,02/07/2018,562.43,0,JEA,Senior Management,4809,Special Guardianship,Children'S Services
Blackpool Council,1042600,REDACTED PERSONAL DATA,3913377,181844,02/07/2018,726.29,0,JEA,Senior Management,4811,Residence Orders,Children'S Services
Blackpool Council,1043459,REDACTED PERSONAL DATA,3913378,181900,02/07/2018,952.14,0,JBR,Lac - Placements,4814,Adoption Allowances,Children'S Services
Blackpool Council,1043651,REDACTED PERSONAL DATA,3913379,181896,02/07/2018,562.43,0,JBR,Lac - Placements,4814,Adoption Allowances,Children'S Services
Blackpool Council,1043651,REDACTED PERSONAL DATA,3913380,181882,02/07/2018,562.43,0,JBR,Lac - Placements,4814,Adoption Allowances,Children'S Services
Blackpool Council,1043651,REDACTED PERSONAL DATA,3913381,182023,02/07/2018,605.43,0,JBR,Lac - Placements,4814,Adoption Allowances,Children'S Services
Blackpool Council,1043955,REDACTED PERSONAL DATA,3913382,182160,02/07/2018,845.86,0,JEA,Senior Management,4809,Special Guardianship,Children'S Services
Blackpool Council,1043955,REDACTED PERSONAL DATA,3913383,181875,02/07/2018,726.29,0,JEA,Senior Management,4809,Special Guardianship,Children'S Services
Blackpool Council,1044018,REDACTED PERSONAL DATA,3913384,181835,02/07/2018,562.43,0,JBR,Lac - Placements,4814,Adoption Allowances,Children'S Services
Blackpool Council,1048741,REDACTED PERSONAL DATA,3913385,182198,02/07/2018,726.29,0,JEA,Senior Management,4809,Special Guardianship,Children'S Services
Blackpool Council,1048947,REDACTED PERSONAL DATA,3913386,181904,02/07/2018,726.29,0,JEA,Senior Management,4811,Residence Orders,Children'S Services
Blackpool Council,1049626,REDACTED PERSONAL DATA,3913387,182185,02/07/2018,633.29,0,JEA,Senior Management,4809,Special Guardianship,Children'S Services
Blackpool Council,1049626,REDACTED PERSONAL DATA,3913388,182156,02/07/2018,633.29,0,JEA,Senior Management,4809,Special Guardianship,Children'S Services
Blackpool Council,1049626,REDACTED PERSONAL DATA,3913389,182000,02/07/2018,633.29,0,JEA,Senior Management,4809,Special Guardianship,Children'S Services
Blackpool Council,1049626,REDACTED PERSONAL DATA,3913390,181999,02/07/2018,726.29,0,JEA,Senior Management,4809,Special Guardianship,Children'S Services
Blackpool Council,1052328,REDACTED PERSONAL DATA,3913391,182123,02/07/2018,726.29,0,JEA,Senior Management,4811,Residence Orders,Children'S Services
Blackpool Council,1054536,REDACTED PERSONAL DATA,3913392,182171,02/07/2018,726.29,0,JEA,Senior Management,4811,Residence Orders,Children'S Services
Blackpool Council,1054614,REDACTED PERSONAL DATA,3913393,181994,02/07/2018,726.29,0,JEA,Senior Management,4809,Special Guardianship,Children'S Services
Blackpool Council,1057277,REDACTED PERSONAL DATA,3913394,182020,02/07/2018,633.29,0,JBR,Lac - Placements,4814,Adoption Allowances,Children'S Services
Blackpool Council,1058573,REDACTED PERSONAL DATA,3913395,182011,02/07/2018,726.29,0,JEA,Senior Management,4809,Special Guardianship,Children'S Services
Blackpool Council,1059285,REDACTED PERSONAL DATA,3913396,181901,02/07/2018,1009.72,0,JBR,Lac - Placements,4814,Adoption Allowances,Children'S Services
Blackpool Council,1059285,REDACTED PERSONAL DATA,3913397,181841,02/07/2018,1058.43,0,JBR,Lac - Placements,4814,Adoption Allowances,Children'S Services
Blackpool Council,1059285,REDACTED PERSONAL DATA,3913398,182008,02/07/2018,1058.43,0,JBR,Lac - Placements,4814,Adoption Allowances,Children'S Services
Blackpool Council,1061307,REDACTED PERSONAL DATA,3913399,181846,02/07/2018,562.43,0,JEA,Senior Management,4809,Special Guardianship,Children'S Services
Blackpool Council,1062123,REDACTED PERSONAL DATA,3913400,182120,02/07/2018,633.29,0,JBR,Lac - Placements,4814,Adoption Allowances,Children'S Services
Blackpool Council,1063757,REDACTED PERSONAL DATA,3913401,182045,02/07/2018,726.29,0,JEA,Senior Management,4809,Special Guardianship,Children'S Services
Blackpool Council,1063757,REDACTED PERSONAL DATA,3913402,182044,02/07/2018,845.86,0,JEA,Senior Management,4809,Special Guardianship,Children'S Services
Blackpool Council,1064011,REDACTED PERSONAL DATA,3913403,182032,02/07/2018,562.43,0,JEA,Senior Management,4809,Special Guardianship,Children'S Services
Blackpool Council,1066475,REDACTED PERSONAL DATA,3913404,182114,02/07/2018,562.43,0,JBR,Lac - Placements,4814,Adoption Allowances,Children'S Services
Blackpool Council,1068480,REDACTED PERSONAL DATA,3913405,182125,02/07/2018,562.43,0,JEA,Senior Management,4809,Special Guardianship,Children'S Services
Blackpool Council,1068524,REDACTED PERSONAL DATA,3913406,182033,02/07/2018,562.43,0,JEA,Senior Management,4809,Special Guardianship,Children'S Services
Blackpool Council,1068906,REDACTED PERSONAL DATA,3913407,182015,02/07/2018,562.43,0,JBR,Lac - Placements,4814,Adoption Allowances,Children'S Services
Blackpool Council,1068906,REDACTED PERSONAL DATA,3913408,182014,02/07/2018,562.43,0,JBR,Lac - Placements,4814,Adoption Allowances,Children'S Services
Blackpool Council,1068906,REDACTED PERSONAL DATA,3913409,182013,02/07/2018,562.43,0,JBR,Lac - Placements,4814,Adoption Allowances,Children'S Services
Blackpool Council,1068968,REDACTED PERSONAL DATA,3913410,181895,02/07/2018,562.43,0,JBR,Lac - Placements,4814,Adoption Allowances,Children'S Services
Blackpool Council,1069176,REDACTED PERSONAL DATA,3913411,182124,02/07/2018,562.43,0,JEA,Senior Management,4809,Special Guardianship,Children'S Services
Blackpool Council,1069176,REDACTED PERSONAL DATA,3913412,182031,02/07/2018,562.43,0,JEA,Senior Management,4809,Special Guardianship,Children'S Services
Blackpool Council,1070512,REDACTED PERSONAL DATA,3913413,182059,02/07/2018,575.71,0,JEA,Senior Management,4809,Special Guardianship,Children'S Services
Blackpool Council,1070602,REDACTED PERSONAL DATA,3913414,182126,02/07/2018,562.43,0,JEA,Senior Management,4809,Special Guardianship,Children'S Services
Blackpool Council,1071018,REDACTED PERSONAL DATA,3913415,181836,02/07/2018,562.43,0,JBR,Lac - Placements,4814,Adoption Allowances,Children'S Services
Blackpool Council,1071018,REDACTED PERSONAL DATA,3913416,182115,02/07/2018,562.43,0,JBR,Lac - Placements,4814,Adoption Allowances,Children'S Services
Blackpool Council,1071018,REDACTED PERSONAL DATA,3913417,182016,02/07/2018,562.43,0,JBR,Lac - Placements,4814,Adoption Allowances,Children'S Services
Blackpool Council,1071683,REDACTED PERSONAL DATA,3913418,181907,02/07/2018,562.43,0,JEA,Senior Management,4809,Special Guardianship,Children'S Services
Blackpool Council,1071683,REDACTED PERSONAL DATA,3913419,182129,02/07/2018,562.43,0,JEA,Senior Management,4809,Special Guardianship,Children'S Services
Blackpool Council,1072770,REDACTED PERSONAL DATA,3913420,182127,02/07/2018,562.43,0,JEA,Senior Management,4809,Special Guardianship,Children'S Services
Blackpool Council,1074231,REDACTED PERSONAL DATA,3913421,182172,02/07/2018,562.43,0,JEA,Senior Management,4811,Residence Orders,Children'S Services
Blackpool Council,1076446,REDACTED PERSONAL DATA,3913422,181905,02/07/2018,562.43,0,JEA,Senior Management,4811,Residence Orders,Children'S Services
Blackpool Council,1076446,REDACTED PERSONAL DATA,3913423,181845,02/07/2018,562.43,0,JEA,Senior Management,4811,Residence Orders,Children'S Services
Blackpool Council,1077446,REDACTED PERSONAL DATA,3913424,182116,02/07/2018,562.43,0,JBR,Lac - Placements,4814,Adoption Allowances,Children'S Services
Blackpool Council,1077610,REDACTED PERSONAL DATA,3913425,181906,02/07/2018,562.43,0,JEA,Senior Management,4809,Special Guardianship,Children'S Services
Blackpool Council,1078284,REDACTED PERSONAL DATA,3913426,181848,02/07/2018,562.43,0,JEA,Senior Management,4809,Special Guardianship,Children'S Services
Blackpool Council,1079501,REDACTED PERSONAL DATA,3913427,181966,02/07/2018,562.43,0,JEA,Senior Management,4809,Special Guardianship,Children'S Services
Blackpool Council,1079745,REDACTED PERSONAL DATA,3913428,182128,02/07/2018,562.43,0,JEA,Senior Management,4809,Special Guardianship,Children'S Services
Blackpool Council,1080101,REDACTED PERSONAL DATA,3913429,181847,02/07/2018,562.43,0,JEA,Senior Management,4809,Special Guardianship,Children'S Services
Blackpool Council,1080411,REDACTED PERSONAL DATA,3913430,181837,02/07/2018,562.43,0,JBR,Lac - Placements,4814,Adoption Allowances,Children'S Services
Blackpool Council,1081971,REDACTED PERSONAL DATA,3913431,181914,02/07/2018,1009.72,0,JEA,Senior Management,4809,Special Guardianship,Children'S Services
Blackpool Council,1081971,REDACTED PERSONAL DATA,3913432,181855,02/07/2018,1009.72,0,JEA,Senior Management,4809,Special Guardianship,Children'S Services
Blackpool Council,1082124,REDACTED PERSONAL DATA,3913433,181868,02/07/2018,562.43,0,JEA,Senior Management,4809,Special Guardianship,Children'S Services
Blackpool Council,1082476,REDACTED PERSONAL DATA,3913434,182148,02/07/2018,1009.72,0,JEA,Senior Management,4809,Special Guardianship,Children'S Services
Blackpool Council,1082476,REDACTED PERSONAL DATA,3913435,182062,02/07/2018,1009.72,0,JEA,Senior Management,4809,Special Guardianship,Children'S Services
Blackpool Council,1082476,REDACTED PERSONAL DATA,3913436,181929,02/07/2018,1009.72,0,JEA,Senior Management,4809,Special Guardianship,Children'S Services
Blackpool Council,1082803,REDACTED PERSONAL DATA,3913437,182194,02/07/2018,633.29,0,JEA,Senior Management,4811,Residence Orders,Children'S Services
Blackpool Council,1083419,REDACTED PERSONAL DATA,3913438,181968,02/07/2018,633.29,0,JEA,Senior Management,4809,Special Guardianship,Children'S Services
Blackpool Council,1083907,REDACTED PERSONAL DATA,3913439,181998,02/07/2018,562.43,0,JEA,Senior Management,4809,Special Guardianship,Children'S Services
Blackpool Council,1083907,REDACTED PERSONAL DATA,3913440,182189,02/07/2018,562.43,0,JEA,Senior Management,4809,Special Guardianship,Children'S Services
Blackpool Council,1083907,REDACTED PERSONAL DATA,3913441,181997,02/07/2018,562.43,0,JEA,Senior Management,4809,Special Guardianship,Children'S Services
Blackpool Council,1085922,REDACTED PERSONAL DATA,3913442,182034,02/07/2018,562.43,0,JEA,Senior Management,4809,Special Guardianship,Children'S Services
Blackpool Council,1085923,REDACTED PERSONAL DATA,3913443,181884,02/07/2018,1009.72,0,JBR,Lac - Placements,4814,Adoption Allowances,Children'S Services
Blackpool Council,1085923,REDACTED PERSONAL DATA,3913444,182103,02/07/2018,965.43,0,JEA,Senior Management,4809,Special Guardianship,Children'S Services
Blackpool Council,1085923,REDACTED PERSONAL DATA,3913445,181839,02/07/2018,575.71,0,JBR,Lac - Placements,4814,Adoption Allowances,Children'S Services
Blackpool Council,1085923,REDACTED PERSONAL DATA,3913446,182188,02/07/2018,1102.72,0,JBR,Lac - Placements,4814,Adoption Allowances,Children'S Services
Blackpool Council,1085928,REDACTED PERSONAL DATA,3913447,182035,02/07/2018,562.43,0,JEA,Senior Management,4809,Special Guardianship,Children'S Services
Blackpool Council,1085928,REDACTED PERSONAL DATA,3913448,181853,02/07/2018,633.29,0,JEA,Senior Management,4809,Special Guardianship,Children'S Services
Blackpool Council,1085931,REDACTED PERSONAL DATA,3913449,182132,02/07/2018,726.29,0,JEA,Senior Management,4809,Special Guardianship,Children'S Services
Blackpool Council,1085931,REDACTED PERSONAL DATA,3913450,181910,02/07/2018,726.29,0,JEA,Senior Management,4809,Special Guardianship,Children'S Services
Blackpool Council,1086638,REDACTED PERSONAL DATA,3913451,182018,02/07/2018,562.43,0,JBR,Lac - Placements,4814,Adoption Allowances,Children'S Services
Blackpool Council,1087223,REDACTED PERSONAL DATA,3913452,182017,02/07/2018,562.43,0,JBR,Lac - Placements,4814,Adoption Allowances,Children'S Services
Blackpool Council,1087223,REDACTED PERSONAL DATA,3913453,181883,02/07/2018,562.43,0,JBR,Lac - Placements,4814,Adoption Allowances,Children'S Services
Blackpool Council,1088072,REDACTED PERSONAL DATA,3913454,181928,02/07/2018,575.71,0,JEA,Senior Management,4809,Special Guardianship,Children'S Services
Blackpool Council,1088081,REDACTED PERSONAL DATA,3913455,181991,02/07/2018,633.29,0,JEA,Senior Management,4809,Special Guardianship,Children'S Services
Blackpool Council,1088106,REDACTED PERSONAL DATA,3913456,182041,02/07/2018,633.29,0,JEA,Senior Management,4809,Special Guardianship,Children'S Services
Blackpool Council,1088246,REDACTED PERSONAL DATA,3913457,182118,02/07/2018,633.29,0,JBR,Lac - Placements,4814,Adoption Allowances,Children'S Services
Blackpool Council,1088614,REDACTED PERSONAL DATA,3913458,182019,02/07/2018,562.43,0,JBR,Lac - Placements,4814,Adoption Allowances,Children'S Services
Blackpool Council,1088741,REDACTED PERSONAL DATA,3913459,181897,02/07/2018,633.29,0,JBR,Lac - Placements,4814,Adoption Allowances,Children'S Services
Blackpool Council,1088744,REDACTED PERSONAL DATA,3913460,182009,02/07/2018,633.29,0,JEA,Senior Management,4809,Special Guardianship,Children'S Services
Blackpool Council,1089503,REDACTED PERSONAL DATA,3913461,182052,02/07/2018,633.29,0,JEA,Senior Management,4809,Special Guardianship,Children'S Services
Blackpool Council,1089504,REDACTED PERSONAL DATA,3913462,181849,02/07/2018,633.29,0,JEA,Senior Management,4809,Special Guardianship,Children'S Services
Blackpool Council,1089505,REDACTED PERSONAL DATA,3913463,182038,02/07/2018,633.29,0,JEA,Senior Management,4809,Special Guardianship,Children'S Services
Blackpool Council,1089980,REDACTED PERSONAL DATA,3913464,182136,02/07/2018,633.29,0,JEA,Senior Management,4809,Special Guardianship,Children'S Services
Blackpool Council,1090278,REDACTED PERSONAL DATA,3913465,181838,02/07/2018,633.29,0,JBR,Lac - Placements,4814,Adoption Allowances,Children'S Services
Blackpool Council,1090507,REDACTED PERSONAL DATA,3913466,182117,02/07/2018,562.43,0,JBR,Lac - Placements,4814,Adoption Allowances,Children'S Services
Blackpool Council,1090553,REDACTED PERSONAL DATA,3913467,182007,02/07/2018,562.43,0,JEA,Senior Management,4811,Residence Orders,Children'S Services
Blackpool Council,1090574,REDACTED PERSONAL DATA,3913468,182169,02/07/2018,1151.42,0,JEA,Senior Management,4809,Special Guardianship,Children'S Services
Blackpool Council,1090574,REDACTED PERSONAL DATA,3913469,181951,02/07/2018,1209,0,JEA,Senior Management,4809,Special Guardianship,Children'S Services
Blackpool Council,1090630,REDACTED PERSONAL DATA,3913470,181909,02/07/2018,726.29,0,JEA,Senior Management,4809,Special Guardianship,Children'S Services
Blackpool Council,1090630,REDACTED PERSONAL DATA,3913471,181851,02/07/2018,633.29,0,JEA,Senior Management,4809,Special Guardianship,Children'S Services
Blackpool Council,1091208,REDACTED PERSONAL DATA,3913472,182104,02/07/2018,633.29,0,JEA,Senior Management,4809,Special Guardianship,Children'S Services
Blackpool Council,1091538,REDACTED PERSONAL DATA,3913473,182098,02/07/2018,2858.29,0,JEA,Senior Management,4809,Special Guardianship,Children'S Services
Blackpool Council,1092226,REDACTED PERSONAL DATA,3913474,182130,02/07/2018,633.29,0,JEA,Senior Management,4809,Special Guardianship,Children'S Services
Blackpool Council,1092955,REDACTED PERSONAL DATA,3913475,182043,02/07/2018,633.29,0,JEA,Senior Management,4809,Special Guardianship,Children'S Services
Blackpool Council,1093033,REDACTED PERSONAL DATA,3913476,182036,02/07/2018,633.29,0,JEA,Senior Management,4809,Special Guardianship,Children'S Services
Blackpool Council,1093432,REDACTED PERSONAL DATA,3913477,181912,02/07/2018,726.29,0,JEA,Senior Management,4809,Special Guardianship,Children'S Services
Blackpool Council,1093432,REDACTED PERSONAL DATA,3913478,182042,02/07/2018,633.29,0,JEA,Senior Management,4809,Special Guardianship,Children'S Services
Blackpool Council,1093556,REDACTED PERSONAL DATA,3913479,181852,02/07/2018,633.29,0,JEA,Senior Management,4809,Special Guardianship,Children'S Services
Blackpool Council,1093573,REDACTED PERSONAL DATA,3913480,181963,02/07/2018,726.29,0,JEA,Senior Management,4809,Special Guardianship,Children'S Services
Blackpool Council,1094329,REDACTED PERSONAL DATA,3913481,182135,02/07/2018,633.29,0,JEA,Senior Management,4809,Special Guardianship,Children'S Services
Blackpool Council,1095249,REDACTED PERSONAL DATA,3913482,181965,02/07/2018,633.29,0,JEA,Senior Management,4809,Special Guardianship,Children'S Services
Blackpool Council,1095249,REDACTED PERSONAL DATA,3913483,181964,02/07/2018,726.29,0,JEA,Senior Management,4809,Special Guardianship,Children'S Services
Blackpool Council,1095249,REDACTED PERSONAL DATA,3913484,182097,02/07/2018,633.29,0,JEA,Senior Management,4809,Special Guardianship,Children'S Services
Blackpool Council,1095280,REDACTED PERSONAL DATA,3913485,181980,02/07/2018,726.29,0,JEA,Senior Management,4811,Residence Orders,Children'S Services
Blackpool Council,1095280,REDACTED PERSONAL DATA,3913486,182197,02/07/2018,633.29,0,JEA,Senior Management,4811,Residence Orders,Children'S Services
Blackpool Council,1095510,REDACTED PERSONAL DATA,3913487,182150,02/07/2018,726.29,0,JEA,Senior Management,4809,Special Guardianship,Children'S Services
Blackpool Council,1095510,REDACTED PERSONAL DATA,3913488,181930,02/07/2018,726.29,0,JEA,Senior Management,4809,Special Guardianship,Children'S Services
Blackpool Council,1095873,REDACTED PERSONAL DATA,3913489,181859,02/07/2018,845.86,0,JEA,Senior Management,4809,Special Guardianship,Children'S Services
Blackpool Council,1095873,REDACTED PERSONAL DATA,3913490,182140,02/07/2018,633.29,0,JEA,Senior Management,4809,Special Guardianship,Children'S Services
Blackpool Council,1095956,REDACTED PERSONAL DATA,3913491,181911,02/07/2018,633.29,0,JEA,Senior Management,4809,Special Guardianship,Children'S Services
Blackpool Council,1096099,REDACTED PERSONAL DATA,3913492,181856,02/07/2018,633.29,0,JEA,Senior Management,4809,Special Guardianship,Children'S Services
Blackpool Council,1096099,REDACTED PERSONAL DATA,3913493,181857,02/07/2018,633.29,0,JEA,Senior Management,4809,Special Guardianship,Children'S Services
Blackpool Council,1096411,REDACTED PERSONAL DATA,3913494,181861,02/07/2018,633.29,0,JEA,Senior Management,4809,Special Guardianship,Children'S Services
Blackpool Council,1096411,REDACTED PERSONAL DATA,3913495,182057,02/07/2018,633.29,0,JEA,Senior Management,4809,Special Guardianship,Children'S Services
Blackpool Council,1096569,REDACTED PERSONAL DATA,3913496,181908,02/07/2018,633.29,0,JEA,Senior Management,4809,Special Guardianship,Children'S Services
Blackpool Council,1096576,REDACTED PERSONAL DATA,3913497,182131,02/07/2018,633.29,0,JEA,Senior Management,4809,Special Guardianship,Children'S Services
Blackpool Council,1096776,REDACTED PERSONAL DATA,3913498,181854,02/07/2018,726.29,0,JEA,Senior Management,4809,Special Guardianship,Children'S Services
Blackpool Council,1096875,REDACTED PERSONAL DATA,3913499,181921,02/07/2018,575.71,0,JEA,Senior Management,4809,Special Guardianship,Children'S Services
Blackpool Council,1096875,REDACTED PERSONAL DATA,3913500,182040,02/07/2018,633.29,0,JEA,Senior Management,4809,Special Guardianship,Children'S Services
Blackpool Council,1097143,REDACTED PERSONAL DATA,3913501,182191,02/07/2018,726.29,0,JBR,Lac - Placements,4814,Adoption Allowances,Children'S Services
Blackpool Council,1097143,REDACTED PERSONAL DATA,3913502,182190,02/07/2018,633.29,0,JBR,Lac - Placements,4814,Adoption Allowances,Children'S Services
Blackpool Council,1097161,REDACTED PERSONAL DATA,3913503,182119,02/07/2018,726.29,0,JBR,Lac - Placements,4814,Adoption Allowances,Children'S Services
Blackpool Council,1097279,REDACTED PERSONAL DATA,3913504,181920,02/07/2018,633.29,0,JEA,Senior Management,4809,Special Guardianship,Children'S Services
Blackpool Council,1097279,REDACTED PERSONAL DATA,3913505,182056,02/07/2018,633.29,0,JEA,Senior Management,4809,Special Guardianship,Children'S Services
Blackpool Council,1097279,REDACTED PERSONAL DATA,3913506,182055,02/07/2018,726.29,0,JEA,Senior Management,4809,Special Guardianship,Children'S Services
Blackpool Council,1097281,REDACTED PERSONAL DATA,3913507,182141,02/07/2018,633.29,0,JEA,Senior Management,4809,Special Guardianship,Children'S Services
Blackpool Council,1097474,REDACTED PERSONAL DATA,3913508,182133,02/07/2018,633.29,0,JEA,Senior Management,4809,Special Guardianship,Children'S Services
Blackpool Council,1097474,REDACTED PERSONAL DATA,3913509,181879,02/07/2018,575.71,0,JEA,Senior Management,4809,Special Guardianship,Children'S Services
Blackpool Council,1097980,REDACTED PERSONAL DATA,3913510,181862,02/07/2018,633.29,0,JEA,Senior Management,4809,Special Guardianship,Children'S Services
Blackpool Council,1098016,REDACTED PERSONAL DATA,3913511,182046,02/07/2018,633.29,0,JEA,Senior Management,4809,Special Guardianship,Children'S Services
Blackpool Council,1098016,REDACTED PERSONAL DATA,3913512,181913,02/07/2018,633.29,0,JEA,Senior Management,4809,Special Guardianship,Children'S Services
Blackpool Council,1098048,REDACTED PERSONAL DATA,3913513,182030,02/07/2018,633.29,0,JEA,Senior Management,4811,Residence Orders,Children'S Services
Blackpool Council,1098051,REDACTED PERSONAL DATA,3913514,182108,02/07/2018,633.29,0,JBR,Lac - Placements,4814,Adoption Allowances,Children'S Services
Blackpool Council,1098264,REDACTED PERSONAL DATA,3913515,181974,02/07/2018,885.71,0,JBR,Lac - Placements,4814,Adoption Allowances,Children'S Services
Blackpool Council,1098406,REDACTED PERSONAL DATA,3913516,182048,02/07/2018,633.29,0,JEA,Senior Management,4809,Special Guardianship,Children'S Services
Blackpool Council,1098406,REDACTED PERSONAL DATA,3913517,181916,02/07/2018,633.29,0,JEA,Senior Management,4809,Special Guardianship,Children'S Services
Blackpool Council,1098564,REDACTED PERSONAL DATA,3913518,182139,02/07/2018,633.29,0,JEA,Senior Management,4809,Special Guardianship,Children'S Services
Blackpool Council,1098564,REDACTED PERSONAL DATA,3913519,181858,02/07/2018,633.29,0,JEA,Senior Management,4809,Special Guardianship,Children'S Services
Blackpool Council,1098878,REDACTED PERSONAL DATA,3913520,182196,02/07/2018,1070.7,0,JEA,Senior Management,4809,Special Guardianship,Children'S Services
Blackpool Council,1099199,REDACTED PERSONAL DATA,3913521,182200,02/07/2018,562.43,0,JEA,Senior Management,4809,Special Guardianship,Children'S Services
Blackpool Council,1099199,REDACTED PERSONAL DATA,3913522,181982,02/07/2018,575.71,0,JEA,Senior Management,4809,Special Guardianship,Children'S Services
Blackpool Council,1099323,REDACTED PERSONAL DATA,3913523,182096,02/07/2018,726.29,0,JEA,Senior Management,4809,Special Guardianship,Children'S Services
Blackpool Council,1099331,REDACTED PERSONAL DATA,3913524,182134,02/07/2018,633.29,0,JEA,Senior Management,4809,Special Guardianship,Children'S Services
Blackpool Council,1099340,REDACTED PERSONAL DATA,3913525,182002,02/07/2018,726.29,0,JBR,Lac - Placements,4814,Adoption Allowances,Children'S Services
Blackpool Council,1099367,REDACTED PERSONAL DATA,3913526,182142,02/07/2018,726.29,0,JEA,Senior Management,4809,Special Guardianship,Children'S Services
Blackpool Council,1099367,REDACTED PERSONAL DATA,3913527,182054,02/07/2018,726.29,0,JEA,Senior Management,4809,Special Guardianship,Children'S Services
Blackpool Council,1099431,REDACTED PERSONAL DATA,3913528,181918,02/07/2018,633.29,0,JEA,Senior Management,4809,Special Guardianship,Children'S Services
Blackpool Council,1099431,REDACTED PERSONAL DATA,3913529,182050,02/07/2018,633.29,0,JEA,Senior Management,4809,Special Guardianship,Children'S Services
Blackpool Council,1099523,REDACTED PERSONAL DATA,3913530,182049,02/07/2018,633.29,0,JEA,Senior Management,4809,Special Guardianship,Children'S Services
Blackpool Council,1099523,REDACTED PERSONAL DATA,3913531,181917,02/07/2018,633.29,0,JEA,Senior Management,4809,Special Guardianship,Children'S Services
Blackpool Council,1099523,REDACTED PERSONAL DATA,3913532,182137,02/07/2018,633.29,0,JEA,Senior Management,4809,Special Guardianship,Children'S Services
Blackpool Council,1099900,REDACTED PERSONAL DATA,3913533,182068,02/07/2018,1009.72,0,JEA,Senior Management,4809,Special Guardianship,Children'S Services
Blackpool Council,1099900,REDACTED PERSONAL DATA,3913534,182153,02/07/2018,1009.72,0,JEA,Senior Management,4809,Special Guardianship,Children'S Services
Blackpool Council,1099918,REDACTED PERSONAL DATA,3913535,182051,02/07/2018,633.29,0,JEA,Senior Management,4809,Special Guardianship,Children'S Services
Blackpool Council,1100098,REDACTED PERSONAL DATA,3913536,182180,02/07/2018,633.29,0,JEA,Senior Management,4809,Special Guardianship,Children'S Services
Blackpool Council,1100098,REDACTED PERSONAL DATA,3913537,182179,02/07/2018,633.29,0,JEA,Senior Management,4809,Special Guardianship,Children'S Services
Blackpool Council,1100450,REDACTED PERSONAL DATA,3913538,182112,02/07/2018,726.29,0,JBR,Lac - Placements,4814,Adoption Allowances,Children'S Services
Blackpool Council,1100450,REDACTED PERSONAL DATA,3913539,182201,02/07/2018,633.29,0,JBR,Lac - Placements,4814,Adoption Allowances,Children'S Services
Blackpool Council,1100455,REDACTED PERSONAL DATA,3913540,182110,02/07/2018,575.71,0,JBR,Lac - Placements,4814,Adoption Allowances,Children'S Services
Blackpool Council,1100455,REDACTED PERSONAL DATA,3913541,182199,02/07/2018,575.71,0,JBR,Lac - Placements,4814,Adoption Allowances,Children'S Services
Blackpool Council,1100685,REDACTED PERSONAL DATA,3913542,181924,02/07/2018,633.29,0,JEA,Senior Management,4809,Special Guardianship,Children'S Services
Blackpool Council,1100963,REDACTED PERSONAL DATA,3913543,182138,02/07/2018,633.29,0,JEA,Senior Management,4809,Special Guardianship,Children'S Services
Blackpool Council,1101353,REDACTED PERSONAL DATA,3913544,182145,02/07/2018,633.29,0,JEA,Senior Management,4809,Special Guardianship,Children'S Services
Blackpool Council,1101354,REDACTED PERSONAL DATA,3913545,181860,02/07/2018,633.29,0,JEA,Senior Management,4809,Special Guardianship,Children'S Services
Blackpool Council,1101713,REDACTED PERSONAL DATA,3913546,182089,02/07/2018,575.71,0,JEA,Senior Management,4809,Special Guardianship,Children'S Services
Blackpool Council,1101713,REDACTED PERSONAL DATA,3913547,181990,02/07/2018,726.29,0,JEA,Senior Management,4809,Special Guardianship,Children'S Services
Blackpool Council,1101877,REDACTED PERSONAL DATA,3913548,182143,02/07/2018,633.29,0,JEA,Senior Management,4809,Special Guardianship,Children'S Services
Blackpool Council,1102002,REDACTED PERSONAL DATA,3913549,181902,02/07/2018,726.29,0,JEA,Senior Management,4811,Residence Orders,Children'S Services
Blackpool Council,1102142,REDACTED PERSONAL DATA,3913550,182053,02/07/2018,633.29,0,JEA,Senior Management,4809,Special Guardianship,Children'S Services
Blackpool Council,1102145,REDACTED PERSONAL DATA,3913551,182047,02/07/2018,690.29,0,JEA,Senior Management,4809,Special Guardianship,Children'S Services
Blackpool Council,1102685,REDACTED PERSONAL DATA,3913552,181979,02/07/2018,613.18,0,JEA,Senior Management,4809,Special Guardianship,Children'S Services
Blackpool Council,1102721,REDACTED PERSONAL DATA,3913553,182077,02/07/2018,562.43,0,JEA,Senior Management,4809,Special Guardianship,Children'S Services
Blackpool Council,1102721,REDACTED PERSONAL DATA,3913554,181919,02/07/2018,633.29,0,JEA,Senior Management,4809,Special Guardianship,Children'S Services
Blackpool Council,1103139,REDACTED PERSONAL DATA,3913555,182078,02/07/2018,633.29,0,JEA,Senior Management,4809,Special Guardianship,Children'S Services
Blackpool Council,1103207,REDACTED PERSONAL DATA,3913556,182022,02/07/2018,633.29,0,JBR,Lac - Placements,4814,Adoption Allowances,Children'S Services
Blackpool Council,1103207,REDACTED PERSONAL DATA,3913557,181840,02/07/2018,633.29,0,JBR,Lac - Placements,4814,Adoption Allowances,Children'S Services
Blackpool Council,1103230,REDACTED PERSONAL DATA,3913558,181925,02/07/2018,575.71,0,JEA,Senior Management,4809,Special Guardianship,Children'S Services
Blackpool Council,1103557,REDACTED PERSONAL DATA,3913559,181996,02/07/2018,575.71,0,JEA,Senior Management,4809,Special Guardianship,Children'S Services
Blackpool Council,1103561,REDACTED PERSONAL DATA,3913560,182146,02/07/2018,633.29,0,JEA,Senior Management,4809,Special Guardianship,Children'S Services
Blackpool Council,1103561,REDACTED PERSONAL DATA,3913561,181927,02/07/2018,575.71,0,JEA,Senior Management,4809,Special Guardianship,Children'S Services
Blackpool Council,1103621,REDACTED PERSONAL DATA,3913562,181885,02/07/2018,575.71,0,JEA,Senior Management,4811,Residence Orders,Children'S Services
Blackpool Council,1103757,REDACTED PERSONAL DATA,3913563,181899,02/07/2018,702.29,0,JBR,Lac - Placements,4814,Adoption Allowances,Children'S Services
Blackpool Council,1103853,REDACTED PERSONAL DATA,3913564,182063,02/07/2018,575.71,0,JEA,Senior Management,4809,Special Guardianship,Children'S Services
Blackpool Council,1103855,REDACTED PERSONAL DATA,3913565,181926,02/07/2018,575.71,0,JEA,Senior Management,4809,Special Guardianship,Children'S Services
Blackpool Council,1103921,REDACTED PERSONAL DATA,3913566,182094,02/07/2018,575.71,0,JEA,Senior Management,4809,Special Guardianship,Children'S Services
Blackpool Council,1104007,REDACTED PERSONAL DATA,3913567,182092,02/07/2018,575.71,0,JEA,Senior Management,4809,Special Guardianship,Children'S Services
Blackpool Council,1104023,REDACTED PERSONAL DATA,3913568,181864,02/07/2018,575.71,0,JEA,Senior Management,4809,Special Guardianship,Children'S Services
Blackpool Council,1104023,REDACTED PERSONAL DATA,3913569,182149,02/07/2018,633.29,0,JEA,Senior Management,4809,Special Guardianship,Children'S Services
Blackpool Council,1104041,REDACTED PERSONAL DATA,3913570,181922,02/07/2018,575.71,0,JEA,Senior Management,4809,Special Guardianship,Children'S Services
Blackpool Council,1104276,REDACTED PERSONAL DATA,3913571,182122,02/07/2018,633.29,0,JEA,Senior Management,4811,Residence Orders,Children'S Services
Blackpool Council,1104276,REDACTED PERSONAL DATA,3913572,182025,02/07/2018,575.71,0,JEA,Senior Management,4811,Residence Orders,Children'S Services
Blackpool Council,1104276,REDACTED PERSONAL DATA,3913573,182026,02/07/2018,633.29,0,JEA,Senior Management,4811,Residence Orders,Children'S Services
Blackpool Council,1104610,REDACTED PERSONAL DATA,3913574,182058,02/07/2018,575.71,0,JEA,Senior Management,4809,Special Guardianship,Children'S Services
Blackpool Council,1104777,REDACTED PERSONAL DATA,3913575,181931,02/07/2018,726.29,0,JEA,Senior Management,4809,Special Guardianship,Children'S Services
Blackpool Council,1104780,REDACTED PERSONAL DATA,3913576,182067,02/07/2018,575.71,0,JEA,Senior Management,4809,Special Guardianship,Children'S Services
Blackpool Council,1105055,REDACTED PERSONAL DATA,3913577,182111,02/07/2018,633.29,0,JBR,Lac - Placements,4814,Adoption Allowances,Children'S Services
Blackpool Council,1105132,REDACTED PERSONAL DATA,3913578,182158,02/07/2018,633.29,0,JEA,Senior Management,4809,Special Guardianship,Children'S Services
Blackpool Council,1105132,REDACTED PERSONAL DATA,3913579,181870,02/07/2018,693.29,0,JEA,Senior Management,4809,Special Guardianship,Children'S Services
Blackpool Council,1105216,REDACTED PERSONAL DATA,3913580,182147,02/07/2018,575.71,0,JEA,Senior Management,4809,Special Guardianship,Children'S Services
Blackpool Council,1105271,REDACTED PERSONAL DATA,3913581,182066,02/07/2018,575.71,0,JEA,Senior Management,4809,Special Guardianship,Children'S Services
Blackpool Council,1105544,REDACTED PERSONAL DATA,3913582,182144,02/07/2018,575.71,0,JEA,Senior Management,4809,Special Guardianship,Children'S Services
Blackpool Council,1105544,REDACTED PERSONAL DATA,3913583,181923,02/07/2018,633.29,0,JEA,Senior Management,4809,Special Guardianship,Children'S Services
Blackpool Council,1105544,REDACTED PERSONAL DATA,3913584,181958,02/07/2018,575.71,0,JEA,Senior Management,4809,Special Guardianship,Children'S Services
Blackpool Council,1105579,REDACTED PERSONAL DATA,3913585,182060,02/07/2018,726.29,0,JEA,Senior Management,4809,Special Guardianship,Children'S Services
Blackpool Council,1105579,REDACTED PERSONAL DATA,3913586,181863,02/07/2018,726.29,0,JEA,Senior Management,4809,Special Guardianship,Children'S Services
Blackpool Council,1105610,REDACTED PERSONAL DATA,3913587,182061,02/07/2018,575.71,0,JEA,Senior Management,4809,Special Guardianship,Children'S Services
Blackpool Council,1105772,REDACTED PERSONAL DATA,3913588,182195,02/07/2018,885.71,0,JBR,Lac - Placements,4814,Adoption Allowances,Children'S Services
Blackpool Council,1105818,REDACTED PERSONAL DATA,3913589,182021,02/07/2018,575.71,0,JBR,Lac - Placements,4814,Adoption Allowances,Children'S Services
Blackpool Council,1105830,REDACTED PERSONAL DATA,3913590,181942,02/07/2018,726.29,0,JEA,Senior Management,4809,Special Guardianship,Children'S Services
Blackpool Council,1105956,REDACTED PERSONAL DATA,3913591,182100,02/07/2018,726.29,0,JEA,Senior Management,4809,Special Guardianship,Children'S Services
Blackpool Council,1106444,REDACTED PERSONAL DATA,3913592,182151,02/07/2018,575.71,0,JEA,Senior Management,4809,Special Guardianship,Children'S Services
Blackpool Council,1106465,REDACTED PERSONAL DATA,3913593,182072,02/07/2018,575.71,0,JEA,Senior Management,4809,Special Guardianship,Children'S Services
Blackpool Council,1106466,REDACTED PERSONAL DATA,3913594,181938,02/07/2018,633.29,0,JEA,Senior Management,4809,Special Guardianship,Children'S Services
Blackpool Council,1106549,REDACTED PERSONAL DATA,3913595,182064,02/07/2018,633.29,0,JEA,Senior Management,4809,Special Guardianship,Children'S Services
Blackpool Council,1106549,REDACTED PERSONAL DATA,3913596,182065,02/07/2018,575.71,0,JEA,Senior Management,4809,Special Guardianship,Children'S Services
Blackpool Council,1106588,REDACTED PERSONAL DATA,3913597,181866,02/07/2018,633.29,0,JEA,Senior Management,4809,Special Guardianship,Children'S Services
Blackpool Council,1106714,REDACTED PERSONAL DATA,3913598,181876,02/07/2018,575.71,0,JEA,Senior Management,4809,Special Guardianship,Children'S Services
Blackpool Council,1106754,REDACTED PERSONAL DATA,3913599,181878,02/07/2018,575.71,0,JEA,Senior Management,4809,Special Guardianship,Children'S Services
Blackpool Council,1106755,REDACTED PERSONAL DATA,3913600,181935,02/07/2018,633.29,0,JEA,Senior Management,4809,Special Guardianship,Children'S Services
Blackpool Council,1106755,REDACTED PERSONAL DATA,3913601,182071,02/07/2018,633.29,0,JEA,Senior Management,4809,Special Guardianship,Children'S Services
Blackpool Council,1106756,REDACTED PERSONAL DATA,3913602,182003,02/07/2018,633.29,0,JEA,Senior Management,4809,Special Guardianship,Children'S Services
Blackpool Council,1107064,REDACTED PERSONAL DATA,3913603,181940,02/07/2018,633.29,0,JEA,Senior Management,4809,Special Guardianship,Children'S Services
Blackpool Council,1107232,REDACTED PERSONAL DATA,3913604,181945,02/07/2018,575.71,0,JEA,Senior Management,4809,Special Guardianship,Children'S Services
Blackpool Council,1107232,REDACTED PERSONAL DATA,3913605,181944,02/07/2018,633.29,0,JEA,Senior Management,4809,Special Guardianship,Children'S Services
Blackpool Council,1107327,REDACTED PERSONAL DATA,3913606,182159,02/07/2018,633.29,0,JEA,Senior Management,4809,Special Guardianship,Children'S Services
Blackpool Council,1107327,REDACTED PERSONAL DATA,3913607,181943,02/07/2018,633.29,0,JEA,Senior Management,4809,Special Guardianship,Children'S Services
Blackpool Council,1107463,REDACTED PERSONAL DATA,3913608,182093,02/07/2018,575.71,0,JEA,Senior Management,4809,Special Guardianship,Children'S Services
Blackpool Council,1107507,REDACTED PERSONAL DATA,3913609,182075,02/07/2018,575.71,0,JEA,Senior Management,4809,Special Guardianship,Children'S Services
Blackpool Council,1107631,REDACTED PERSONAL DATA,3913610,181961,02/07/2018,633.29,0,JEA,Senior Management,4809,Special Guardianship,Children'S Services
Blackpool Council,1107693,REDACTED PERSONAL DATA,3913611,182079,02/07/2018,726.29,0,JEA,Senior Management,4809,Special Guardianship,Children'S Services
Blackpool Council,1107776,REDACTED PERSONAL DATA,3913612,181962,02/07/2018,575.71,0,JEA,Senior Management,4809,Special Guardianship,Children'S Services
Blackpool Council,1107820,REDACTED PERSONAL DATA,3913613,182081,02/07/2018,633.29,0,JEA,Senior Management,4809,Special Guardianship,Children'S Services
Blackpool Council,1107830,REDACTED PERSONAL DATA,3913614,181946,02/07/2018,633.29,0,JEA,Senior Management,4809,Special Guardianship,Children'S Services
Blackpool Council,1107945,REDACTED PERSONAL DATA,3913615,182181,02/07/2018,575.71,0,JEA,Senior Management,4809,Special Guardianship,Children'S Services
Blackpool Council,1108085,REDACTED PERSONAL DATA,3913616,182163,02/07/2018,726.29,0,JEA,Senior Management,4809,Special Guardianship,Children'S Services
Blackpool Council,1108127,REDACTED PERSONAL DATA,3913617,181959,02/07/2018,633.29,0,JEA,Senior Management,4809,Special Guardianship,Children'S Services
Blackpool Council,1108127,REDACTED PERSONAL DATA,3913618,181992,02/07/2018,633.29,0,JEA,Senior Management,4809,Special Guardianship,Children'S Services
Blackpool Council,1108216,REDACTED PERSONAL DATA,3913619,182080,02/07/2018,633.29,0,JEA,Senior Management,4809,Special Guardianship,Children'S Services
Blackpool Council,1108354,REDACTED PERSONAL DATA,3913620,181903,02/07/2018,633.29,0,JEA,Senior Management,4811,Residence Orders,Children'S Services
Blackpool Council,1108354,REDACTED PERSONAL DATA,3913621,182027,02/07/2018,726.29,0,JEA,Senior Management,4811,Residence Orders,Children'S Services
Blackpool Council,1108354,REDACTED PERSONAL DATA,3913622,181842,02/07/2018,726.29,0,JEA,Senior Management,4811,Residence Orders,Children'S Services
Blackpool Council,1108372,REDACTED PERSONAL DATA,3913623,182088,02/07/2018,633.29,0,JEA,Senior Management,4809,Special Guardianship,Children'S Services
Blackpool Council,1108372,REDACTED PERSONAL DATA,3913624,182170,02/07/2018,633.29,0,JEA,Senior Management,4809,Special Guardianship,Children'S Services
Blackpool Council,1108372,REDACTED PERSONAL DATA,3913625,181888,02/07/2018,575.71,0,JEA,Senior Management,4809,Special Guardianship,Children'S Services
Blackpool Council,1108383,REDACTED PERSONAL DATA,3913626,181995,02/07/2018,575.71,0,JEA,Senior Management,4809,Special Guardianship,Children'S Services
Blackpool Council,1108400,REDACTED PERSONAL DATA,3913627,182178,02/07/2018,575.71,0,JEA,Senior Management,4809,Special Guardianship,Children'S Services
Blackpool Council,1108495,REDACTED PERSONAL DATA,3913628,182121,02/07/2018,1151.42,0,JBR,Lac - Placements,4814,Adoption Allowances,Children'S Services
Blackpool Council,1108534,REDACTED PERSONAL DATA,3913629,181937,02/07/2018,575.71,0,JEA,Senior Management,4809,Special Guardianship,Children'S Services
Blackpool Council,1108593,REDACTED PERSONAL DATA,3913630,181993,02/07/2018,633.29,0,JEA,Senior Management,4809,Special Guardianship,Children'S Services
Blackpool Council,1108795,REDACTED PERSONAL DATA,3913631,182182,02/07/2018,633.29,0,JEA,Senior Management,4809,Special Guardianship,Children'S Services
Blackpool Council,1108938,REDACTED PERSONAL DATA,3913632,182184,02/07/2018,575.71,0,JEA,Senior Management,4809,Special Guardianship,Children'S Services
Blackpool Council,1108938,REDACTED PERSONAL DATA,3913633,182183,02/07/2018,633.29,0,JEA,Senior Management,4809,Special Guardianship,Children'S Services
Blackpool Council,1109172,REDACTED PERSONAL DATA,3913634,181939,02/07/2018,726.29,0,JEA,Senior Management,4809,Special Guardianship,Children'S Services
Blackpool Council,1109172,REDACTED PERSONAL DATA,3913635,182174,02/07/2018,575.71,0,JEA,Senior Management,4809,Special Guardianship,Children'S Services
Blackpool Council,1109393,REDACTED PERSONAL DATA,3913636,181955,02/07/2018,575.71,0,JEA,Senior Management,4809,Special Guardianship,Children'S Services
Blackpool Council,1109738,REDACTED PERSONAL DATA,3913637,182187,02/07/2018,575.71,0,JEA,Senior Management,4809,Special Guardianship,Children'S Services
Blackpool Council,1109751,REDACTED PERSONAL DATA,3913638,182186,02/07/2018,633.29,0,JEA,Senior Management,4809,Special Guardianship,Children'S Services
Blackpool Council,1109751,REDACTED PERSONAL DATA,3913639,182095,02/07/2018,633.29,0,JEA,Senior Management,4809,Special Guardianship,Children'S Services
Blackpool Council,1110131,REDACTED PERSONAL DATA,3913640,181954,02/07/2018,633.29,0,JEA,Senior Management,4809,Special Guardianship,Children'S Services
Blackpool Council,1110131,REDACTED PERSONAL DATA,3913641,181953,02/07/2018,726.29,0,JEA,Senior Management,4809,Special Guardianship,Children'S Services
Blackpool Council,1110131,REDACTED PERSONAL DATA,3913642,181889,02/07/2018,633.29,0,JEA,Senior Management,4809,Special Guardianship,Children'S Services
Blackpool Council,1110131,REDACTED PERSONAL DATA,3913643,182087,02/07/2018,726.29,0,JEA,Senior Management,4809,Special Guardianship,Children'S Services
Blackpool Council,1110131,REDACTED PERSONAL DATA,3913644,182173,02/07/2018,575.71,0,JEA,Senior Management,4809,Special Guardianship,Children'S Services
Blackpool Council,1110206,REDACTED PERSONAL DATA,3913645,182024,02/07/2018,633.29,0,JBR,Lac - Placements,4814,Adoption Allowances,Children'S Services
Blackpool Council,1110334,REDACTED PERSONAL DATA,3913646,182090,02/07/2018,575.71,0,JEA,Senior Management,4809,Special Guardianship,Children'S Services
Blackpool Council,1110634,REDACTED PERSONAL DATA,3913647,182154,02/07/2018,633.29,0,JEA,Senior Management,4809,Special Guardianship,Children'S Services
Blackpool Council,1110634,REDACTED PERSONAL DATA,3913648,181867,02/07/2018,726.29,0,JEA,Senior Management,4809,Special Guardianship,Children'S Services
Blackpool Council,1110634,REDACTED PERSONAL DATA,3913649,181936,02/07/2018,633.29,0,JEA,Senior Management,4809,Special Guardianship,Children'S Services
Blackpool Council,1110684,REDACTED PERSONAL DATA,3913650,181890,02/07/2018,633.29,0,JEA,Senior Management,4809,Special Guardianship,Children'S Services
Blackpool Council,1110718,REDACTED PERSONAL DATA,3913651,181988,02/07/2018,562.43,0,JEA,Senior Management,4809,Special Guardianship,Children'S Services
Blackpool Council,1110769,REDACTED PERSONAL DATA,3913652,181891,02/07/2018,575.71,0,JEA,Senior Management,4809,Special Guardianship,Children'S Services
Blackpool Council,1110785,REDACTED PERSONAL DATA,3913653,181987,02/07/2018,575.71,0,JEA,Senior Management,4809,Special Guardianship,Children'S Services
Blackpool Council,1110785,REDACTED PERSONAL DATA,3913654,181986,02/07/2018,633.29,0,JEA,Senior Management,4809,Special Guardianship,Children'S Services
Blackpool Council,1110785,REDACTED PERSONAL DATA,3913655,182175,02/07/2018,633.29,0,JEA,Senior Management,4809,Special Guardianship,Children'S Services
Blackpool Council,1110785,REDACTED PERSONAL DATA,3913656,182091,02/07/2018,575.71,0,JEA,Senior Management,4809,Special Guardianship,Children'S Services
Blackpool Council,1110958,REDACTED PERSONAL DATA,3913657,182070,02/07/2018,575.71,0,JEA,Senior Management,4809,Special Guardianship,Children'S Services
Blackpool Council,1111024,REDACTED PERSONAL DATA,3913658,182105,02/07/2018,633.29,0,JEA,Senior Management,4809,Special Guardianship,Children'S Services
Blackpool Council,1111111,REDACTED PERSONAL DATA,3913659,181956,02/07/2018,633.29,0,JEA,Senior Management,4809,Special Guardianship,Children'S Services
Blackpool Council,1111111,REDACTED PERSONAL DATA,3913660,181892,02/07/2018,633.29,0,JEA,Senior Management,4809,Special Guardianship,Children'S Services
Blackpool Council,1111111,REDACTED PERSONAL DATA,3913661,181893,02/07/2018,633.29,0,JEA,Senior Management,4809,Special Guardianship,Children'S Services
Blackpool Council,1111143,REDACTED PERSONAL DATA,3913662,181985,02/07/2018,575.71,0,JEA,Senior Management,4809,Special Guardianship,Children'S Services
Blackpool Council,1111443,REDACTED PERSONAL DATA,3913663,181934,02/07/2018,633.29,0,JEA,Senior Management,4809,Special Guardianship,Children'S Services
Blackpool Council,1111443,REDACTED PERSONAL DATA,3913664,181933,02/07/2018,633.29,0,JEA,Senior Management,4809,Special Guardianship,Children'S Services
Blackpool Council,1111656,REDACTED PERSONAL DATA,3913665,181984,02/07/2018,1307.43,0,JEA,Senior Management,4809,Special Guardianship,Children'S Services
Blackpool Council,1111672,REDACTED PERSONAL DATA,3913666,182176,02/07/2018,575.71,0,JEA,Senior Management,4809,Special Guardianship,Children'S Services
Blackpool Council,1111683,REDACTED PERSONAL DATA,3913667,182177,02/07/2018,633.29,0,JEA,Senior Management,4809,Special Guardianship,Children'S Services
Blackpool Council,1111683,REDACTED PERSONAL DATA,3913668,181989,02/07/2018,633.29,0,JEA,Senior Management,4809,Special Guardianship,Children'S Services
Blackpool Council,1111683,REDACTED PERSONAL DATA,3913669,181865,02/07/2018,575.71,0,JEA,Senior Management,4809,Special Guardianship,Children'S Services
Blackpool Council,1111683,REDACTED PERSONAL DATA,3913670,181957,02/07/2018,633.29,0,JEA,Senior Management,4809,Special Guardianship,Children'S Services
Blackpool Council,1111913,REDACTED PERSONAL DATA,3913671,181872,02/07/2018,575.71,0,JEA,Senior Management,4809,Special Guardianship,Children'S Services
Blackpool Council,1112054,REDACTED PERSONAL DATA,3913672,182069,02/07/2018,2265.71,0,JEA,Senior Management,4809,Special Guardianship,Children'S Services
Blackpool Council,1112103,REDACTED PERSONAL DATA,3913673,181871,02/07/2018,562.43,0,JEA,Senior Management,4809,Special Guardianship,Children'S Services
Blackpool Council,1112189,REDACTED PERSONAL DATA,3913674,181932,02/07/2018,562.43,0,JEA,Senior Management,4809,Special Guardianship,Children'S Services
Blackpool Council,1112214,REDACTED PERSONAL DATA,3913675,181886,02/07/2018,726.29,0,JEA,Senior Management,4809,Special Guardianship,Children'S Services
Blackpool Council,1112214,REDACTED PERSONAL DATA,3913676,182168,02/07/2018,845.86,0,JEA,Senior Management,4809,Special Guardianship,Children'S Services
Blackpool Council,1112431,REDACTED PERSONAL DATA,3913677,181947,02/07/2018,633.29,0,JEA,Senior Management,4809,Special Guardianship,Children'S Services
Blackpool Council,1112669,REDACTED PERSONAL DATA,3913678,182152,02/07/2018,575.71,0,JEA,Senior Management,4809,Special Guardianship,Children'S Services
Blackpool Council,1112793,REDACTED PERSONAL DATA,3913679,182083,02/07/2018,845.86,0,JEA,Senior Management,4809,Special Guardianship,Children'S Services
Blackpool Council,1112793,REDACTED PERSONAL DATA,3913680,182084,02/07/2018,726.29,0,JEA,Senior Management,4809,Special Guardianship,Children'S Services
Blackpool Council,1112861,REDACTED PERSONAL DATA,3913681,182167,02/07/2018,562.43,0,JEA,Senior Management,4809,Special Guardianship,Children'S Services
Blackpool Council,1113186,REDACTED PERSONAL DATA,3913682,182164,02/07/2018,726.29,0,JEA,Senior Management,4809,Special Guardianship,Children'S Services
Blackpool Council,1113186,REDACTED PERSONAL DATA,3913683,182165,02/07/2018,575.71,0,JEA,Senior Management,4809,Special Guardianship,Children'S Services
Blackpool Council,1113233,REDACTED PERSONAL DATA,3913684,181869,02/07/2018,562.43,0,JEA,Senior Management,4809,Special Guardianship,Children'S Services
Blackpool Council,1113411,REDACTED PERSONAL DATA,3913685,182161,02/07/2018,562.43,0,JEA,Senior Management,4809,Special Guardianship,Children'S Services
Blackpool Council,1113426,REDACTED PERSONAL DATA,3913686,182028,02/07/2018,726.29,0,JEA,Senior Management,4811,Residence Orders,Children'S Services
Blackpool Council,1113444,REDACTED PERSONAL DATA,3913687,182157,02/07/2018,562.43,0,JEA,Senior Management,4809,Special Guardianship,Children'S Services
Blackpool Council,1113444,REDACTED PERSONAL DATA,3913688,182074,02/07/2018,575.71,0,JEA,Senior Management,4809,Special Guardianship,Children'S Services
Blackpool Council,1113462,REDACTED PERSONAL DATA,3913689,181960,02/07/2018,575.71,0,JEA,Senior Management,4809,Special Guardianship,Children'S Services
Blackpool Council,1113470,REDACTED PERSONAL DATA,3913690,181877,02/07/2018,633.29,0,JEA,Senior Management,4809,Special Guardianship,Children'S Services
Blackpool Council,1113470,REDACTED PERSONAL DATA,3913691,182155,02/07/2018,575.71,0,JEA,Senior Management,4809,Special Guardianship,Children'S Services
Blackpool Council,1113470,REDACTED PERSONAL DATA,3913692,182073,02/07/2018,575.71,0,JEA,Senior Management,4809,Special Guardianship,Children'S Services
Blackpool Council,1113670,REDACTED PERSONAL DATA,3913693,182166,02/07/2018,575.71,0,JEA,Senior Management,4809,Special Guardianship,Children'S Services
Blackpool Council,1113670,REDACTED PERSONAL DATA,3913694,182082,02/07/2018,575.71,0,JEA,Senior Management,4809,Special Guardianship,Children'S Services
Blackpool Council,1113801,REDACTED PERSONAL DATA,3913695,182076,02/07/2018,575.71,0,JEA,Senior Management,4809,Special Guardianship,Children'S Services
Blackpool Council,1113831,REDACTED PERSONAL DATA,3913696,181873,02/07/2018,562.43,0,JEA,Senior Management,4809,Special Guardianship,Children'S Services
Blackpool Council,1113848,REDACTED PERSONAL DATA,3913697,182085,02/07/2018,562.43,0,JEA,Senior Management,4809,Special Guardianship,Children'S Services
Blackpool Council,1113848,REDACTED PERSONAL DATA,3913698,181881,02/07/2018,633.29,0,JEA,Senior Management,4809,Special Guardianship,Children'S Services
Blackpool Council,1113848,REDACTED PERSONAL DATA,3913699,181880,02/07/2018,633.29,0,JEA,Senior Management,4809,Special Guardianship,Children'S Services
Blackpool Council,1113907,REDACTED PERSONAL DATA,3913700,182086,02/07/2018,562.43,0,JEA,Senior Management,4809,Special Guardianship,Children'S Services
Blackpool Council,1113950,REDACTED PERSONAL DATA,3913701,181874,02/07/2018,575.71,0,JEA,Senior Management,4809,Special Guardianship,Children'S Services
Blackpool Council,1113959,REDACTED PERSONAL DATA,3913702,181949,02/07/2018,562.43,0,JEA,Senior Management,4809,Special Guardianship,Children'S Services
Blackpool Council,1114049,REDACTED PERSONAL DATA,3913703,181948,02/07/2018,562.43,0,JEA,Senior Management,4809,Special Guardianship,Children'S Services
Blackpool Council,1114068,REDACTED PERSONAL DATA,3913704,182010,02/07/2018,633.29,0,JEA,Senior Management,4811,Residence Orders,Children'S Services
Blackpool Council,1114087,REDACTED PERSONAL DATA,3913705,181843,02/07/2018,726.29,0,JEA,Senior Management,4811,Residence Orders,Children'S Services
Blackpool Council,1114150,REDACTED PERSONAL DATA,3913706,182162,02/07/2018,575.71,0,JEA,Senior Management,4809,Special Guardianship,Children'S Services
Blackpool Council,1114183,REDACTED PERSONAL DATA,3913707,181887,02/07/2018,575.71,0,JEA,Senior Management,4809,Special Guardianship,Children'S Services
Blackpool Council,1114219,REDACTED PERSONAL DATA,3913708,181952,02/07/2018,633.29,0,JEA,Senior Management,4809,Special Guardianship,Children'S Services
Blackpool Council,1114331,REDACTED PERSONAL DATA,3913709,181967,02/07/2018,575.71,0,JEA,Senior Management,4809,Special Guardianship,Children'S Services
Blackpool Council,1114517,REDACTED PERSONAL DATA,3913711,182109,02/07/2018,562.43,0,JEA,Senior Management,4809,Special Guardianship,Children'S Services
Blackpool Council,1114584,REDACTED PERSONAL DATA,3913712,181972,02/07/2018,575.71,0,JEA,Senior Management,4809,Special Guardianship,Children'S Services
Blackpool Council,1114684,REDACTED PERSONAL DATA,3913713,181983,02/07/2018,562.43,0,JEA,Senior Management,4809,Special Guardianship,Children'S Services
Blackpool Council,1114886,REDACTED PERSONAL DATA,3913714,181950,02/07/2018,726.29,0,JEA,Senior Management,4809,Special Guardianship,Children'S Services
Blackpool Council,1115187,REDACTED PERSONAL DATA,3913715,182006,02/07/2018,633.29,0,JEA,Senior Management,4809,Special Guardianship,Children'S Services
Blackpool Council,1115187,REDACTED PERSONAL DATA,3913716,182193,02/07/2018,726.29,0,JEA,Senior Management,4809,Special Guardianship,Children'S Services
Blackpool Council,1115210,REDACTED PERSONAL DATA,3913717,182192,02/07/2018,633.29,0,JEA,Senior Management,4809,Special Guardianship,Children'S Services
Blackpool Council,1115210,REDACTED PERSONAL DATA,3913718,182004,02/07/2018,633.29,0,JEA,Senior Management,4809,Special Guardianship,Children'S Services
Blackpool Council,1115255,REDACTED PERSONAL DATA,3913719,181969,02/07/2018,633.29,0,JEA,Senior Management,4809,Special Guardianship,Children'S Services
Blackpool Council,1115255,REDACTED PERSONAL DATA,3913720,182005,02/07/2018,575.71,0,JEA,Senior Management,4809,Special Guardianship,Children'S Services
Blackpool Council,1116165,REDACTED PERSONAL DATA,3913721,182012,02/07/2018,2124.57,0,JEA,Senior Management,4809,Special Guardianship,Children'S Services
Blackpool Council,1116319,Slater Gordon Solutions Legal,3913727,011602,03/07/2018,3000,0,RK7001,Damages El,3801,Other Expenses,Internal Insurance
Blackpool Council,1099340,REDACTED PERSONAL DATA,3913736,MW ADOPTION SUP,03/07/2018,897.86,0,JBR,Lac - Placements,4814,Adoption Allowances,Children'S Services
Blackpool Council,1010072,Caritas Care Ltd,3913737,17535,03/07/2018,750,0,JBR,Lac - Placements,3420,Adoption Agency Fees,Children'S Services
Blackpool Council,1010072,Caritas Care Ltd,3913738,17534,03/07/2018,18000,0,JBR,Lac - Placements,3420,Adoption Agency Fees,Children'S Services
Blackpool Council,1037403,Barnardo Services Ltd (Non Vat Invoices),3913739,146520796,03/07/2018,18000,0,JBR,Lac - Placements,3420,Adoption Agency Fees,Children'S Services
Blackpool Council,1105882,Northern Community Pathways,3913741,TMS01,03/07/2018,577.64,0,JEA,Senior Management,5577,Setting Up Home Allowance,Children'S Services
Blackpool Council,1011121,Fylde Coast Gate Ltd,3913746,27802,02/07/2018,300,50,AEB,Buildings,1012,Premises Maint-Priv.Contractor,Resources
Blackpool Council,1011702,J & J Decorating Services,3913747,7726,27/07/2018,330,55,AEB,Buildings,1012,Premises Maint-Priv.Contractor,Resources
Blackpool Council,1011817,Jack Cunliffe Blackpool Ltd,3913748,19755,06/07/2018,609.16,101.53,AHG,Art Gallery Summary,3041,Other Materials,Places
Blackpool Council,1011995,Technical & Electrical Services Ltd,3913752,C 7278,02/07/2018,17455.2,2909.2,AEB,Buildings,1012,Premises Maint-Priv.Contractor,Resources
Blackpool Council,1011995,Technical & Electrical Services Ltd,3913753,C 7276,02/07/2018,1915.2,319.2,AEB,Buildings,1012,Premises Maint-Priv.Contractor,Resources
Blackpool Council,1012061,Security Monitoring Centres Ltd,3913756,SI0782605,02/07/2018,643.16,107.2,AEB,Buildings,1171,Alarms,Resources
